Workbook

Sheet TOT-0216
B2: ANEXO V al Memorandum D.T.E.E. N° 356 / 2016
A4: ENTE NACIONAL REGULADOR
A5: DE LA ELECTRICIDAD
B7: SISTEMA DE TRANSPORTE DE ENERGÍA ELÉCTRICA POR DISTRIBUCIÓN TRONCAL
B9: TRANSNOA S.A.
B11: TOTAL DE PENALIZACIONES
B13: 1
B14: Desde el 01 al 29 de Febrero de 2016
B16: Sanciones duplicadas por tasa de falla > 4 Sal. x año/100km.
C18: 1.- | D18: LÍNEAS
D19: 1.1.- | E19: Equipamiento propio | J19: ='LI-02 (3)'!AA40 -> 400414.81
D20: 1.2.- | E20: Equipamiento del T.I. EDESA S.A. | J20: ='LI-EDESA-02 (1)'!AA42 -> 5355.89
C22: 2.- | D22: CONEXIÓN
D23: 2.1.- | E23: Transformación
E24: 2.1.1.- | F24: Equipamiento propio | J24: ='T-02 (2)'!AC50 -> 167962.71
E25: 2.1.2.- | F25: Equipamiento del T.I. EDESA S.A. | J25: ='T-EDESA-02 (1)'!AC46 -> 131.13
C28: 3.1.- | D28: SUPERVISIÓN del T.I. EDESA S.A. | J28: ='SUP-EDESA'!I54 -> 1591.651801
G31: TOTAL | H31: =SUM(J18:J29) -> 575456.1918
C33: Valores remuneratorios según Acuerdo SE - ENRE -TRANSNOA 2016-2017

Sheet LI-02 (1)
B2: =+'TOT-0216'!B2 -> ANEXO V al Memorandum D.T.E.E. N° 356 / 2016
A4: ENTE NACIONAL REGULADOR
A5: DE LA ELECTRICIDAD
F8: SISTEMA DE TRANSPORTE DE ENERGÍA ELÉCTRICA POR DISTRIBUCIÓN TRONCAL - TRANSNOA S.A.
F10: 1.- LÍNEAS
F12: 1.1.- Equipamiento propio
B14: ='TOT-0216'!B14 -> Desde el 01 al 29 de Febrero de 2016
F16: $/100 km-h : LINEAS 132 kV | G16: 514.204 | K16: FACTOR DE PENALIZACION K = | L16: =30*'TOT-0216'!B13 -> 30 | M16: =IF(L16=30," ",IF(L16=60,"Coeficiente duplicado por tasa de falla >4 Sal. x año/100 km.","REVISAR COEFICIENTE")) -> 
C17: 3 | D17: 4 | E17: 5 | F17: 6 | G17: 7 | H17: 8 | I17: 9 | J17: 10 | K17: 11 | L17: 12 | M17: 13 | N17: 14 | O17: 15 | P17: 16 | Q17: 17 | R17: 18 | S17: 19 | T17: 20 | U17: 21 | V17: 22 | W17: 23 | X17: 24 | Y17: 25 | Z17: 26 | AA17: 27
C18: N° | D18: INDISP | E18: ID EQUIPO | F18: LÍNEAS | G18: U [kV] | H18: Long. [km] | I18: $/h | J18: Salida | K18: Entrada | L18: Hs. Indisp | M18: Minutos Indisp. | N18: Tipo Sal.(²) | O18: C.R. % | P18: PENALIZ. PROGRAM. | Q18: REDUCC. PROGRAM. | R18: PENALIZACION FORZADA Por Salida 1ras. 3 hs. hs. Restantes | U18: REDUCC. FORZADA Por Salida 1ras. 3 hs. hs. Restantes | X18: RESTANTE FORZADA | Y18: REDUCC. RESTANTE | Z18: Informó en Térm. | AA18: TOTAL PENALIZAC.
C21: 1 | D21: 298522 | E21: 5689 | F21: C. CORRAL - GUACHIPAS - PAMPA GRANDE | G21: 132 | H21: 71.2 | I21: =$G$16/100*IF(H21>25,H21,25) -> 366.113248 | J21: 2016-02-01T01:41:00 | K21: 2016-02-01T01:46:00 | L21: =IF(F21="","",(K21-J21)*24) -> 0.08333333326 | M21: =IF(F21="","",ROUND((K21-J21)*24*60,0)) -> 5 | N21: F | O21: =IF(F21="","","--") -> -- | P21: =IF(N21="P",ROUND(M21/60,2)*I21*$L$16*0.01,"--") -> -- | Q21: =IF(N21="RP",I21*O21*ROUND(L21/60,2)*0.01*M21/100,"--") -> -- | R21: =IF(N21="F",I21*$L$16,"--") -> 10983.39744 | S21: =IF(AND(M21>10,N21="F"),I21*$L$16*IF(M21>180,3,ROUND((M21)/60,2)),"--") -> -- | T21: =IF(AND(M21>180,N21="F"),(ROUND(M21/60,2)-3)*I21*$L$16*0.1,"--") -> -- | U21: =IF(N21="R",I21*$L$16*O21/100,"--") -> -- | V21: =IF(AND(M21>10,N21="R"),I21*$L$16*O21/100*IF(M21>180,3,ROUND(M21/60,2)),"--") -> -- | W21: =IF(AND(M21>180,N21="R"),(ROUND(M21/60,2)-3)*I21*$L$16*0.1*O21/100,"--") -> -- | X21: =IF(N21="RF",ROUND(M21/60,2)*I21*$L$16*0.1,"--") -> -- | Y21: =IF(N21="RR",ROUND(M21/60,2)*I21*$L$16*0.1*O21/100,"--") -> -- | Z21: SI | AA21: =IF(F21="","",SUM(P21:Y21)*IF(Z21="SI",1,2)) -> 10983.39744
C22: 2 | D22: 298526 | E22: 5689 | F22: C. CORRAL - GUACHIPAS - PAMPA GRANDE | G22: 132 | H22: 71.2 | I22: 366.113248 | J22: 2016-02-01T11:44:00 | K22: 2016-02-01T11:47:00 | L22: 0.04999999999 | M22: 3 | N22: F | O22: -- | P22: -- | Q22: -- | R22: 10983.39744 | S22: -- | T22: -- | U22: -- | V22: -- | W22: -- | X22: -- | Y22: -- | Z22: SI | AA22: 10983.39744
C23: 3 | D23: 298527 | E23: 3565 | F23: CABRA CORRAL - SALTA ESTE | G23: 132 | H23: 55 | I23: 282.8122 | J23: 2016-02-01T20:48:00 | K23: 2016-02-01T20:56:00 | L23: 0.1333333332 | M23: 8 | N23: F | O23: -- | P23: -- | Q23: -- | R23: 8484.366 | S23: -- | T23: -- | U23: -- | V23: -- | W23: -- | X23: -- | Y23: -- | Z23: SI | AA23: 8484.366
C24: 4 | D24: 298528 | E24: 5564 | F24: LA BANDA - SANTIAGO ESTE | G24: 132 | H24: 4.92 | I24: 128.551 | J24: 2016-02-02T07:35:00 | K24: 2016-02-02T15:27:00 | L24: 7.866666667 | M24: 472 | N24: P | O24: -- | P24: 303.508911 | Q24: -- | R24: -- | S24: -- | T24: -- | U24: -- | V24: -- | W24: -- | X24: -- | Y24: -- | Z24: SI | AA24: 303.508911
C25: 5 | D25: 298530 | E25: 290 | F25: LA RIOJA - RECREO 1 | G25: 132 | H25: 221 | I25: 1136.39084 | J25: 2016-02-02T22:23:00 | K25: 2016-02-02T23:05:00 | L25: 0.7 | M25: 42 | N25: F | O25: -- | P25: -- | Q25: -- | R25: 34091.7252 | S25: 23864.20764 | T25: -- | U25: -- | V25: -- | W25: -- | X25: -- | Y25: -- | Z25: SI | AA25: 57955.93284
C26: 6 | D26: 298533 | E26: 5564 | F26: LA BANDA - SANTIAGO ESTE | G26: 132 | H26: 4.92 | I26: 128.551 | J26: 2016-02-03T07:39:00 | K26: 2016-02-03T16:28:00 | L26: 8.816666667 | M26: 529 | N26: P | O26: -- | P26: 340.145946 | Q26: -- | R26: -- | S26: -- | T26: -- | U26: -- | V26: -- | W26: -- | X26: -- | Y26: -- | Z26: SI | AA26: 340.145946
C27: 7 | D27: 298534 | E27: 5565 | F27: SANTIAGO CENTRO - SANTIAGO ESTE | G27: 132 | H27: 10.66 | I27: 128.551 | J27: 2016-02-04T07:34:00 | K27: 2016-02-04T15:20:00 | L27: 7.766666667 | M27: 466 | N27: P | O27: -- | P27: 299.652381 | Q27: -- | R27: -- | S27: -- | T27: -- | U27: -- | V27: -- | W27: -- | X27: -- | Y27: -- | Z27: SI | AA27: 299.652381
C28: 8 | D28: 298540 | E28: 5565 | F28: SANTIAGO CENTRO - SANTIAGO ESTE | G28: 132 | H28: 10.66 | I28: 128.551 | J28: 2016-02-05T07:33:00 | K28: 2016-02-05T15:09:00 | L28: 7.6 | M28: 456 | N28: P | O28: -- | P28: 293.09628 | Q28: -- | R28: -- | S28: -- | T28: -- | U28: -- | V28: -- | W28: -- | X28: -- | Y28: -- | Z28: SI | AA28: 293.09628
C29: 9 | D29: 298544 | E29: 290 | F29: LA RIOJA - RECREO 1 | G29: 132 | H29: 221 | I29: 1136.39084 | J29: 2016-02-07T07:21:00 | K29: 2016-02-07T07:26:00 | L29: 0.08333333326 | M29: 5 | N29: F | O29: -- | P29: -- | Q29: -- | R29: 34091.7252 | S29: -- | T29: -- | U29: -- | V29: -- | W29: -- | X29: -- | Y29: -- | Z29: SI | AA29: 34091.7252
C30: 10 | D30: 298953 | E30: 5608 | F30: COBOS - SALTA ESTE | G30: 132 | H30: 45.6 | I30: 234.477024 | J30: 2016-02-08T13:55:00 | K30: 2016-02-08T13:58:00 | L30: =IF(F30="","",(K30-J30)*24) -> 0.04999999999 | M30: =IF(F30="","",ROUND((K30-J30)*24*60,0)) -> 3 | N30: F | O30: -- | P30: -- | Q30: -- | R30: 7034.31072 | S30: -- | T30: -- | U30: -- | V30: -- | W30: -- | X30: -- | Y30: -- | Z30: SI | AA30: 7034.31072
C31: 11 | D31: 298964 | E31: 299 | F31: SAN JUANCITO - PALPALA | G31: 132 | H31: 23.9 | I31: 128.551 | J31: 2016-02-09T01:07:00 | K31: 2016-02-09T16:52:00 | L31: 15.75 | M31: 945 | N31: F | O31: -- | P31: -- | Q31: -- | R31: 3856.53 | S31: 11569.59 | T31: 4917.07575 | U31: -- | V31: -- | W31: -- | X31: -- | Y31: -- | Z31: SI | AA31: 20343.19575
C32: 12 | D32: 298982 | E32: 2691 | F32: LOS PIZARROS - ESCABA | G32: 132 | H32: 21.39999962 | I32: 128.551 | J32: 2016-02-13T06:54:00 | K32: 2016-02-13T06:57:00 | L32: 0.04999999999 | M32: 3 | N32: F | O32: -- | P32: -- | Q32: -- | R32: 3856.53 | S32: -- | T32: -- | U32: -- | V32: -- | W32: -- | X32: -- | Y32: -- | Z32: SI | AA32: 3856.53
C33: 13 | D33: 298986 | E33: 5443 | F33: NONOGASTA - VILLA UNIÓN | G33: 132 | H33: 82.1 | I33: 422.161484 | J33: 2016-02-13T12:07:00 | K33: 2016-02-13T12:12:00 | L33: 0.08333333326 | M33: 5 | N33: F | O33: -- | P33: -- | Q33: -- | R33: 12664.84452 | S33: -- | T33: -- | U33: -- | V33: -- | W33: -- | X33: -- | Y33: -- | Z33: SI | AA33: 12664.84452
C34: 14 | D34: 298987 | E34: 312 | F34: C.H. PUEBLO VIEJO - VILLA QUINTEROS | G34: 132 | H34: 24.5 | I34: 128.551 | J34: 2016-02-13T13:12:00 | K34: 2016-02-13T19:19:00 | L34: =IF(F34="","",(K34-J34)*24) -> 6.116666667 | M34: =IF(F34="","",ROUND((K34-J34)*24*60,0)) -> 367 | N34: F | O34: =IF(F34="","","--") -> -- | P34: =IF(N34="P",ROUND(M34/60,2)*I34*$L$16*0.01,"--") -> -- | Q34: =IF(N34="RP",I34*O34*ROUND(L34/60,2)*0.01*M34/100,"--") -> -- | R34: =IF(N34="F",I34*$L$16,"--") -> 3856.53 | S34: =IF(AND(M34>10,N34="F"),I34*$L$16*IF(M34>180,3,ROUND((M34)/60,2)),"--") -> 11569.59 | T34: =IF(AND(M34>180,N34="F"),(ROUND(M34/60,2)-3)*I34*$L$16*0.1,"--") -> 1203.23736 | U34: =IF(N34="R",I34*$L$16*O34/100,"--") -> -- | V34: =IF(AND(M34>10,N34="R"),I34*$L$16*O34/100*IF(M34>180,3,ROUND(M34/60,2)),"--") -> -- | W34: =IF(AND(M34>180,N34="R"),(ROUND(M34/60,2)-3)*I34*$L$16*0.1*O34/100,"--") -> -- | X34: =IF(N34="RF",ROUND(M34/60,2)*I34*$L$16*0.1,"--") -> -- | Y34: =IF(N34="RR",ROUND(M34/60,2)*I34*$L$16*0.1*O34/100,"--") -> -- | Z34: SI | AA34: =IF(F34="","",SUM(P34:Y34)*IF(Z34="SI",1,2)) -> 16629.35736
C35: 15 | D35: 298997 | E35: 4811 | F35: ROSARIO DE LA FRONTERA - COBOS | G35: 132 | H35: 130.4 | I35: 670.522016 | J35: 2016-02-14T07:24:00 | K35: 2016-02-14T07:31:00 | L35: =IF(F35="","",(K35-J35)*24) -> 0.1166666667 | M35: =IF(F35="","",ROUND((K35-J35)*24*60,0)) -> 7 | N35: F | O35: =IF(F35="","","--") -> -- | P35: =IF(N35="P",ROUND(M35/60,2)*I35*$L$16*0.01,"--") -> -- | Q35: =IF(N35="RP",I35*O35*ROUND(L35/60,2)*0.01*M35/100,"--") -> -- | R35: =IF(N35="F",I35*$L$16,"--") -> 20115.66048 | S35: =IF(AND(M35>10,N35="F"),I35*$L$16*IF(M35>180,3,ROUND((M35)/60,2)),"--") -> -- | T35: =IF(AND(M35>180,N35="F"),(ROUND(M35/60,2)-3)*I35*$L$16*0.1,"--") -> -- | U35: =IF(N35="R",I35*$L$16*O35/100,"--") -> -- | V35: =IF(AND(M35>10,N35="R"),I35*$L$16*O35/100*IF(M35>180,3,ROUND(M35/60,2)),"--") -> -- | W35: =IF(AND(M35>180,N35="R"),(ROUND(M35/60,2)-3)*I35*$L$16*0.1*O35/100,"--") -> -- | X35: =IF(N35="RF",ROUND(M35/60,2)*I35*$L$16*0.1,"--") -> -- | Y35: =IF(N35="RR",ROUND(M35/60,2)*I35*$L$16*0.1*O35/100,"--") -> -- | Z35: SI | AA35: =IF(F35="","",SUM(P35:Y35)*IF(Z35="SI",1,2)) -> 20115.66048
C36: 16 | D36: 299053 | E36: 4250 | F36: TRANCAS - PAMPA GRANDE | G36: 132 | H36: 55 | I36: 282.8122 | J36: 2016-02-15T14:12:00 | K36: 2016-02-15T14:15:00 | L36: =IF(F36="","",(K36-J36)*24) -> 0.04999999999 | M36: =IF(F36="","",ROUND((K36-J36)*24*60,0)) -> 3 | N36: F | O36: =IF(F36="","","--") -> -- | P36: =IF(N36="P",ROUND(M36/60,2)*I36*$L$16*0.01,"--") -> -- | Q36: =IF(N36="RP",I36*O36*ROUND(L36/60,2)*0.01*M36/100,"--") -> -- | R36: =IF(N36="F",I36*$L$16,"--") -> 8484.366 | S36: =IF(AND(M36>10,N36="F"),I36*$L$16*IF(M36>180,3,ROUND((M36)/60,2)),"--") -> -- | T36: =IF(AND(M36>180,N36="F"),(ROUND(M36/60,2)-3)*I36*$L$16*0.1,"--") -> -- | U36: =IF(N36="R",I36*$L$16*O36/100,"--") -> -- | V36: =IF(AND(M36>10,N36="R"),I36*$L$16*O36/100*IF(M36>180,3,ROUND(M36/60,2)),"--") -> -- | W36: =IF(AND(M36>180,N36="R"),(ROUND(M36/60,2)-3)*I36*$L$16*0.1*O36/100,"--") -> -- | X36: =IF(N36="RF",ROUND(M36/60,2)*I36*$L$16*0.1,"--") -> -- | Y36: =IF(N36="RR",ROUND(M36/60,2)*I36*$L$16*0.1*O36/100,"--") -> -- | Z36: SI | AA36: =IF(F36="","",SUM(P36:Y36)*IF(Z36="SI",1,2)) -> 8484.366
C39: (²) | D39: P - PROGRAMADA ; F - FORZADA | P39: =SUM(P19:P38) -> 1236.403518 | Q39: 0 | R39: 158503.383 | S39: 47003.38764 | T39: 6120.31311 | U39: 0 | V39: 0 | W39: 0 | X39: 0 | Y39: 0 | AA39: =ROUND(SUM(AA19:AA38),2) -> 212863.49

Sheet LI-02 (2)
B2: =+'TOT-0216'!B2 -> ANEXO V al Memorandum D.T.E.E. N° 356 / 2016
A4: ENTE NACIONAL REGULADOR
A5: DE LA ELECTRICIDAD
F8: SISTEMA DE TRANSPORTE DE ENERGÍA ELÉCTRICA POR DISTRIBUCIÓN TRONCAL - TRANSNOA S.A.
F10: 1.- LÍNEAS
F12: 1.1.- Equipamiento propio
B14: ='TOT-0216'!B14 -> Desde el 01 al 29 de Febrero de 2016
F16: $/100 km-h : LINEAS 132 kV | G16: 514.204 | K16: FACTOR DE PENALIZACION K = | L16: =30*'TOT-0216'!B13 -> 30 | M16: =IF(L16=30," ",IF(L16=60,"Coeficiente duplicado por tasa de falla >4 Sal. x año/100 km.","REVISAR COEFICIENTE")) -> 
C17: 3 | D17: 4 | E17: 5 | F17: 6 | G17: 7 | H17: 8 | I17: 9 | J17: 10 | K17: 11 | L17: 12 | M17: 13 | N17: 14 | O17: 15 | P17: 16 | Q17: 17 | R17: 18 | S17: 19 | T17: 20 | U17: 21 | V17: 22 | W17: 23 | X17: 24 | Y17: 25 | Z17: 26 | AA17: 27
C18: N° | D18: INDISP | E18: ID EQUIPO | F18: LÍNEAS | G18: U [kV] | H18: Long. [km] | I18: $/h | J18: Salida | K18: Entrada | L18: Hs. Indisp | M18: Minutos Indisp. | N18: Tipo Sal.(²) | O18: C.R. % | P18: PENALIZ. PROGRAM. | Q18: REDUCC. PROGRAM. | R18: PENALIZACION FORZADA Por Salida 1ras. 3 hs. hs. Restantes | U18: REDUCC. FORZADA Por Salida 1ras. 3 hs. hs. Restantes | X18: RESTANTE FORZADA | Y18: REDUCC. RESTANTE | Z18: Informó en Térm. | AA18: TOTAL PENALIZAC.
AA19: ='LI-02 (1)'!AA39 -> 212863.49
C21: 17 | D21: 299059 | E21: 5672 | F21: GUEMES - CAMPO SANTO - MINETTI | G21: 132 | H21: 41.8 | I21: =$G$16/100*IF(H21>25,H21,25) -> 214.937272 | J21: 2016-02-16T00:52:00 | K21: 2016-02-16T00:59:00 | L21: =IF(F21="","",(K21-J21)*24) -> 0.1166666667 | M21: =IF(F21="","",ROUND((K21-J21)*24*60,0)) -> 7 | N21: F | O21: =IF(F21="","","--") -> -- | P21: =IF(N21="P",ROUND(M21/60,2)*I21*$L$16*0.01,"--") -> -- | Q21: =IF(N21="RP",I21*O21*ROUND(L21/60,2)*0.01*M21/100,"--") -> -- | R21: =IF(N21="F",I21*$L$16,"--") -> 6448.11816 | S21: =IF(AND(M21>10,N21="F"),I21*$L$16*IF(M21>180,3,ROUND((M21)/60,2)),"--") -> -- | T21: =IF(AND(M21>180,N21="F"),(ROUND(M21/60,2)-3)*I21*$L$16*0.1,"--") -> -- | U21: =IF(N21="R",I21*$L$16*O21/100,"--") -> -- | V21: =IF(AND(M21>10,N21="R"),I21*$L$16*O21/100*IF(M21>180,3,ROUND(M21/60,2)),"--") -> -- | W21: =IF(AND(M21>180,N21="R"),(ROUND(M21/60,2)-3)*I21*$L$16*0.1*O21/100,"--") -> -- | X21: =IF(N21="RF",ROUND(M21/60,2)*I21*$L$16*0.1,"--") -> -- | Y21: =IF(N21="RR",ROUND(M21/60,2)*I21*$L$16*0.1*O21/100,"--") -> -- | Z21: SI | AA21: =IF(F21="","",SUM(P21:Y21)*IF(Z21="SI",1,2)) -> 6448.11816
C22: 18 | D22: 299060 | E22: 281 | F22: GÜEMES - SAN JUANCITO 1 | G22: 132 | H22: 36.24000168 | I22: =$G$16/100*IF(H22>25,H22,25) -> 186.3475382 | J22: 2016-02-16T00:52:00 | K22: 2016-02-16T01:01:00 | L22: =IF(F22="","",(K22-J22)*24) -> 0.15 | M22: =IF(F22="","",ROUND((K22-J22)*24*60,0)) -> 9 | N22: F | O22: =IF(F22="","","--") -> -- | P22: =IF(N22="P",ROUND(M22/60,2)*I22*$L$16*0.01,"--") -> -- | Q22: =IF(N22="RP",I22*O22*ROUND(L22/60,2)*0.01*M22/100,"--") -> -- | R22: =IF(N22="F",I22*$L$16,"--") -> 5590.426147 | S22: =IF(AND(M22>10,N22="F"),I22*$L$16*IF(M22>180,3,ROUND((M22)/60,2)),"--") -> -- | T22: =IF(AND(M22>180,N22="F"),(ROUND(M22/60,2)-3)*I22*$L$16*0.1,"--") -> -- | U22: =IF(N22="R",I22*$L$16*O22/100,"--") -> -- | V22: =IF(AND(M22>10,N22="R"),I22*$L$16*O22/100*IF(M22>180,3,ROUND(M22/60,2)),"--") -> -- | W22: =IF(AND(M22>180,N22="R"),(ROUND(M22/60,2)-3)*I22*$L$16*0.1*O22/100,"--") -> -- | X22: =IF(N22="RF",ROUND(M22/60,2)*I22*$L$16*0.1,"--") -> -- | Y22: =IF(N22="RR",ROUND(M22/60,2)*I22*$L$16*0.1*O22/100,"--") -> -- | Z22: SI | AA22: =IF(F22="","",SUM(P22:Y22)*IF(Z22="SI",1,2)) -> 5590.426147
C23: 19 | D23: 299061 | E23: 2691 | F23: LOS PIZARROS - ESCABA | G23: 132 | H23: 21.39999962 | I23: 128.551 | J23: 2016-02-16T08:13:00 | K23: 2016-02-16T15:20:00 | L23: 7.116666667 | M23: 427 | N23: P | O23: -- | P23: 274.584936 | Q23: -- | R23: -- | S23: -- | T23: -- | U23: -- | V23: -- | W23: -- | X23: -- | Y23: -- | Z23: SI | AA23: 274.584936
C24: 20 | D24: 299072 | E24: 5878 | F24: EL TABACAL - ORAN | G24: 132 | H24: 12.04 | I24: 128.551 | J24: 2016-02-17T02:02:00 | K24: 2016-02-17T02:20:00 | L24: 0.2999999999 | M24: 18 | N24: F | O24: -- | P24: -- | Q24: -- | R24: 3856.53 | S24: 1156.959 | T24: -- | U24: -- | V24: -- | W24: -- | X24: -- | Y24: -- | Z24: SI | AA24: 5013.489
C25: 21 | D25: 299075 | E25: 2691 | F25: LOS PIZARROS - ESCABA | G25: 132 | H25: 21.39999962 | I25: 128.551 | J25: 2016-02-17T07:58:00 | K25: 2016-02-17T16:11:00 | L25: 8.216666667 | M25: 493 | N25: P | O25: -- | P25: 317.006766 | Q25: -- | R25: -- | S25: -- | T25: -- | U25: -- | V25: -- | W25: -- | X25: -- | Y25: -- | Z25: SI | AA25: 317.006766
C26: 22 | D26: 299089 | E26: 311 | F26: AGUILARES - VILLA QUINTEROS | G26: 132 | H26: 21 | I26: 128.551 | J26: 2016-02-17T23:50:00 | K26: 2016-02-17T23:54:00 | L26: 0.06666666671 | M26: 4 | N26: F | O26: -- | P26: -- | Q26: -- | R26: 3856.53 | S26: -- | T26: -- | U26: -- | V26: -- | W26: -- | X26: -- | Y26: -- | Z26: SI | AA26: 3856.53
C27: 23 | D27: 299100 | E27: 2691 | F27: LOS PIZARROS - ESCABA | G27: 132 | H27: 21.39999962 | I27: 128.551 | J27: 2016-02-18T07:38:00 | K27: 2016-02-18T16:17:00 | L27: 8.65 | M27: 519 | N27: P | O27: -- | P27: 333.589845 | Q27: -- | R27: -- | S27: -- | T27: -- | U27: -- | V27: -- | W27: -- | X27: -- | Y27: -- | Z27: SI | AA27: 333.589845
C28: 24 | D28: 299514 | E28: 4250 | F28: PAMPA GRANDE - TRANCAS | G28: 132 | H28: 55 | I28: 282.8122 | J28: 2016-02-23T09:12:00 | K28: 2016-02-23T16:08:00 | L28: 6.933333333 | M28: 416 | N28: P | O28: -- | P28: 587.9665638 | Q28: -- | R28: -- | S28: -- | T28: -- | U28: -- | V28: -- | W28: -- | X28: -- | Y28: -- | Z28: SI | AA28: 587.9665638
C29: 25 | D29: 299515 | E29: 281 | F29: GÜEMES - SAN JUANCITO 1 | G29: 132 | H29: 36.24000168 | I29: 186.3475382 | J29: 2016-02-23T22:43:00 | K29: 2016-02-24T17:25:00 | L29: 18.7 | M29: 1122 | N29: F | O29: -- | P29: -- | Q29: -- | R29: 5590.426147 | S29: 16771.27844 | T29: 8776.969051 | U29: -- | V29: -- | W29: -- | X29: -- | Y29: -- | Z29: SI | AA29: 31138.67364
C30: 26 | D30: 299516 | E30: 5672 | F30: GUEMES - CAMPO SANTO - MINETTI | G30: 132 | H30: 41.8 | I30: 214.937272 | J30: 2016-02-24T01:22:00 | K30: 2016-02-24T14:24:00 | L30: 13.03333333 | M30: 782 | N30: F | O30: -- | P30: -- | Q30: -- | R30: 6448.11816 | S30: 19344.35448 | T30: 6467.462514 | U30: -- | V30: -- | W30: -- | X30: -- | Y30: -- | Z30: SI | AA30: 32259.93515
C31: 27 | D31: 299518 | E31: 2905 | F31: LOS PIZARROS - HUACRA | G31: 132 | H31: 28.5 | I31: 146.54814 | J31: 2016-02-24T07:46:00 | K31: 2016-02-24T15:11:00 | L31: 7.416666667 | M31: 445 | N31: P | O31: -- | P31: 326.2161596 | Q31: -- | R31: -- | S31: -- | T31: -- | U31: -- | V31: -- | W31: -- | X31: -- | Y31: -- | Z31: SI | AA31: 326.2161596
C32: 28 | D32: 299520 | E32: 3565 | F32: CABRA CORRAL - SALTA ESTE | G32: 132 | H32: 55 | I32: 282.8122 | J32: 2016-02-25T00:16:00 | K32: 2016-02-25T00:28:00 | L32: 0.2 | M32: 12 | N32: F | O32: -- | P32: -- | Q32: -- | R32: 8484.366 | S32: 1696.8732 | T32: -- | U32: -- | V32: -- | W32: -- | X32: -- | Y32: -- | Z32: SI | AA32: 10181.2392
C33: 29 | D33: 299521 | E33: 2905 | F33: LOS PIZARROS - HUACRA | G33: 132 | H33: 28.5 | I33: 146.54814 | J33: 2016-02-25T07:34:00 | K33: 2016-02-25T16:31:00 | L33: 8.95 | M33: 537 | N33: P | O33: -- | P33: 393.4817559 | Q33: -- | R33: -- | S33: -- | T33: -- | U33: -- | V33: -- | W33: -- | X33: -- | Y33: -- | Z33: SI | AA33: 393.4817559
C34: 30 | D34: 299522 | E34: 2905 | F34: LOS PIZARROS - HUACRA | G34: 132 | H34: 28.5 | I34: 146.54814 | J34: 2016-02-26T08:11:00 | K34: 2016-02-26T15:03:00 | L34: 6.866666667 | M34: 412 | N34: P | O34: -- | P34: 302.0357165 | Q34: -- | R34: -- | S34: -- | T34: -- | U34: -- | V34: -- | W34: -- | X34: -- | Y34: -- | Z34: SI | AA34: 302.0357165
C35: 31 | D35: 299541 | E35: 311 | F35: AGUILARES - VILLA QUINTEROS | G35: 132 | H35: 21 | I35: 128.551 | J35: 2016-02-26T19:31:00 | K35: 2016-02-26T19:34:00 | L35: 0.04999999999 | M35: 3 | N35: F | O35: -- | P35: -- | Q35: -- | R35: 3856.53 | S35: -- | T35: -- | U35: -- | V35: -- | W35: -- | X35: -- | Y35: -- | Z35: SI | AA35: 3856.53
C36: 32 | D36: 299546 | E36: 287 | F36: AGUA BLANCA - INDEPENDENCIA TUC | G36: 132 | H36: 34.13999939 | I36: 175.5492425 | J36: 2016-02-26T19:42:00 | K36: 2016-02-26T19:44:00 | L36: 0.03333333344 | M36: 2 | N36: F | O36: -- | P36: -- | Q36: -- | R36: 5266.477274 | S36: -- | T36: -- | U36: -- | V36: -- | W36: -- | X36: -- | Y36: -- | Z36: SI | AA36: 5266.477274
C37: 33 | D37: 299552 | E37: 5522 | F37: SENDA HACHADA - TARTAGAL | G37: 132 | H37: 58.5 | I37: 300.80934 | J37: 2016-02-27T23:51:00 | K37: 2016-02-27T23:58:00 | L37: =IF(F37="","",(K37-J37)*24) -> 0.1166666667 | M37: =IF(F37="","",ROUND((K37-J37)*24*60,0)) -> 7 | N37: F | O37: =IF(F37="","","--") -> -- | P37: =IF(N37="P",ROUND(M37/60,2)*I37*$L$16*0.01,"--") -> -- | Q37: =IF(N37="RP",I37*O37*ROUND(L37/60,2)*0.01*M37/100,"--") -> -- | R37: =IF(N37="F",I37*$L$16,"--") -> 9024.2802 | S37: =IF(AND(M37>10,N37="F"),I37*$L$16*IF(M37>180,3,ROUND((M37)/60,2)),"--") -> -- | T37: =IF(AND(M37>180,N37="F"),(ROUND(M37/60,2)-3)*I37*$L$16*0.1,"--") -> -- | U37: =IF(N37="R",I37*$L$16*O37/100,"--") -> -- | V37: =IF(AND(M37>10,N37="R"),I37*$L$16*O37/100*IF(M37>180,3,ROUND(M37/60,2)),"--") -> -- | W37: =IF(AND(M37>180,N37="R"),(ROUND(M37/60,2)-3)*I37*$L$16*0.1*O37/100,"--") -> -- | X37: =IF(N37="RF",ROUND(M37/60,2)*I37*$L$16*0.1,"--") -> -- | Y37: =IF(N37="RR",ROUND(M37/60,2)*I37*$L$16*0.1*O37/100,"--") -> -- | Z37: SI | AA37: =IF(F37="","",SUM(P37:Y37)*IF(Z37="SI",1,2)) -> 9024.2802
C38: 34 | D38: 299566 | E38: 5522 | F38: SENDA HACHADA - TARTAGAL | G38: 132 | H38: 58.5 | I38: 300.80934 | J38: 2016-02-28T23:29:00 | K38: 2016-02-28T23:35:00 | L38: =IF(F38="","",(K38-J38)*24) -> 0.09999999998 | M38: =IF(F38="","",ROUND((K38-J38)*24*60,0)) -> 6 | N38: F | O38: =IF(F38="","","--") -> -- | P38: =IF(N38="P",ROUND(M38/60,2)*I38*$L$16*0.01,"--") -> -- | Q38: =IF(N38="RP",I38*O38*ROUND(L38/60,2)*0.01*M38/100,"--") -> -- | R38: =IF(N38="F",I38*$L$16,"--") -> 9024.2802 | S38: =IF(AND(M38>10,N38="F"),I38*$L$16*IF(M38>180,3,ROUND((M38)/60,2)),"--") -> -- | T38: =IF(AND(M38>180,N38="F"),(ROUND(M38/60,2)-3)*I38*$L$16*0.1,"--") -> -- | U38: =IF(N38="R",I38*$L$16*O38/100,"--") -> -- | V38: =IF(AND(M38>10,N38="R"),I38*$L$16*O38/100*IF(M38>180,3,ROUND(M38/60,2)),"--") -> -- | W38: =IF(AND(M38>180,N38="R"),(ROUND(M38/60,2)-3)*I38*$L$16*0.1*O38/100,"--") -> -- | X38: =IF(N38="RF",ROUND(M38/60,2)*I38*$L$16*0.1,"--") -> -- | Y38: =IF(N38="RR",ROUND(M38/60,2)*I38*$L$16*0.1*O38/100,"--") -> -- | Z38: SI | AA38: =IF(F38="","",SUM(P38:Y38)*IF(Z38="SI",1,2)) -> 9024.2802
G39: 132 | I39: 128.551 | L39: =IF(F39="","",(K39-J39)*24) ->  | M39: =IF(F39="","",ROUND((K39-J39)*24*60,0)) ->  | O39: =IF(F39="","","--") ->  | P39: =IF(N39="P",ROUND(M39/60,2)*I39*$L$16*0.01,"--") -> -- | Q39: =IF(N39="RP",I39*O39*ROUND(L39/60,2)*0.01*M39/100,"--") -> -- | R39: =IF(N39="F",I39*$L$16,"--") -> -- | S39: =IF(AND(M39>10,N39="F"),I39*$L$16*IF(M39>180,3,ROUND((M39)/60,2)),"--") -> -- | T39: =IF(AND(M39>180,N39="F"),(ROUND(M39/60,2)-3)*I39*$L$16*0.1,"--") -> -- | U39: =IF(N39="R",I39*$L$16*O39/100,"--") -> -- | V39: =IF(AND(M39>10,N39="R"),I39*$L$16*O39/100*IF(M39>180,3,ROUND(M39/60,2)),"--") -> -- | W39: =IF(AND(M39>180,N39="R"),(ROUND(M39/60,2)-3)*I39*$L$16*0.1*O39/100,"--") -> -- | X39: =IF(N39="RF",ROUND(M39/60,2)*I39*$L$16*0.1,"--") -> -- | Y39: =IF(N39="RR",ROUND(M39/60,2)*I39*$L$16*0.1*O39/100,"--") -> -- | AA39: =IF(F39="","",SUM(P39:Y39)*IF(Z39="SI",1,2)) -> 
C41: (²) | D41: P - PROGRAMADA ; F - FORZADA | P41: =SUM(P19:P40) -> 2534.881743 | Q41: 0 | R41: 67446.08229 | S41: 38969.46512 | T41: 15244.43157 | U41: 0 | V41: 0 | W41: 0 | X41: 0 | Y41: 0 | AA41: =ROUND(SUM(AA19:AA40),2) -> 337058.35

Sheet LI-02 (3)
B2: =+'TOT-0216'!B2 -> ANEXO V al Memorandum D.T.E.E. N° 356 / 2016
A4: ENTE NACIONAL REGULADOR
A5: DE LA ELECTRICIDAD
F8: SISTEMA DE TRANSPORTE DE ENERGÍA ELÉCTRICA POR DISTRIBUCIÓN TRONCAL - TRANSNOA S.A.
F10: 1.- LÍNEAS
F12: 1.1.- Equipamiento propio
B14: ='TOT-0216'!B14 -> Desde el 01 al 29 de Febrero de 2016
F16: $/100 km-h : LINEAS 132 kV | G16: 514.204 | K16: FACTOR DE PENALIZACION K = | L16: =30*'TOT-0216'!B13 -> 30 | M16: =IF(L16=30," ",IF(L16=60,"Coeficiente duplicado por tasa de falla >4 Sal. x año/100 km.","REVISAR COEFICIENTE")) -> 
C17: 3 | D17: 4 | E17: 5 | F17: 6 | G17: 7 | H17: 8 | I17: 9 | J17: 10 | K17: 11 | L17: 12 | M17: 13 | N17: 14 | O17: 15 | P17: 16 | Q17: 17 | R17: 18 | S17: 19 | T17: 20 | U17: 21 | V17: 22 | W17: 23 | X17: 24 | Y17: 25 | Z17: 26 | AA17: 27
C18: N° | D18: INDISP | E18: ID EQUIPO | F18: LÍNEAS | G18: U [kV] | H18: Long. [km] | I18: $/h | J18: Salida | K18: Entrada | L18: Hs. Indisp | M18: Minutos Indisp. | N18: Tipo Sal.(²) | O18: C.R. % | P18: PENALIZ. PROGRAM. | Q18: REDUCC. PROGRAM. | R18: PENALIZACION FORZADA Por Salida 1ras. 3 hs. hs. Restantes | U18: REDUCC. FORZADA Por Salida 1ras. 3 hs. hs. Restantes | X18: RESTANTE FORZADA | Y18: REDUCC. RESTANTE | Z18: Informó en Térm. | AA18: TOTAL PENALIZAC.
AA19: ='LI-02 (2)'!AA41 -> 337058.35
C21: 35 | D21: 299753 | E21: 5522 | F21: SENDA HACHADA - TARTAGAL | G21: 132 | H21: 58.5 | I21: =$G$16/100*IF(H21>25,H21,25) -> 300.80934 | J21: 2016-02-29T02:53:00 | K21: 2016-02-29T02:56:00 | L21: =IF(F21="","",(K21-J21)*24) -> 0.04999999999 | M21: =IF(F21="","",ROUND((K21-J21)*24*60,0)) -> 3 | N21: F | O21: =IF(F21="","","--") -> -- | P21: =IF(N21="P",ROUND(M21/60,2)*I21*$L$16*0.01,"--") -> -- | Q21: =IF(N21="RP",I21*O21*ROUND(L21/60,2)*0.01*M21/100,"--") -> -- | R21: =IF(N21="F",I21*$L$16,"--") -> 9024.2802 | S21: =IF(AND(M21>10,N21="F"),I21*$L$16*IF(M21>180,3,ROUND((M21)/60,2)),"--") -> -- | T21: =IF(AND(M21>180,N21="F"),(ROUND(M21/60,2)-3)*I21*$L$16*0.1,"--") -> -- | U21: =IF(N21="R",I21*$L$16*O21/100,"--") -> -- | V21: =IF(AND(M21>10,N21="R"),I21*$L$16*O21/100*IF(M21>180,3,ROUND(M21/60,2)),"--") -> -- | W21: =IF(AND(M21>180,N21="R"),(ROUND(M21/60,2)-3)*I21*$L$16*0.1*O21/100,"--") -> -- | X21: =IF(N21="RF",ROUND(M21/60,2)*I21*$L$16*0.1,"--") -> -- | Y21: =IF(N21="RR",ROUND(M21/60,2)*I21*$L$16*0.1*O21/100,"--") -> -- | Z21: SI | AA21: =IF(F21="","",SUM(P21:Y21)*IF(Z21="SI",1,2)) -> 9024.2802
C22: 36 | D22: 299759 | E22: 5443 | F22: NONOGASTA - VILLA UNIÓN | G22: 132 | H22: 82.1 | I22: =$G$16/100*IF(H22>25,H22,25) -> 422.161484 | J22: 2016-02-29T08:47:00 | K22: 2016-02-29T14:41:00 | L22: =IF(F22="","",(K22-J22)*24) -> 5.9 | M22: =IF(F22="","",ROUND((K22-J22)*24*60,0)) -> 354 | N22: F | O22: =IF(F22="","","--") -> -- | P22: =IF(N22="P",ROUND(M22/60,2)*I22*$L$16*0.01,"--") -> -- | Q22: =IF(N22="RP",I22*O22*ROUND(L22/60,2)*0.01*M22/100,"--") -> -- | R22: =IF(N22="F",I22*$L$16,"--") -> 12664.84452 | S22: =IF(AND(M22>10,N22="F"),I22*$L$16*IF(M22>180,3,ROUND((M22)/60,2)),"--") -> 37994.53356 | T22: =IF(AND(M22>180,N22="F"),(ROUND(M22/60,2)-3)*I22*$L$16*0.1,"--") -> 3672.804911 | U22: =IF(N22="R",I22*$L$16*O22/100,"--") -> -- | V22: =IF(AND(M22>10,N22="R"),I22*$L$16*O22/100*IF(M22>180,3,ROUND(M22/60,2)),"--") -> -- | W22: =IF(AND(M22>180,N22="R"),(ROUND(M22/60,2)-3)*I22*$L$16*0.1*O22/100,"--") -> -- | X22: =IF(N22="RF",ROUND(M22/60,2)*I22*$L$16*0.1,"--") -> -- | Y22: =IF(N22="RR",ROUND(M22/60,2)*I22*$L$16*0.1*O22/100,"--") -> -- | Z22: SI | AA22: =IF(F22="","",SUM(P22:Y22)*IF(Z22="SI",1,2)) -> 54332.18299
I23: 128.551 | O23: =IF(F23="","","--") ->  | P23: =IF(N23="P",ROUND(M23/60,2)*I23*$L$16*0.01,"--") -> -- | Q23: =IF(N23="RP",I23*O23*ROUND(L23/60,2)*0.01*M23/100,"--") -> -- | R23: =IF(N23="F",I23*$L$16,"--") -> -- | S23: =IF(AND(M23>10,N23="F"),I23*$L$16*IF(M23>180,3,ROUND((M23)/60,2)),"--") -> -- | T23: =IF(AND(M23>180,N23="F"),(ROUND(M23/60,2)-3)*I23*$L$16*0.1,"--") -> -- | U23: =IF(N23="R",I23*$L$16*O23/100,"--") -> -- | V23: =IF(AND(M23>10,N23="R"),I23*$L$16*O23/100*IF(M23>180,3,ROUND(M23/60,2)),"--") -> -- | W23: =IF(AND(M23>180,N23="R"),(ROUND(M23/60,2)-3)*I23*$L$16*0.1*O23/100,"--") -> -- | X23: =IF(N23="RF",ROUND(M23/60,2)*I23*$L$16*0.1,"--") -> -- | Y23: =IF(N23="RR",ROUND(M23/60,2)*I23*$L$16*0.1*O23/100,"--") -> -- | Z23: =IF(F23="","","SI") -> 
I24: 128.551 | P24: -- | Q24: -- | R24: -- | S24: -- | T24: -- | U24: -- | V24: -- | W24: -- | X24: -- | Y24: -- | Z24: =IF(F24="","","SI") -> 
I25: 128.551 | P25: -- | Q25: -- | R25: -- | S25: -- | T25: -- | U25: -- | V25: -- | W25: -- | X25: -- | Y25: --
I26: 128.551 | P26: -- | Q26: -- | R26: -- | S26: -- | T26: -- | U26: -- | V26: -- | W26: -- | X26: -- | Y26: --
I27: 128.551 | P27: -- | Q27: -- | R27: -- | S27: -- | T27: -- | U27: -- | V27: -- | W27: -- | X27: -- | Y27: --
I28: 128.551 | P28: -- | Q28: -- | R28: -- | S28: -- | T28: -- | U28: -- | V28: -- | W28: -- | X28: -- | Y28: --
I29: 128.551 | P29: -- | Q29: -- | R29: -- | S29: -- | T29: -- | U29: -- | V29: -- | W29: -- | X29: -- | Y29: --
I30: 128.551 | P30: -- | Q30: -- | R30: -- | S30: -- | T30: -- | U30: -- | V30: -- | W30: -- | X30: -- | Y30: --
I31: 128.551 | P31: -- | Q31: -- | R31: -- | S31: -- | T31: -- | U31: -- | V31: -- | W31: -- | X31: -- | Y31: --
I32: 128.551 | P32: -- | Q32: -- | R32: -- | S32: -- | T32: -- | U32: -- | V32: -- | W32: -- | X32: -- | Y32: --
I33: 128.551 | P33: -- | Q33: -- | R33: -- | S33: -- | T33: -- | U33: -- | V33: -- | W33: -- | X33: -- | Y33: --
I34: 128.551 | P34: -- | Q34: -- | R34: -- | S34: -- | T34: -- | U34: -- | V34: -- | W34: -- | X34: -- | Y34: --
I35: 128.551 | P35: -- | Q35: -- | R35: -- | S35: -- | T35: -- | U35: -- | V35: -- | W35: -- | X35: -- | Y35: --
I36: 128.551 | P36: -- | Q36: -- | R36: -- | S36: -- | T36: -- | U36: -- | V36: -- | W36: -- | X36: -- | Y36: --
I37: 128.551 | P37: -- | Q37: -- | R37: -- | S37: -- | T37: -- | U37: -- | V37: -- | W37: -- | X37: -- | Y37: --
I38: 128.551 | L38: =IF(F38="","",(K38-J38)*24) ->  | M38: =IF(F38="","",ROUND((K38-J38)*24*60,0)) ->  | O38: =IF(F38="","","--") ->  | P38: =IF(N38="P",ROUND(M38/60,2)*I38*$L$16*0.01,"--") -> -- | Q38: =IF(N38="RP",I38*O38*ROUND(L38/60,2)*0.01*M38/100,"--") -> -- | R38: =IF(N38="F",I38*$L$16,"--") -> -- | S38: =IF(AND(M38>10,N38="F"),I38*$L$16*IF(M38>180,3,ROUND((M38)/60,2)),"--") -> -- | T38: =IF(AND(M38>180,N38="F"),(ROUND(M38/60,2)-3)*I38*$L$16*0.1,"--") -> -- | U38: =IF(N38="R",I38*$L$16*O38/100,"--") -> -- | V38: =IF(AND(M38>10,N38="R"),I38*$L$16*O38/100*IF(M38>180,3,ROUND(M38/60,2)),"--") -> -- | W38: =IF(AND(M38>180,N38="R"),(ROUND(M38/60,2)-3)*I38*$L$16*0.1*O38/100,"--") -> -- | X38: =IF(N38="RF",ROUND(M38/60,2)*I38*$L$16*0.1,"--") -> -- | Y38: =IF(N38="RR",ROUND(M38/60,2)*I38*$L$16*0.1*O38/100,"--") -> -- | Z38: =IF(F38="","","SI") ->  | AA38: =IF(F38="","",SUM(P38:Y38)*IF(Z38="SI",1,2)) -> 
C40: (²) | D40: F - FORZADA | P40: =SUM(P19:P39) -> 0 | Q40: 0 | R40: 21689.12472 | S40: 37994.53356 | T40: 3672.804911 | U40: 0 | V40: 0 | W40: 0 | X40: 0 | Y40: 0 | AA40: =ROUND(SUM(AA19:AA39),2) -> 400414.81

Sheet LI-EDESA-02 (1)
B2: ='TOT-0216'!B2 -> ANEXO V al Memorandum D.T.E.E. N° 356 / 2016
A4: ENTE NACIONAL REGULADOR
A5: DE LA ELECTRICIDAD
F8: SISTEMA DE TRANSPORTE DE ENERGÍA ELÉCTRICA POR DISTRIBUCIÓN TRONCAL - TRANSNOA S.A.
F10: 1.- LÍNEAS
F12: 1.2.- Transportista Independiente EDESA S.A.
B14: ='TOT-0216'!B14 -> Desde el 01 al 29 de Febrero de 2016
F16: $/100 km-h : LINEAS 132 kV | G16: 51.924 | K16: FACTOR DE PENALIZACION K = | L16: =30*'TOT-0216'!B13 -> 30 | M16: =IF(L16=30," ",IF(L16=60,"Coeficiente duplicado por tasa de falla >4 Sal. x año/100 km.","REVISAR COEFICIENTE")) -> 
C17: 3 | D17: 4 | E17: 5 | F17: 6 | G17: 7 | H17: 8 | I17: 9 | J17: 10 | K17: 11 | L17: 12 | M17: 13 | N17: 14 | O17: 15 | P17: 16 | Q17: 17 | R17: 18 | S17: 19 | T17: 20 | U17: 21 | V17: 22 | W17: 23 | X17: 24 | Y17: 25 | Z17: 26 | AA17: 27
C18: N° | D18: INDISP | E18: ID EQUIPO | F18: LÍNEAS | G18: U [kV] | H18: Long. [km] | I18: $/h | J18: Salida | K18: Entrada | L18: Hs. Indisp | M18: Minutos Indisp. | N18: Tipo Sal.(²) | O18: C.R. % | P18: PENALIZ. PROGRAM. | Q18: REDUCC. PROGRAM. | R18: PENALIZACION FORZADA Por Salida 1ras. 3 hs. hs. Restantes | U18: REDUCC. FORZADA Por Salida 1ras. 3 hs. hs. Restantes | X18: RESTANTE FORZADA | Y18: REDUCC. RESTANTE | Z18: Informó en Térm. | AA18: TOTAL PENALIZAC.
C21: 37 | D21: 299502 | E21: 2686 | F21: METAN - EL TUNAL | G21: 132 | H21: 75.59999847 | I21: =$G$16/100*IF(H21>25,H21,25) -> 39.25454321 | J21: 2016-02-22T11:43:00 | K21: 2016-02-22T20:12:00 | L21: =IF(F21="","",(K21-J21)*24) -> 8.483333333 | M21: =IF(F21="","",ROUND((K21-J21)*24*60,0)) -> 509 | N21: F | O21: =IF(F21="","","--") -> -- | P21: =IF(N21="P",ROUND(M21/60,2)*I21*$L$16*0.01,"--") -> -- | Q21: =IF(N21="RP",I21*O21*ROUND(L21/60,2)*0.01*M21/100,"--") -> -- | R21: =IF(N21="F",I21*$L$16,"--") -> 1177.636296 | S21: =IF(AND(M21>10,N21="F"),I21*$L$16*IF(M21>180,3,ROUND((M21)/60,2)),"--") -> 3532.908889 | T21: =IF(AND(M21>180,N21="F"),(ROUND(M21/60,2)-3)*I21*$L$16*0.1,"--") -> 645.3446903 | U21: =IF(N21="R",I21*$L$16*O21/100,"--") -> -- | V21: =IF(AND(M21>10,N21="R"),I21*$L$16*O21/100*IF(M21>180,3,ROUND(M21/60,2)),"--") -> -- | W21: =IF(AND(M21>180,N21="R"),(ROUND(M21/60,2)-3)*I21*$L$16*0.1*O21/100,"--") -> -- | X21: =IF(N21="RF",ROUND(M21/60,2)*I21*$L$16*0.1,"--") -> -- | Y21: =IF(N21="RR",ROUND(M21/60,2)*I21*$L$16*0.1*O21/100,"--") -> -- | Z21: SI | AA21: =IF(F21="","",SUM(P21:Y21)*IF(Z21="SI",1,2)) -> 5355.889875
I22: =$G$16/100*IF(H22>25,H22,25) -> 12.981 | P22: -- | Q22: -- | R22: -- | S22: -- | T22: -- | U22: -- | V22: -- | W22: -- | X22: -- | Y22: -- | Z22: =IF(F22="","","SI") -> 
I23: 12.981 | P23: -- | Q23: -- | R23: -- | S23: -- | T23: -- | U23: -- | V23: -- | W23: -- | X23: -- | Y23: --
I24: 12.981 | P24: -- | Q24: -- | R24: -- | S24: -- | T24: -- | U24: -- | V24: -- | W24: -- | X24: -- | Y24: --
I25: 12.981 | P25: -- | Q25: -- | R25: -- | S25: -- | T25: -- | U25: -- | V25: -- | W25: -- | X25: -- | Y25: --
I26: 12.981 | P26: -- | Q26: -- | R26: -- | S26: -- | T26: -- | U26: -- | V26: -- | W26: -- | X26: -- | Y26: --
I27: 12.981 | P27: -- | Q27: -- | R27: -- | S27: -- | T27: -- | U27: -- | V27: -- | W27: -- | X27: -- | Y27: --
I28: 12.981 | P28: -- | Q28: -- | R28: -- | S28: -- | T28: -- | U28: -- | V28: -- | W28: -- | X28: -- | Y28: --
I29: 12.981 | P29: -- | Q29: -- | R29: -- | S29: -- | T29: -- | U29: -- | V29: -- | W29: -- | X29: -- | Y29: --
I30: 12.981 | P30: -- | Q30: -- | R30: -- | S30: -- | T30: -- | U30: -- | V30: -- | W30: -- | X30: -- | Y30: --
I31: 12.981 | P31: -- | Q31: -- | R31: -- | S31: -- | T31: -- | U31: -- | V31: -- | W31: -- | X31: -- | Y31: --
I32: 12.981 | P32: -- | Q32: -- | R32: -- | S32: -- | T32: -- | U32: -- | V32: -- | W32: -- | X32: -- | Y32: --
I33: 12.981 | P33: -- | Q33: -- | R33: -- | S33: -- | T33: -- | U33: -- | V33: -- | W33: -- | X33: -- | Y33: --
I34: 12.981 | P34: -- | Q34: -- | R34: -- | S34: -- | T34: -- | U34: -- | V34: -- | W34: -- | X34: -- | Y34: --
I35: 12.981 | P35: -- | Q35: -- | R35: -- | S35: -- | T35: -- | U35: -- | V35: -- | W35: -- | X35: -- | Y35: --
I36: 12.981 | P36: -- | Q36: -- | R36: -- | S36: -- | T36: -- | U36: -- | V36: -- | W36: -- | X36: -- | Y36: --
I37: 12.981 | P37: -- | Q37: -- | R37: -- | S37: -- | T37: -- | U37: -- | V37: -- | W37: -- | X37: -- | Y37: --
I38: 12.981 | P38: -- | Q38: -- | R38: -- | S38: -- | T38: -- | U38: -- | V38: -- | W38: -- | X38: -- | Y38: --
I39: 12.981 | P39: -- | Q39: -- | R39: -- | S39: -- | T39: -- | U39: -- | V39: -- | W39: -- | X39: -- | Y39: --
I40: 12.981 | P40: -- | Q40: -- | R40: -- | S40: -- | T40: -- | U40: -- | V40: -- | W40: -- | X40: -- | Y40: --
C42: (²) | D42: F - FORZADA | P42: =SUM(P19:P41) -> 0 | Q42: 0 | R42: 1177.636296 | S42: 3532.908889 | T42: 645.3446903 | U42: 0 | V42: 0 | W42: 0 | X42: 0 | Y42: 0 | AA42: =ROUND(SUM(AA19:AA41),2) -> 5355.89

Sheet T-02 (1)
B2: =+'TOT-0216'!B2 -> ANEXO V al Memorandum D.T.E.E. N° 356 / 2016
A4: ENTE NACIONAL REGULADOR
A5: DE LA ELECTRICIDAD
F8: SISTEMA DE TRANSPORTE DE ENERGÍA ELÉCTRICA POR DISTRIBUCIÓN TRONCAL - TRANSNOA S.A.
F10: 2.- CONEXIÓN
F12: 2.1.- Transformación
F14: 2.1.1.- Equipamiento propio
B16: ='TOT-0216'!B14 -> Desde el 01 al 29 de Febrero de 2016
F18: Por Transformador por MVA $ = | I18: 1.79 | K18: 0.6747 | L18: Res. SE 1/03
F19: Coeficiente de penalización por salida forzada = | I19: =30*'TOT-0216'!B13 -> 30 | K19: =IF(I19=30," ",IF(I19=60," Coeficiente duplicado por tasa de falla >4 Sal. x año/100 km.","REVISAR COEFICIENTE")) -> 
C20: 3 | D20: 4 | E20: 5 | F20: 6 | G20: 7 | H20: 8 | I20: 9 | J20: 10 | K20: 11 | L20: 12 | M20: 13 | N20: 14 | O20: 15 | P20: 16 | Q20: 17 | R20: 18 | S20: 19 | T20: 20 | U20: 21 | V20: 22 | W20: 23 | X20: 24 | Y20: 25 | Z20: 26 | AA20: 27 | AB20: 28 | AC20: 29
C21: N° | D21: INDISP | E21: ID EQUIPO | F21: ESTACIÓN TRANSFORMADORA | G21: EQUIPO | H21: POT. [MVA] | I21: U [kV] | J21: $/h | K21: Salida | L21: Entrada | M21: Hs Indisp. | N21: Mtos. Indisp. | O21: Tipo Sal.(²) | P21: AUT. | Q21: C.R. % | R21: E.N.S. | S21: K (P;ENS) | T21: PENALIZ. PROGRAM. | U21: REDUCC. PROGRAM. | V21: PENALIZAC. FORZADA Por Salida hs. Restantes | X21: REDUCC. FORZADA Por Salida hs. Restantes | Z21: RESTANTE FORZADA | AA21: REDUCC. RESTANTE | AB21: Informó en Térm. | AC21: TOTAL PENALIZAC.
C24: 38 | D24: 297468 | E24: 5063 | F24: QUIMILI | G24: TRAFO 2 | H24: 15 | I24: 132/33/13,2 | J24: =H24*$I$18 -> 26.85 | K24: 2016-02-01 | L24: 2016-02-29T23:59:59 | M24: =IF(F24="","",(L24-K24)*24) -> 695.9997222 | N24: =IF(F24="","",ROUND((L24-K24)*24*60,0)) -> 41760 | O24: P | P24: =IF(F24="","",IF(OR(O24="P",O24="RP"),"--","NO")) -> -- | Q24: 0,000 | R24: NO | S24: =$I$19*IF(R24="SI",1,0.1)*IF(OR(O24="P",O24="RP"),0.1,1) -> 0.3 | T24: =IF(O24="P",J24*S24*ROUND(N24/60,2),"--") -> 5606.28 | U24: =IF(O24="RP",J24*S24*Q24/100*ROUND(N24/60,2),"--") -> -- | V24: =IF(AND(O24="F",P24="NO"),J24*S24,"--") -> -- | W24: =IF(O24="F",J24*S24*ROUND(N24/60,2),"--") -> -- | X24: =IF(AND(O24="R",P24="NO"),J24*S24*Q24/100,"--") -> -- | Y24: =IF(O24="R",J24*S24*ROUND(N24/60,2)*Q24/100,"--") -> -- | Z24: =IF(O24="RF",J24*S24*ROUND(N24/60,2),"--") -> -- | AA24: =IF(O24="RR",J24*S24*ROUND(N24/60,2)*Q24/100,"--") -> -- | AB24: SI | AC24: =IF(F24="","",SUM(T24:AA24)*IF(AB24="SI",1,2)) -> 5606.28
C25: 39 | D25: 298245 | E25: 3105 | F25: SANTIAGO CENTRO | G25: TRAFO 2 | H25: 30 | I25: 132/33/13,2 | J25: 53.7 | K25: 2016-02-01 | L25: 2016-02-29T23:59:59 | M25: =IF(F25="","",(L25-K25)*24) -> 695.9997222 | N25: =IF(F25="","",ROUND((L25-K25)*24*60,0)) -> 41760 | O25: RP | P25: =IF(F25="","",IF(OR(O25="P",O25="RP"),"--","NO")) -> -- | Q25: 40 | R25: NO | S25: =$I$19*IF(R25="SI",1,0.1)*IF(OR(O25="P",O25="RP"),0.1,1) -> 0.3 | T25: =IF(O25="P",J25*S25*ROUND(N25/60,2),"--") -> -- | U25: =IF(O25="RP",J25*S25*Q25/100*ROUND(N25/60,2),"--") -> 4485.024 | V25: =IF(AND(O25="F",P25="NO"),J25*S25,"--") -> -- | W25: =IF(O25="F",J25*S25*ROUND(N25/60,2),"--") -> -- | X25: =IF(AND(O25="R",P25="NO"),J25*S25*Q25/100,"--") -> -- | Y25: =IF(O25="R",J25*S25*ROUND(N25/60,2)*Q25/100,"--") -> -- | Z25: =IF(O25="RF",J25*S25*ROUND(N25/60,2),"--") -> -- | AA25: =IF(O25="RR",J25*S25*ROUND(N25/60,2)*Q25/100,"--") -> -- | AB25: SI | AC25: 4485.024
C26: 40 | D26: 298529 | E26: 5568 | F26: INDEPENDENCIA | G26: TRAFO 2 | H26: 30 | I26: 132/33/13,2 | J26: 53.7 | K26: 2016-02-02T08:47:00 | L26: 2016-02-02T16:52:00 | M26: =IF(F26="","",(L26-K26)*24) -> 8.083333333 | N26: =IF(F26="","",ROUND((L26-K26)*24*60,0)) -> 485 | O26: F | P26: =IF(F26="","",IF(OR(O26="P",O26="RP"),"--","NO")) -> NO | Q26: 0,000 | R26: NO | S26: =$I$19*IF(R26="SI",1,0.1)*IF(OR(O26="P",O26="RP"),0.1,1) -> 3 | T26: =IF(O26="P",J26*S26*ROUND(N26/60,2),"--") -> -- | U26: =IF(O26="RP",J26*S26*Q26/100*ROUND(N26/60,2),"--") -> -- | V26: =IF(AND(O26="F",P26="NO"),J26*S26,"--") -> 161.1 | W26: =IF(O26="F",J26*S26*ROUND(N26/60,2),"--") -> 1301.688 | X26: =IF(AND(O26="R",P26="NO"),J26*S26*Q26/100,"--") -> -- | Y26: =IF(O26="R",J26*S26*ROUND(N26/60,2)*Q26/100,"--") -> -- | Z26: =IF(O26="RF",J26*S26*ROUND(N26/60,2),"--") -> -- | AA26: =IF(O26="RR",J26*S26*ROUND(N26/60,2)*Q26/100,"--") -> -- | AB26: SI | AC26: 1462.788
C27: 41 | D27: 298532 | E27: 5453 | F27: CIRCUNVALACION | G27: TRAFO 1 | H27: 30 | I27: 132/33/13,2 | J27: 53.7 | K27: 2016-02-03T00:59:00 | L27: 2016-02-03T01:46:00 | M27: =IF(F27="","",(L27-K27)*24) -> 0.7833333333 | N27: =IF(F27="","",ROUND((L27-K27)*24*60,0)) -> 47 | O27: R | P27: =IF(F27="","",IF(OR(O27="P",O27="RP"),"--","NO")) -> NO | Q27: 60 | R27: SI | S27: =$I$19*IF(R27="SI",1,0.1)*IF(OR(O27="P",O27="RP"),0.1,1) -> 30 | T27: =IF(O27="P",J27*S27*ROUND(N27/60,2),"--") -> -- | U27: =IF(O27="RP",J27*S27*Q27/100*ROUND(N27/60,2),"--") -> -- | V27: =IF(AND(O27="F",P27="NO"),J27*S27,"--") -> -- | W27: =IF(O27="F",J27*S27*ROUND(N27/60,2),"--") -> -- | X27: =IF(AND(O27="R",P27="NO"),J27*S27*Q27/100,"--") -> 966.6 | Y27: =IF(O27="R",J27*S27*ROUND(N27/60,2)*Q27/100,"--") -> 753.948 | Z27: =IF(O27="RF",J27*S27*ROUND(N27/60,2),"--") -> -- | AA27: =IF(O27="RR",J27*S27*ROUND(N27/60,2)*Q27/100,"--") -> -- | AB27: SI | AC27: 1720.548
C28: 42 | D28: 298538 | E28: 3623 | F28: BURRUYACU | G28: TRAFO 1 | H28: 15 | I28: 132/33/13,2 | J28: 26.85 | K28: 2016-02-04T23:58:00 | L28: 2016-02-05T02:36:00 | M28: =IF(F28="","",(L28-K28)*24) -> 2.633333333 | N28: =IF(F28="","",ROUND((L28-K28)*24*60,0)) -> 158 | O28: R | P28: =IF(F28="","",IF(OR(O28="P",O28="RP"),"--","NO")) -> NO | Q28: 40 | R28: SI | S28: =$I$19*IF(R28="SI",1,0.1)*IF(OR(O28="P",O28="RP"),0.1,1) -> 30 | T28: =IF(O28="P",J28*S28*ROUND(N28/60,2),"--") -> -- | U28: =IF(O28="RP",J28*S28*Q28/100*ROUND(N28/60,2),"--") -> -- | V28: =IF(AND(O28="F",P28="NO"),J28*S28,"--") -> -- | W28: =IF(O28="F",J28*S28*ROUND(N28/60,2),"--") -> -- | X28: =IF(AND(O28="R",P28="NO"),J28*S28*Q28/100,"--") -> 322.2 | Y28: =IF(O28="R",J28*S28*ROUND(N28/60,2)*Q28/100,"--") -> 847.386 | Z28: =IF(O28="RF",J28*S28*ROUND(N28/60,2),"--") -> -- | AA28: =IF(O28="RR",J28*S28*ROUND(N28/60,2)*Q28/100,"--") -> -- | AB28: SI | AC28: 1169.586
C29: 43 | D29: 298539 | E29: 3623 | F29: BURRUYACU | G29: TRAFO 1 | H29: 15 | I29: 132/33/13,2 | J29: 26.85 | K29: 2016-02-05T02:37:00 | L29: 2016-02-10T20:20:00 | M29: =IF(F29="","",(L29-K29)*24) -> 137.7166667 | N29: =IF(F29="","",ROUND((L29-K29)*24*60,0)) -> 8263 | O29: F | P29: =IF(F29="","",IF(OR(O29="P",O29="RP"),"--","NO")) -> NO | Q29: 0,000 | R29: SI | S29: =$I$19*IF(R29="SI",1,0.1)*IF(OR(O29="P",O29="RP"),0.1,1) -> 30 | T29: =IF(O29="P",J29*S29*ROUND(N29/60,2),"--") -> -- | U29: =IF(O29="RP",J29*S29*Q29/100*ROUND(N29/60,2),"--") -> -- | V29: =IF(AND(O29="F",P29="NO"),J29*S29,"--") -> 805.5 | W29: =IF(O29="F",J29*S29*ROUND(N29/60,2),"--") -> 110933.46 | X29: =IF(AND(O29="R",P29="NO"),J29*S29*Q29/100,"--") -> -- | Y29: =IF(O29="R",J29*S29*ROUND(N29/60,2)*Q29/100,"--") -> -- | Z29: =IF(O29="RF",J29*S29*ROUND(N29/60,2),"--") -> -- | AA29: =IF(O29="RR",J29*S29*ROUND(N29/60,2)*Q29/100,"--") -> -- | AB29: SI | AC29: 111738.96
C30: 44 | D30: 298543 | E30: 4309 | F30: SAN PEDRO JUJUY | G30: TRAFO 1 | H30: 30 | I30: 132/33/13,2 | J30: =H30*$I$18 -> 53.7 | K30: 2016-02-07T03:20:00 | L30: 2016-02-07T03:54:00 | M30: 0.5666666666 | N30: 34 | O30: R | P30: NO | Q30: 40 | R30: SI | S30: 30 | T30: -- | U30: -- | V30: -- | W30: -- | X30: 644.4 | Y30: 367.308 | Z30: -- | AA30: -- | AB30: SI | AC30: =IF(F30="","",SUM(T30:AA30)*IF(AB30="SI",1,2)) -> 1011.708
C31: 45 | D31: 298944 | E31: 561 | F31: LIBERTADOR JUJUY | G31: TRAFO 1 | H31: 15 | I31: 132/33/13,2 | J31: =H31*$I$18 -> 26.85 | K31: 2016-02-08T09:45:00 | L31: 2016-02-08T13:01:00 | M31: 3.266666667 | N31: 196 | O31: P | P31: -- | Q31: 0,000 | R31: NO | S31: 0.3 | T31: 26.33985 | U31: -- | V31: -- | W31: -- | X31: -- | Y31: -- | Z31: -- | AA31: -- | AB31: SI | AC31: 26.33985
C32: 46 | D32: 298945 | E32: 5452 | F32: PARQUE ARAUCO | G32: TRAFO 2 | H32: 30 | I32: 132/33/13,2 | J32: 53.7 | K32: 2016-02-08T10:32:00 | L32: 2016-02-08T10:59:00 | M32: 0.4500000001 | N32: 27 | O32: R | P32: NO | Q32: 40 | R32: NO | S32: 3 | T32: -- | U32: -- | V32: -- | W32: -- | X32: 64.44 | Y32: 28.998 | Z32: -- | AA32: -- | AB32: SI | AC32: 93.438
C33: 47 | D33: 298949 | E33: 3830 | F33: LIBERTADOR JUJUY | G33: TRAFO 2 | H33: 15 | I33: 132/33/13,2 | J33: 26.85 | K33: 2016-02-08T12:58:00 | L33: 2016-02-08T13:00:00 | M33: 0.03333333327 | N33: 2 | O33: R | P33: NO | Q33: 60 | R33: SI | S33: 30 | T33: -- | U33: -- | V33: -- | W33: -- | X33: 483.3 | Y33: 14.499 | Z33: -- | AA33: -- | AB33: SI | AC33: 497.799
C34: 48 | D34: 298956 | E34: 565 | F34: PALPALA | G34: TRAFO 1 | H34: 30 | I34: 132/33/13,2 | J34: 53.7 | K34: 2016-02-08T18:20:00 | L34: 2016-02-08T18:22:00 | M34: 0.03333333327 | N34: 2 | O34: R | P34: NO | Q34: 40 | R34: SI | S34: 30 | T34: -- | U34: -- | V34: -- | W34: -- | X34: 644.4 | Y34: 19.332 | Z34: -- | AA34: -- | AB34: SI | AC34: 663.732
C35: 49 | D35: 298958 | E35: 562 | F35: METAN | G35: TRAFO 1 | H35: 7.5 | I35: 132/33/13,2 | J35: 13.425 | K35: 2016-02-08T22:37:00 | L35: 2016-02-08T23:00:59 | M35: 0.3997222222 | N35: 24 | O35: F | P35: NO | Q35: 0,000 | R35: SI | S35: 30 | T35: -- | U35: -- | V35: 402.75 | W35: 161.1 | X35: -- | Y35: -- | Z35: -- | AA35: -- | AB35: SI | AC35: 563.85
C36: 50 | D36: 298963 | E36: 562 | F36: METAN | G36: TRAFO 1 | H36: 7.5 | I36: 132/33/13,2 | J36: 13.425 | K36: 2016-02-08T23:01:00 | L36: 2016-02-08T23:37:00 | M36: 0.6 | N36: 36 | O36: RF | P36: NO | Q36: 0,000 | R36: NO | S36: 3 | T36: -- | U36: -- | V36: -- | W36: -- | X36: -- | Y36: -- | Z36: 24.165 | AA36: -- | AB36: SI | AC36: 24.165
C37: 51 | D37: 298967 | E37: 2668 | F37: JUJUY ESTE | G37: TRAFO 1 | H37: 15 | I37: 132/33/13,2 | J37: 26.85 | K37: 2016-02-09T05:02:00 | L37: 2016-02-09T06:05:00 | M37: 1.05 | N37: 63 | O37: F | P37: NO | Q37: 0,000 | R37: SI | S37: 30 | T37: -- | U37: -- | V37: 805.5 | W37: 845.775 | X37: -- | Y37: -- | Z37: -- | AA37: -- | AB37: SI | AC37: 1651.275
C38: 52 | D38: 298968 | E38: 5691 | F38: JUJUY ESTE | G38: TRAFO 3 | H38: 30 | I38: 132/33/13,2 | J38: 53.7 | K38: 2016-02-09T05:02:00 | L38: 2016-02-09T06:05:00 | M38: 1.05 | N38: 63 | O38: F | P38: NO | Q38: 0,000 | R38: SI | S38: 30 | T38: -- | U38: -- | V38: 1611 | W38: 1691.55 | X38: -- | Y38: -- | Z38: -- | AA38: -- | AB38: SI | AC38: 3302.55
C39: 53 | D39: 298971 | E39: 4228 | F39: SUNCHO CORRAL | G39: TRAFO 2 | H39: 15 | I39: 132/33/13,2 | J39: 26.85 | K39: 2016-02-09T05:12:00 | L39: 2016-02-09T05:51:00 | M39: 0.65 | N39: 39 | O39: R | P39: NO | Q39: 40 | R39: SI | S39: 30 | T39: -- | U39: -- | V39: -- | W39: -- | X39: 322.2 | Y39: 209.43 | Z39: -- | AA39: -- | AB39: SI | AC39: 531.63
C40: 54 | D40: 298974 | E40: 3580 | F40: ANDALGALA | G40: TRAFO 1 | H40: 15 | I40: 132/33/13,2 | J40: 26.85 | K40: 2016-02-12T13:24:00 | L40: 2016-02-12T13:35:00 | M40: 0.1833333332 | N40: 11 | O40: R | P40: NO | Q40: 60 | R40: SI | S40: 30 | T40: -- | U40: -- | V40: -- | W40: -- | X40: 483.3 | Y40: 86.994 | Z40: -- | AA40: -- | AB40: SI | AC40: 570.294
C41: 55 | D41: 298988 | E41: 4228 | F41: SUNCHO CORRAL | G41: TRAFO 2 | H41: 15 | I41: 132/33/13,2 | J41: 26.85 | K41: 2016-02-13T14:26:00 | L41: 2016-02-13T14:30:00 | M41: 0.06666666653 | N41: 4 | O41: R | P41: NO | Q41: 40 | R41: SI | S41: 30 | T41: -- | U41: -- | V41: -- | W41: -- | X41: 322.2 | Y41: 22.554 | Z41: -- | AA41: -- | AB41: SI | AC41: 344.754
C42: 56 | D42: 298991 | E42: 565 | F42: PALPALA | G42: TRAFO 1 | H42: 30 | I42: 132/33/13,2 | J42: 53.7 | K42: 2016-02-13T20:08:00 | L42: 2016-02-13T22:02:00 | M42: 1.9 | N42: 114 | O42: R | P42: NO | Q42: 40 | R42: SI | S42: 30 | T42: -- | U42: -- | V42: -- | W42: -- | X42: 644.4 | Y42: 1224.36 | Z42: -- | AA42: -- | AB42: SI | AC42: 1868.76
C43: 57 | D43: 298996 | E43: 4689 | F43: ACONQUIJA | G43: TRAFO 1 | H43: 7.5 | I43: 132/33/13,2 | J43: 13.425 | K43: 2016-02-14T02:33:00 | L43: 2016-02-14T03:54:00 | M43: 1.35 | N43: 81 | O43: F | P43: NO | Q43: 0,000 | R43: SI | S43: 30 | T43: -- | U43: -- | V43: 402.75 | W43: 543.7125 | X43: -- | Y43: -- | Z43: -- | AA43: -- | AB43: SI | AC43: 946.4625
C44: 58 | D44: 299050 | E44: 5062 | F44: QUIMILI | G44: TRAFO 1 | H44: 15 | I44: 132/33/13,2 | J44: 26.85 | K44: 2016-02-15T02:46:00 | L44: 2016-02-15T02:50:00 | M44: 0.06666666671 | N44: 4 | O44: R | P44: NO | Q44: 40 | R44: SI | S44: 30 | T44: -- | U44: -- | V44: -- | W44: -- | X44: 322.2 | Y44: 22.554 | Z44: -- | AA44: -- | AB44: SI | AC44: 344.754
C45: 59 | D45: 299054 | E45: 3946 | F45: CATAMARCA II | G45: TRAFO 1 | H45: 30 | I45: 132/33/13,2 | J45: 53.7 | K45: 2016-02-15T15:01:00 | L45: 2016-02-15T15:19:00 | M45: =IF(F45="","",(L45-K45)*24) -> 0.2999999999 | N45: =IF(F45="","",ROUND((L45-K45)*24*60,0)) -> 18 | O45: F | P45: NO | Q45: 0,000 | R45: SI | S45: =$I$19*IF(R45="SI",1,0.1)*IF(OR(O45="P",O45="RP"),0.1,1) -> 30 | T45: =IF(O45="P",J45*S45*ROUND(N45/60,2),"--") -> -- | U45: =IF(O45="RP",J45*S45*Q45/100*ROUND(N45/60,2),"--") -> -- | V45: =IF(AND(O45="F",P45="NO"),J45*S45,"--") -> 1611 | W45: =IF(O45="F",J45*S45*ROUND(N45/60,2),"--") -> 483.3 | X45: =IF(AND(O45="R",P45="NO"),J45*S45*Q45/100,"--") -> -- | Y45: =IF(O45="R",J45*S45*ROUND(N45/60,2)*Q45/100,"--") -> -- | Z45: =IF(O45="RF",J45*S45*ROUND(N45/60,2),"--") -> -- | AA45: =IF(O45="RR",J45*S45*ROUND(N45/60,2)*Q45/100,"--") -> -- | AB45: SI | AC45: =IF(F45="","",SUM(T45:AA45)*IF(AB45="SI",1,2)) -> 2094.3
C46: 60 | D46: 299056 | E46: 4517 | F46: CATAMARCA II | G46: TRAFO 2 (Res. SE 1/03) | H46: 30 | I46: 132/33/13,2 | J46: =H46*$K$18 -> 20.241 | K46: 2016-02-15T15:01:00 | L46: 2016-02-15T15:19:00 | M46: =IF(F46="","",(L46-K46)*24) -> 0.2999999999 | N46: =IF(F46="","",ROUND((L46-K46)*24*60,0)) -> 18 | O46: F | P46: NO | Q46: 0,000 | R46: SI | S46: =$I$19*IF(R46="SI",1,0.1)*IF(OR(O46="P",O46="RP"),0.1,1) -> 30 | T46: =IF(O46="P",J46*S46*ROUND(N46/60,2),"--") -> -- | U46: =IF(O46="RP",J46*S46*Q46/100*ROUND(N46/60,2),"--") -> -- | V46: =IF(AND(O46="F",P46="NO"),J46*S46,"--") -> 607.23 | W46: =IF(O46="F",J46*S46*ROUND(N46/60,2),"--") -> 182.169 | X46: =IF(AND(O46="R",P46="NO"),J46*S46*Q46/100,"--") -> -- | Y46: =IF(O46="R",J46*S46*ROUND(N46/60,2)*Q46/100,"--") -> -- | Z46: =IF(O46="RF",J46*S46*ROUND(N46/60,2),"--") -> -- | AA46: =IF(O46="RR",J46*S46*ROUND(N46/60,2)*Q46/100,"--") -> -- | AB46: SI | AC46: =IF(F46="","",SUM(T46:AA46)*IF(AB46="SI",1,2)) -> 789.399
C47: 61 | D47: 299058 | E47: 548 | F47: GUEMES | G47: TRAFO 5 | H47: 15 | I47: 132/13,2 | J47: 26.85 | K47: 2016-02-16 | L47: 2016-02-16T03:50:00 | M47: =IF(F47="","",(L47-K47)*24) -> 3.833333333 | N47: =IF(F47="","",ROUND((L47-K47)*24*60,0)) -> 230 | O47: P | P47: -- | Q47: 0,000 | R47: NO | S47: =$I$19*IF(R47="SI",1,0.1)*IF(OR(O47="P",O47="RP"),0.1,1) -> 0.3 | T47: =IF(O47="P",J47*S47*ROUND(N47/60,2),"--") -> 30.85065 | U47: =IF(O47="RP",J47*S47*Q47/100*ROUND(N47/60,2),"--") -> -- | V47: =IF(AND(O47="F",P47="NO"),J47*S47,"--") -> -- | W47: =IF(O47="F",J47*S47*ROUND(N47/60,2),"--") -> -- | X47: =IF(AND(O47="R",P47="NO"),J47*S47*Q47/100,"--") -> -- | Y47: =IF(O47="R",J47*S47*ROUND(N47/60,2)*Q47/100,"--") -> -- | Z47: =IF(O47="RF",J47*S47*ROUND(N47/60,2),"--") -> -- | AA47: =IF(O47="RR",J47*S47*ROUND(N47/60,2)*Q47/100,"--") -> -- | AB47: SI | AC47: =IF(F47="","",SUM(T47:AA47)*IF(AB47="SI",1,2)) -> 30.85065
C49: (²) | D49: P - PROGRAMADA ; F - FORZADA ; RP - REDUCCIÓN PROGRAMADA ; R - REDUCCIÓN FORZADA | T49: =SUM(T22:T48) -> 5663.4705 | U49: 4485.024 | V49: 6406.83 | W49: 116142.7545 | X49: 5219.64 | Y49: 3597.363 | Z49: 24.165 | AA49: 0 | AC49: =ROUND(SUM(AC22:AC48),2) -> 141539.25

Sheet T-02 (2)
B2: =+'TOT-0216'!B2 -> ANEXO V al Memorandum D.T.E.E. N° 356 / 2016
A4: ENTE NACIONAL REGULADOR
A5: DE LA ELECTRICIDAD
F8: SISTEMA DE TRANSPORTE DE ENERGÍA ELÉCTRICA POR DISTRIBUCIÓN TRONCAL - TRANSNOA S.A.
F10: 2.- CONEXIÓN
F12: 2.1.- Transformación
F14: 2.1.1.- Equipamiento propio
B16: ='TOT-0216'!B14 -> Desde el 01 al 29 de Febrero de 2016
F18: Por Transformador por MVA $ = | I18: 1.79
F19: Coeficiente de penalización por salida forzada = | I19: =30*'TOT-0216'!B13 -> 30 | K19: =IF(I19=30," ",IF(I19=60," Coeficiente duplicado por tasa de falla >4 Sal. x año/100 km.","REVISAR COEFICIENTE")) -> 
C20: 3 | D20: 4 | E20: 5 | F20: 6 | G20: 7 | H20: 8 | I20: 9 | J20: 10 | K20: 11 | L20: 12 | M20: 13 | N20: 14 | O20: 15 | P20: 16 | Q20: 17 | R20: 18 | S20: 19 | T20: 20 | U20: 21 | V20: 22 | W20: 23 | X20: 24 | Y20: 25 | Z20: 26 | AA20: 27 | AB20: 28 | AC20: 29
C21: N° | D21: INDISP | E21: ID EQUIPO | F21: ESTACIÓN TRANSFORMADORA | G21: EQUIPO | H21: POT. [MVA] | I21: U [kV] | J21: $/h | K21: Salida | L21: Entrada | M21: Hs Indisp. | N21: Mtos. Indisp. | O21: Tipo Sal.(²) | P21: AUT. | Q21: C.R. % | R21: E.N.S. | S21: K (P;ENS) | T21: PENALIZ. PROGRAM. | U21: REDUCC. PROGRAM. | V21: PENALIZAC. FORZADA Por Salida hs. Restantes | X21: REDUCC. FORZADA Por Salida hs. Restantes | Z21: RESTANTE FORZADA | AA21: REDUCC. RESTANTE | AB21: Informó en Térm. | AC21: TOTAL PENALIZAC.
AC22: ='T-02 (1)'!AC49 -> 141539.25
C24: 62 | D24: 299062 | E24: 544 | F24: ESTATICA | G24: TRAFO 2 | H24: 30 | I24: 132/13,2 | J24: =H24*$I$18 -> 53.7 | K24: 2016-02-16T11:10:00 | L24: 2016-02-16T11:16:00 | M24: =IF(F24="","",(L24-K24)*24) -> 0.09999999998 | N24: =IF(F24="","",ROUND((L24-K24)*24*60,0)) -> 6 | O24: R | P24: =IF(F24="","",IF(OR(O24="P",O24="RP"),"--","NO")) -> NO | Q24: 60 | R24: SI | S24: =$I$19*IF(R24="SI",1,0.1)*IF(OR(O24="P",O24="RP"),0.1,1) -> 30 | T24: =IF(O24="P",J24*S24*ROUND(N24/60,2),"--") -> -- | U24: =IF(O24="RP",J24*S24*Q24/100*ROUND(N24/60,2),"--") -> -- | V24: =IF(AND(O24="F",P24="NO"),J24*S24,"--") -> -- | W24: =IF(O24="F",J24*S24*ROUND(N24/60,2),"--") -> -- | X24: =IF(AND(O24="R",P24="NO"),J24*S24*Q24/100,"--") -> 966.6 | Y24: =IF(O24="R",J24*S24*ROUND(N24/60,2)*Q24/100,"--") -> 96.66 | Z24: =IF(O24="RF",J24*S24*ROUND(N24/60,2),"--") -> -- | AA24: =IF(O24="RR",J24*S24*ROUND(N24/60,2)*Q24/100,"--") -> -- | AB24: SI | AC24: =IF(F24="","",SUM(T24:AA24)*IF(AB24="SI",1,2)) -> 1063.26
C25: 63 | D25: 299076 | E25: 579 | F25: SARMIENTO | G25: TRAFO 2 | H25: 30 | I25: 132/13,2 | J25: =H25*$I$18 -> 53.7 | K25: 2016-02-17T12:23:00 | L25: 2016-02-17T13:31:00 | M25: =IF(F25="","",(L25-K25)*24) -> 1.133333333 | N25: =IF(F25="","",ROUND((L25-K25)*24*60,0)) -> 68 | O25: R | P25: =IF(F25="","",IF(OR(O25="P",O25="RP"),"--","NO")) -> NO | Q25: 60 | R25: SI | S25: =$I$19*IF(R25="SI",1,0.1)*IF(OR(O25="P",O25="RP"),0.1,1) -> 30 | T25: =IF(O25="P",J25*S25*ROUND(N25/60,2),"--") -> -- | U25: =IF(O25="RP",J25*S25*Q25/100*ROUND(N25/60,2),"--") -> -- | V25: =IF(AND(O25="F",P25="NO"),J25*S25,"--") -> -- | W25: =IF(O25="F",J25*S25*ROUND(N25/60,2),"--") -> -- | X25: =IF(AND(O25="R",P25="NO"),J25*S25*Q25/100,"--") -> 966.6 | Y25: =IF(O25="R",J25*S25*ROUND(N25/60,2)*Q25/100,"--") -> 1092.258 | Z25: =IF(O25="RF",J25*S25*ROUND(N25/60,2),"--") -> -- | AA25: =IF(O25="RR",J25*S25*ROUND(N25/60,2)*Q25/100,"--") -> -- | AB25: SI | AC25: =IF(F25="","",SUM(T25:AA25)*IF(AB25="SI",1,2)) -> 2058.858
C26: 64 | D26: 299077 | E26: 5264 | F26: SARMIENTO | G26: TRP3 | H26: 30 | I26: 132/33/13,2 | J26: 53.7 | K26: 2016-02-17T12:23:00 | L26: 2016-02-17T13:29:00 | M26: 1.1 | N26: 66 | O26: R | P26: NO | Q26: 60 | R26: SI | S26: 30 | T26: -- | U26: -- | V26: -- | W26: -- | X26: 966.6 | Y26: 1063.26 | Z26: -- | AA26: -- | AB26: SI | AC26: 2029.86
C27: 65 | D27: 299096 | E27: 4962 | F27: TUCUMAN NORTE | G27: TRP3 | H27: 30 | I27: 132/33/13,2 | J27: 53.7 | K27: 2016-02-18T00:17:00 | L27: 2016-02-18T00:21:00 | M27: 0.06666666653 | N27: 4 | O27: R | P27: NO | Q27: 40 | R27: SI | S27: 30 | T27: -- | U27: -- | V27: -- | W27: -- | X27: 644.4 | Y27: 45.108 | Z27: -- | AA27: -- | AB27: SI | AC27: 689.508
C28: 66 | D28: 299101 | E28: 548 | F28: GUEMES | G28: TRAFO 5 | H28: 15 | I28: 132/13,2 | J28: 26.85 | K28: 2016-02-19T01:00:00 | L28: 2016-02-19T04:02:00 | M28: 3.033333333 | N28: 182 | O28: P | P28: -- | Q28: 0,000 | R28: NO | S28: 0.3 | T28: 24.40665 | U28: -- | V28: -- | W28: -- | X28: -- | Y28: -- | Z28: -- | AA28: -- | AB28: SI | AC28: 24.40665
C29: 67 | D29: 299102 | E29: 4228 | F29: SUNCHO CORRAL | G29: TRAFO 2 | H29: 15 | I29: 132/33/13,2 | J29: 26.85 | K29: 2016-02-19T11:36:00 | L29: 2016-02-19T12:10:00 | M29: 0.5666666668 | N29: 34 | O29: R | P29: NO | Q29: 40 | R29: SI | S29: 30 | T29: -- | U29: -- | V29: -- | W29: -- | X29: 322.2 | Y29: 183.654 | Z29: -- | AA29: -- | AB29: SI | AC29: 505.854
C30: 68 | D30: 299107 | E30: 3819 | F30: BELEN | G30: TRAFO 2 | H30: 7.5 | I30: 132/33/13,2 | J30: 13.425 | K30: 2016-02-20T00:06:00 | L30: 2016-02-20T00:24:00 | M30: 0.3000000001 | N30: 18 | O30: R | P30: NO | Q30: 60 | R30: SI | S30: 30 | T30: -- | U30: -- | V30: -- | W30: -- | X30: 241.65 | Y30: 72.495 | Z30: -- | AA30: -- | AB30: SI | AC30: 314.145
C31: 69 | D31: 299110 | E31: 4812 | F31: R. DE LA FRONTERA | G31: TRAFO 1 | H31: 30 | I31: 132/33/13,2 | J31: 53.7 | K31: 2016-02-20T12:06:00 | L31: 2016-02-20T13:54:00 | M31: 1.8 | N31: 108 | O31: F | P31: NO | Q31: 0,000 | R31: SI | S31: 30 | T31: -- | U31: -- | V31: 1611 | W31: 2899.8 | X31: -- | Y31: -- | Z31: -- | AA31: -- | AB31: SI | AC31: 4510.8
C32: 70 | D32: 299116 | E32: 4689 | F32: ACONQUIJA | G32: TRAFO 1 | H32: 7.5 | I32: 132/33/13,2 | J32: 13.425 | K32: 2016-02-21T08:10:00 | L32: 2016-02-21T10:57:00 | M32: 2.783333333 | N32: 167 | O32: P | P32: -- | Q32: 0,000 | R32: SI | S32: 3 | T32: 111.9645 | U32: -- | V32: -- | W32: -- | X32: -- | Y32: -- | Z32: -- | AA32: -- | AB32: SI | AC32: 111.9645
C33: 71 | D33: 299117 | E33: 565 | F33: PALPALA | G33: TRAFO 1 | H33: 30 | I33: 132/33/13,2 | J33: =H33*$I$18 -> 53.7 | K33: 2016-02-21T08:29:00 | L33: 2016-02-21T13:39:00 | M33: 5.166666667 | N33: 310 | O33: P | P33: -- | Q33: 0,000 | R33: NO | S33: 0.3 | T33: 83.2887 | U33: -- | V33: -- | W33: -- | X33: -- | Y33: -- | Z33: -- | AA33: -- | AB33: SI | AC33: 83.2887
C34: 72 | D34: 299118 | E34: 2668 | F34: JUJUY ESTE | G34: TRAFO 1 | H34: 15 | I34: 132/33/13,2 | J34: 26.85 | K34: 2016-02-21T18:23:00 | L34: 2016-02-21T19:45:00 | M34: 1.366666667 | N34: 82 | O34: F | P34: NO | Q34: 0,000 | R34: SI | S34: 30 | T34: -- | U34: -- | V34: 805.5 | W34: 1103.535 | X34: -- | Y34: -- | Z34: -- | AA34: -- | AB34: SI | AC34: 1909.035
C35: 73 | D35: 299121 | E35: 5691 | F35: JUJUY ESTE | G35: TRAFO 3 | H35: 30 | I35: 132/33/13,2 | J35: 53.7 | K35: 2016-02-21T18:23:00 | L35: 2016-02-21T19:45:00 | M35: 1.366666667 | N35: 82 | O35: F | P35: NO | Q35: 0,000 | R35: SI | S35: 30 | T35: -- | U35: -- | V35: 1611 | W35: 2207.07 | X35: -- | Y35: -- | Z35: -- | AA35: -- | AB35: SI | AC35: 3818.07
C36: 74 | D36: 299493 | E36: 5495 | F36: CATAMARCA | G36: TRAFO 3 | H36: 30 | I36: 132/33/13,2 | J36: 53.7 | K36: 2016-02-22T03:38:00 | L36: 2016-02-22T04:01:00 | M36: 0.3833333334 | N36: 23 | O36: R | P36: NO | Q36: 60 | R36: SI | S36: 30 | T36: -- | U36: -- | V36: -- | W36: -- | X36: 966.6 | Y36: 367.308 | Z36: -- | AA36: -- | AB36: SI | AC36: 1333.908
C37: 75 | D37: 299499 | E37: 5568 | F37: INDEPENDENCIA | G37: TRAFO 2 | H37: 30 | I37: 132/33/13,2 | J37: 53.7 | K37: 2016-02-23T08:11:00 | L37: 2016-02-23T11:35:00 | M37: 3.4 | N37: 204 | O37: P | P37: -- | Q37: 0,000 | R37: NO | S37: =$I$19*IF(R37="SI",1,0.1)*IF(OR(O37="P",O37="RP"),0.1,1) -> 0.3 | T37: =IF(O37="P",J37*S37*ROUND(N37/60,2),"--") -> 54.774 | U37: =IF(O37="RP",J37*S37*Q37/100*ROUND(N37/60,2),"--") -> -- | V37: =IF(AND(O37="F",P37="NO"),J37*S37,"--") -> -- | W37: =IF(O37="F",J37*S37*ROUND(N37/60,2),"--") -> -- | X37: =IF(AND(O37="R",P37="NO"),J37*S37*Q37/100,"--") -> -- | Y37: =IF(O37="R",J37*S37*ROUND(N37/60,2)*Q37/100,"--") -> -- | Z37: =IF(O37="RF",J37*S37*ROUND(N37/60,2),"--") -> -- | AA37: =IF(O37="RR",J37*S37*ROUND(N37/60,2)*Q37/100,"--") -> -- | AB37: NO | AC37: 109.548
C38: 76 | D38: 299519 | E38: 4555 | F38: ANATUYA | G38: TRAFO 1 | H38: 20 | I38: 132/33/13,2 | J38: 35.8 | K38: 2016-02-24T10:48:00 | L38: 2016-02-24T11:01:00 | M38: 0.2166666667 | N38: 13 | O38: R | P38: NO | Q38: 60 | R38: NO | S38: 3 | T38: -- | U38: -- | V38: -- | W38: -- | X38: 64.44 | Y38: 14.1768 | Z38: -- | AA38: -- | AB38: SI | AC38: 78.6168
C39: 77 | D39: 299523 | E39: 570 | F39: SALTA SUR | G39: TRAFO 3 | H39: 30 | I39: 132/33/13,2 | J39: 53.7 | K39: 2016-02-26T13:34:00 | L39: 2016-02-26T13:42:00 | M39: 0.1333333332 | N39: 8 | O39: R | P39: NO | Q39: 60 | R39: SI | S39: 30 | T39: -- | U39: -- | V39: -- | W39: -- | X39: 966.6 | Y39: 125.658 | Z39: -- | AA39: -- | AB39: SI | AC39: 1092.258
C40: 78 | D40: 299524 | E40: 568 | F40: SALTA SUR | G40: TRAFO 1 | H40: 30 | I40: 132/13,2 | J40: 53.7 | K40: 2016-02-26T13:34:00 | L40: 2016-02-26T13:42:00 | M40: 0.1333333332 | N40: 8 | O40: R | P40: NO | Q40: 60 | R40: SI | S40: =$I$19*IF(R40="SI",1,0.1)*IF(OR(O40="P",O40="RP"),0.1,1) -> 30 | T40: =IF(O40="P",J40*S40*ROUND(N40/60,2),"--") -> -- | U40: =IF(O40="RP",J40*S40*Q40/100*ROUND(N40/60,2),"--") -> -- | V40: =IF(AND(O40="F",P40="NO"),J40*S40,"--") -> -- | W40: =IF(O40="F",J40*S40*ROUND(N40/60,2),"--") -> -- | X40: =IF(AND(O40="R",P40="NO"),J40*S40*Q40/100,"--") -> 966.6 | Y40: =IF(O40="R",J40*S40*ROUND(N40/60,2)*Q40/100,"--") -> 125.658 | Z40: =IF(O40="RF",J40*S40*ROUND(N40/60,2),"--") -> -- | AA40: =IF(O40="RR",J40*S40*ROUND(N40/60,2)*Q40/100,"--") -> -- | AB40: SI | AC40: 1092.258
C41: 79 | D41: 299547 | E41: 556 | F41: LA BANDA | G41: TRAFO 1 | H41: 30 | I41: 132/33/13,2 | J41: 53.7 | K41: 2016-02-26T22:06:00 | L41: 2016-02-26T22:55:00 | M41: 0.8166666667 | N41: 49 | O41: R | P41: NO | Q41: 60 | R41: SI | S41: =$I$19*IF(R41="SI",1,0.1)*IF(OR(O41="P",O41="RP"),0.1,1) -> 30 | T41: =IF(O41="P",J41*S41*ROUND(N41/60,2),"--") -> -- | U41: =IF(O41="RP",J41*S41*Q41/100*ROUND(N41/60,2),"--") -> -- | V41: =IF(AND(O41="F",P41="NO"),J41*S41,"--") -> -- | W41: =IF(O41="F",J41*S41*ROUND(N41/60,2),"--") -> -- | X41: =IF(AND(O41="R",P41="NO"),J41*S41*Q41/100,"--") -> 966.6 | Y41: =IF(O41="R",J41*S41*ROUND(N41/60,2)*Q41/100,"--") -> 792.612 | Z41: =IF(O41="RF",J41*S41*ROUND(N41/60,2),"--") -> -- | AA41: =IF(O41="RR",J41*S41*ROUND(N41/60,2)*Q41/100,"--") -> -- | AB41: SI | AC41: 1759.212
C42: 80 | D42: 299755 | E42: 5770 | F42: SANTIAGO ESTE | G42: TRAFO 2 | H42: 30 | I42: 132/13,2 | J42: =H42*$I$18 -> 53.7 | K42: 2016-02-29T07:26:00 | L42: 2016-02-29T09:50:00 | M42: =IF(F42="","",(L42-K42)*24) -> 2.4 | N42: =IF(F42="","",ROUND((L42-K42)*24*60,0)) -> 144 | O42: P | P42: =IF(F42="","",IF(OR(O42="P",O42="RP"),"--","NO")) -> -- | Q42: 0,000 | R42: NO | S42: =$I$19*IF(R42="SI",1,0.1)*IF(OR(O42="P",O42="RP"),0.1,1) -> 0.3 | T42: =IF(O42="P",J42*S42*ROUND(N42/60,2),"--") -> 38.664 | U42: =IF(O42="RP",J42*S42*Q42/100*ROUND(N42/60,2),"--") -> -- | V42: =IF(AND(O42="F",P42="NO"),J42*S42,"--") -> -- | W42: =IF(O42="F",J42*S42*ROUND(N42/60,2),"--") -> -- | X42: =IF(AND(O42="R",P42="NO"),J42*S42*Q42/100,"--") -> -- | Y42: =IF(O42="R",J42*S42*ROUND(N42/60,2)*Q42/100,"--") -> -- | Z42: =IF(O42="RF",J42*S42*ROUND(N42/60,2),"--") -> -- | AA42: =IF(O42="RR",J42*S42*ROUND(N42/60,2)*Q42/100,"--") -> -- | AB42: SI | AC42: =IF(F42="","",SUM(T42:AA42)*IF(AB42="SI",1,2)) -> 38.664
C43: 81 | D43: 299556 | E43: 2668 | F43: JUJUY ESTE | G43: TRAFO 1 | H43: 15 | I43: 132/33/13,2 | J43: 26.85 | K43: 2016-02-28T08:00:00 | L43: 2016-02-28T15:15:00 | M43: 7.25 | N43: 435 | O43: P | P43: -- | Q43: 0,000 | R43: NO | S43: 0.3 | T43: 58.39875 | U43: -- | V43: -- | W43: -- | X43: -- | Y43: -- | Z43: -- | AA43: -- | AB43: SI | AC43: 58.39875
C44: 82 | D44: 299557 | E44: 5691 | F44: JUJUY ESTE | G44: TRAFO 3 | H44: 30 | I44: 132/33/13,2 | J44: 53.7 | K44: 2016-02-28T08:00:00 | L44: 2016-02-28T15:15:00 | M44: 7.25 | N44: 435 | O44: P | P44: -- | Q44: 0,000 | R44: NO | S44: 0.3 | T44: 116.7975 | U44: -- | V44: -- | W44: -- | X44: -- | Y44: -- | Z44: -- | AA44: -- | AB44: SI | AC44: 116.7975
C45: 83 | D45: 299558 | E45: 557 | F45: LA BANDA | G45: TRAFO 2 | H45: 30 | I45: 132/33/13,2 | J45: 53.7 | K45: 2016-02-28T20:34:00 | L45: 2016-02-28T21:05:00 | M45: 0.5166666666 | N45: 31 | O45: R | P45: NO | Q45: 60 | R45: SI | S45: 30 | T45: -- | U45: -- | V45: -- | W45: -- | X45: 966.6 | Y45: 502.632 | Z45: -- | AA45: -- | AB45: SI | AC45: =IF(F45="","",SUM(T45:AA45)*IF(AB45="SI",1,2)) -> 1469.232
C46: 84 | D46: 299565 | E46: 557 | F46: LA BANDA | G46: TRAFO 2 | H46: 30 | I46: 132/33/13,2 | J46: 53.7 | K46: 2016-02-28T21:06:00 | L46: 2016-02-28T21:24:00 | M46: 0.3000000001 | N46: 18 | O46: RR | P46: =IF(F46="","",IF(OR(O46="P",O46="RP"),"--","NO")) -> NO | Q46: 60 | R46: NO | S46: =$I$19*IF(R46="SI",1,0.1)*IF(OR(O46="P",O46="RP"),0.1,1) -> 3 | T46: =IF(O46="P",J46*S46*ROUND(N46/60,2),"--") -> -- | U46: =IF(O46="RP",J46*S46*Q46/100*ROUND(N46/60,2),"--") -> -- | V46: =IF(AND(O46="F",P46="NO"),J46*S46,"--") -> -- | W46: =IF(O46="F",J46*S46*ROUND(N46/60,2),"--") -> -- | X46: =IF(AND(O46="R",P46="NO"),J46*S46*Q46/100,"--") -> -- | Y46: =IF(O46="R",J46*S46*ROUND(N46/60,2)*Q46/100,"--") -> -- | Z46: =IF(O46="RF",J46*S46*ROUND(N46/60,2),"--") -> -- | AA46: =IF(O46="RR",J46*S46*ROUND(N46/60,2)*Q46/100,"--") -> 28.998 | AB46: SI | AC46: =IF(F46="","",SUM(T46:AA46)*IF(AB46="SI",1,2)) -> 28.998
C47: 85 | D47: 299760 | E47: 4484 | F47: AGUA BLANCA | G47: TRAFO 1 | H47: 30 | I47: 132/33/13,2 | J47: 53.7 | K47: 2016-02-29T17:33:00 | L47: 2016-02-29T17:39:00 | M47: 0.1000000002 | N47: 6 | O47: R | P47: NO | Q47: 60 | R47: SI | S47: 30 | T47: -- | U47: -- | V47: -- | W47: -- | X47: 966.6 | Y47: 96.66 | Z47: -- | AA47: -- | AB47: SI | AC47: 1063.26
C48: 86 | D48: 299767 | E48: 3628 | F48: AGUA BLANCA | G48: TRAFO 2 | H48: 30 | I48: 132/33/13,2 | J48: 53.7 | K48: 2016-02-29T17:33:00 | L48: 2016-02-29T17:39:00 | M48: =IF(F48="","",(L48-K48)*24) -> 0.1000000002 | N48: =IF(F48="","",ROUND((L48-K48)*24*60,0)) -> 6 | O48: R | P48: NO | Q48: 60 | R48: SI | S48: 30 | T48: -- | U48: -- | V48: -- | W48: -- | X48: 966.6 | Y48: 96.66 | Z48: -- | AA48: -- | AB48: SI | AC48: 1063.26
J49: 0 | M49: =IF(F49="","",(L49-K49)*24) ->  | N49: =IF(F49="","",ROUND((L49-K49)*24*60,0)) ->  | S49: 3 | T49: -- | U49: -- | V49: -- | W49: -- | X49: -- | Y49: -- | Z49: -- | AA49: --
C50: (²) | D50: P - PROGRAMADA ; F - FORZADA ; R - REDUCCIÓN FORZADA | T50: =SUM(T22:T49) -> 488.2941 | U50: 0 | V50: 4027.5 | W50: 6210.405 | X50: 10938.69 | Y50: 4674.7998 | Z50: 0 | AA50: 28.998 | AC50: =ROUND(SUM(AC22:AC49),2) -> 167962.71

Sheet T-EDESA-02 (1)
B2: =+'TOT-0216'!B2 -> ANEXO V al Memorandum D.T.E.E. N° 356 / 2016
A4: ENTE NACIONAL REGULADOR
A5: DE LA ELECTRICIDAD
F8: SISTEMA DE TRANSPORTE DE ENERGÍA ELÉCTRICA POR DISTRIBUCIÓN TRONCAL - TRANSNOA S.A.
F10: 2.- CONEXIÓN
F12: 2.1.- Transformación
F14: 2.1.2.- Transportista Independiente EDESA S.A.
B16: ='TOT-0216'!B14 -> Desde el 01 al 29 de Febrero de 2016
F18: Por Transformador por MVA $ = | I18: 0.181
F19: Coeficiente de penalización por salida forzada = | I19: =30*'TOT-0216'!B13 -> 30 | K19: =IF(I19=30," ",IF(I19=60," Coeficiente duplicado por tasa de falla >4 Sal. x año/100 km.","REVISAR COEFICIENTE")) -> 
C20: 3 | D20: 4 | E20: 5 | F20: 6 | G20: 7 | H20: 8 | I20: 9 | J20: 10 | K20: 11 | L20: 12 | M20: 13 | N20: 14 | O20: 15 | P20: 16 | Q20: 17 | R20: 18 | S20: 19 | T20: 20 | U20: 21 | V20: 22 | W20: 23 | X20: 24 | Y20: 25 | Z20: 26 | AA20: 27 | AB20: 28 | AC20: 29
C21: N° | D21: INDISP | E21: ID EQUIPO | F21: ESTACIÓN TRANSFORMADORA | G21: EQUIPO | H21: POT. [MVA] | I21: U [kV] | J21: $/h | K21: Salida | L21: Entrada | M21: Hs Indisp. | N21: Mtos. Indisp. | O21: Tipo Sal.(²) | P21: AUT. | Q21: C.R. % | R21: E.N.S. | S21: K (P;ENS) | T21: PENALIZ. PROGRAM. | U21: REDUCC. PROGRAM. | V21: PENALIZAC. FORZADA Por Salida hs. Restantes | X21: REDUCC. FORZADA Por Salida hs. Restantes | Z21: RESTANTE FORZADA | AA21: REDUCC. RESTANTE | AB21: Informó en Térm. | AC21: TOTAL PENALIZAC.
C24: 87 | D24: 298975 | E24: 2718 | F24: J. V. GONZALEZ | G24: TRAFO 1 | H24: 7.5 | I24: 132/33/13,2 | J24: =H24*$I$18 -> 1.3575 | K24: 2016-02-12T20:09:00 | L24: 2016-02-12T21:07:00 | M24: =IF(F24="","",(L24-K24)*24) -> 0.9666666667 | N24: =IF(F24="","",ROUND((L24-K24)*24*60,0)) -> 58 | O24: F | P24: =IF(F24="","",IF(OR(O24="P",O24="RP"),"--","NO")) -> NO | Q24: 0,000 | R24: SI | S24: =$I$19*IF(R24="SI",1,0.1)*IF(OR(O24="P",O24="RP"),0.1,1) -> 30 | T24: =IF(O24="P",J24*S24*ROUND(N24/60,2),"--") -> -- | U24: =IF(O24="RP",J24*S24*Q24/100*ROUND(N24/60,2),"--") -> -- | V24: =IF(AND(O24="F",P24="NO"),J24*S24,"--") -> 40.725 | W24: =IF(O24="F",J24*S24*ROUND(N24/60,2),"--") -> 39.50325 | X24: =IF(AND(O24="R",P24="NO"),J24*S24*Q24/100,"--") -> -- | Y24: =IF(O24="R",J24*S24*ROUND(N24/60,2)*Q24/100,"--") -> -- | Z24: =IF(O24="RF",J24*S24*ROUND(N24/60,2),"--") -> -- | AA24: =IF(O24="RR",J24*S24*ROUND(N24/60,2)*Q24/100,"--") -> -- | AB24: SI | AC24: =IF(F24="","",SUM(T24:AA24)*IF(AB24="SI",1,2)) -> 80.22825
C25: 88 | D25: 298981 | E25: 3758 | F25: J. V. GONZALEZ | G25: TRAFO 2 | H25: 7.5 | I25: 132/33/13,2 | J25: =H25*$I$18 -> 1.3575 | K25: 2016-02-12T20:20:00 | L25: 2016-02-12T20:35:00 | M25: =IF(F25="","",(L25-K25)*24) -> 0.2500000001 | N25: =IF(F25="","",ROUND((L25-K25)*24*60,0)) -> 15 | O25: F | P25: =IF(F25="","",IF(OR(O25="P",O25="RP"),"--","NO")) -> NO | Q25: 0,000 | R25: SI | S25: =$I$19*IF(R25="SI",1,0.1)*IF(OR(O25="P",O25="RP"),0.1,1) -> 30 | T25: =IF(O25="P",J25*S25*ROUND(N25/60,2),"--") -> -- | U25: =IF(O25="RP",J25*S25*Q25/100*ROUND(N25/60,2),"--") -> -- | V25: =IF(AND(O25="F",P25="NO"),J25*S25,"--") -> 40.725 | W25: =IF(O25="F",J25*S25*ROUND(N25/60,2),"--") -> 10.18125 | X25: =IF(AND(O25="R",P25="NO"),J25*S25*Q25/100,"--") -> -- | Y25: =IF(O25="R",J25*S25*ROUND(N25/60,2)*Q25/100,"--") -> -- | Z25: =IF(O25="RF",J25*S25*ROUND(N25/60,2),"--") -> -- | AA25: =IF(O25="RR",J25*S25*ROUND(N25/60,2)*Q25/100,"--") -> -- | AB25: SI | AC25: =IF(F25="","",SUM(T25:AA25)*IF(AB25="SI",1,2)) -> 50.90625
J26: =H26*$I$18 -> 0 | P26: =IF(F26="","",IF(OR(O26="P",O26="RP"),"--","NO")) ->  | Q26: =IF(F26="","","--") ->  | S26: 3 | T26: -- | U26: -- | V26: -- | W26: -- | X26: -- | Y26: -- | Z26: -- | AA26: -- | AB26: =IF(F26="","","SI") -> 
J27: 0 | S27: 3 | T27: -- | U27: -- | V27: -- | W27: -- | X27: -- | Y27: -- | Z27: -- | AA27: --
J28: 0 | S28: 3 | T28: -- | U28: -- | V28: -- | W28: -- | X28: -- | Y28: -- | Z28: -- | AA28: --
J29: 0 | S29: 3 | T29: -- | U29: -- | V29: -- | W29: -- | X29: -- | Y29: -- | Z29: -- | AA29: --
J30: 0 | S30: 3 | T30: -- | U30: -- | V30: -- | W30: -- | X30: -- | Y30: -- | Z30: -- | AA30: --
J31: 0 | S31: 3 | T31: -- | U31: -- | V31: -- | W31: -- | X31: -- | Y31: -- | Z31: -- | AA31: --
J32: 0 | S32: 3 | T32: -- | U32: -- | V32: -- | W32: -- | X32: -- | Y32: -- | Z32: -- | AA32: --
J33: 0 | S33: 3 | T33: -- | U33: -- | V33: -- | W33: -- | X33: -- | Y33: -- | Z33: -- | AA33: --
J34: 0 | S34: 3 | T34: -- | U34: -- | V34: -- | W34: -- | X34: -- | Y34: -- | Z34: -- | AA34: --
J35: 0 | S35: 3 | T35: -- | U35: -- | V35: -- | W35: -- | X35: -- | Y35: -- | Z35: -- | AA35: --
J36: 0 | S36: 3 | T36: -- | U36: -- | V36: -- | W36: -- | X36: -- | Y36: -- | Z36: -- | AA36: --
J37: 0 | S37: 3 | T37: -- | U37: -- | V37: -- | W37: -- | X37: -- | Y37: -- | Z37: -- | AA37: --
J38: 0 | S38: 3 | T38: -- | U38: -- | V38: -- | W38: -- | X38: -- | Y38: -- | Z38: -- | AA38: --
J39: 0 | S39: 3 | T39: -- | U39: -- | V39: -- | W39: -- | X39: -- | Y39: -- | Z39: -- | AA39: --
J40: 0 | S40: 3 | T40: -- | U40: -- | V40: -- | W40: -- | X40: -- | Y40: -- | Z40: -- | AA40: --
J41: 0 | S41: 3 | T41: -- | U41: -- | V41: -- | W41: -- | X41: -- | Y41: -- | Z41: -- | AA41: --
J42: 0 | S42: 3 | T42: -- | U42: -- | V42: -- | W42: -- | X42: -- | Y42: -- | Z42: -- | AA42: --
J43: 0 | S43: 3 | T43: -- | U43: -- | V43: -- | W43: -- | X43: -- | Y43: -- | Z43: -- | AA43: --
J44: 0 | S44: 3 | T44: -- | U44: -- | V44: -- | W44: -- | X44: -- | Y44: -- | Z44: -- | AA44: --
C46: (²) | D46: F - FORZADA | T46: =SUM(T22:T45) -> 0 | U46: 0 | V46: 81.45 | W46: 49.6845 | X46: 0 | Y46: 0 | Z46: 0 | AA46: 0 | AC46: =ROUND(SUM(AC22:AC45),2) -> 131.13

Sheet SUP-EDESA
B2: =+'TOT-0216'!B2 -> ANEXO V al Memorandum D.T.E.E. N° 356 / 2016
A3: ENTE NACIONAL REGULADOR
A4: DE LA ELECTRICIDAD
D7: SISTEMA DE TRANSPORTE DE ENERGÍA ELÉCTRICA POR DISTRIBUCIÓN TRONCAL - TRANSNOA S.A.
D9: 3.1- SUPERVISIÓN - Transportista Independiente EDESA S.A.
B11: ='TOT-0216'!B14 -> Desde el 01 al 29 de Febrero de 2016
C15: a) Datos
I16: $/100 km-h : LÍNEAS 132 kV | J16: 514.204 | L16: Salida en 132 kV o 66 kV = | M16: -
D17: Tiempo de servicio = | E17: =MID(B11,16,2)*24 -> 696 | F17: hs | I17: Cargo por Transformador por MVA = | J17: 1.79 | L17: Salida en 33 kV | M17: 17.935
D18: Porcentaje por Supervisión = | E18: 0.025 | L18: Salida en 13,2 kV = | M18: 17.935
C20: b) SM: es la suma de las sanciones a que en cada mes se hiciere pasible el Transportista Independiente, valorizadas con idénticos criterios que los que se aplican a la Concesionaria.
D22: SANCIÓN al T.I. | F22: LÍNEAS | I22: 47931.52 | L22: SEGÚN 1.2.
F23: TRANSFORMACIÓN | I23: 1171.52 | L23: SEGÚN 2.1.2.
F24: SALIDAS | I24: 0
H26: SM = | I26: =SUM(I22:I25) -> 49103.04
C28: c) RM : es la remuneración que mensualmente recibiría el Transportista Independiente, si su servicio fuera valorizado conforme al régimen remuneratorio que se aplica a la Concesionaria.
D30: Cargo por Capacidad de Transporte | E30: U [kV] | F30: Long [km] | H30: Cargo por C. T. | I30: ="Cargo por E.E.T." -> Cargo por E.E.T. | L30: TOTAL
D31: METAN - EL TUNAL | E31: 132 | F31: 75.6 | H31: =F31*$J$16*$E$17/100 -> 270561.8039 | I31: 5787 | J31: ="(DTE "&DATO!$G$14&DATO!$H$14&")" -> (DTE 0216) | L31: =SUM(H31:K31) -> 276348.8039
D32: EL TUNAL - J.V.GONZALEZ | E32: 132 | F32: 41.4 | H32: =F32*$J$16*$E$17/100 -> 148164.7974 | I32: 11293 | J32: ="(DTE "&DATO!$G$14&DATO!$H$14&")" -> (DTE 0216) | L32: =SUM(H32:K32) -> 159457.7974
L33: =SUM(L31:L32) -> 435806.6013
D35: Cargo por Capacidad de Transformación | E35: Equipo | F35: Pot [MVA] | H35: Cargo por C. T. | J35: E.T | L35: Salida | M35: U [kV] | N35: Cargo
D36: J.V. GONZALEZ | E36: T1 | F36: 7.5 | H36: =+F36*$J$17*$E$17 -> 9343.8 | J36: J.V. GONZALEZ | L36: Alimentador Tolloche | M36: 33 | N36: =$M$17*$E$17 -> 12482.76
D37: J.V. GONZALEZ | E37: T2 | F37: 7.5 | H37: =+F37*$J$17*$E$17 -> 9343.8 | J37: J.V. GONZALEZ | L37: Alimentador Lajitas | M37: 33 | N37: =$M$17*$E$17 -> 12482.76
D38: EL TUNAL | E38: T1 | F38: 7.5 | H38: =+F38*$J$17*$E$17 -> 9343.8 | J38: J.V. GONZALEZ | L38: Alimentador J. V. Gonzalez | M38: 13.2 | N38: =$M$17*$E$17 -> 12482.76
D39: EL TUNAL | E39: T2 | F39: 7.5 | H39: =+F39*$J$17*$E$17 -> 9343.8 | J39: J.V. GONZALEZ | L39: Alimentador El Tunal | M39: 13.2 | N39: =$M$17*$E$17 -> 12482.76
H40: =SUM(H36:H39) -> 37375.2 | J40: J.V. GONZALEZ | L40: Alimentador Quebrachal | M40: 13.2 | N40: =$M$17*$E$17 -> 12482.76
N41: =SUM(N36:N40) -> 62413.8
H43: RM = | I43: =+H40+N41+L33 -> 535595.6013 | K43: RM * = | L43: 69444.31168
C45: d) CS: Es el cargo por Supervisión de la Operación que la Transportista percibe por supervisar la operación y mantenimiento del Transportista Independiente.
D47: Cargo por Supervisión afectado a la sanción | H47: CS = | I47: =E18*L43 -> 1736.107792 | K47: RM * = SE EMPLEA PARA EL CALCULO DE CS
C49: e) SANCIÓN
D50: Sanción Calculada | E50: =10*I26*I47/I43 -> 1591.651801
D52: TOTAL A PENALIZAR A TRANSNOA S.A. POR SUPERVISIÓN A EDESA S.A.
H54: SANCIÓN = | I54: =IF($E$50>3*I47,3*I47,$E$50) -> 1591.651801

Sheet Tasa de Falla
B2: ='TOT-0216'!B2 -> ANEXO V al Memorandum D.T.E.E. N° 356 / 2016
A3: ENTE NACIONAL REGULADOR
A4: DE LA ELECTRICIDAD
B6: SISTEMA DE TRANSPORTE DE ENERGÍA ELÉCTRICA POR DISTRIBUCIÓN TRONCAL
B8: TRANSNOA S.A.
B10: INDISPONIBILIDADES FORZADAS DE LÍNEAS - TASA DE FALLA
B13: y | D13: ='TOT-0216'!B14 -> Desde el 01 al 29 de Febrero de 2016
C15: N° | D15: LÍNEAS | E15: U [kV] | F15: Long. [km] | G15: 2015-02-01 | H15: 2015-03-01 | I15: 2015-04-01 | J15: 2015-05-01 | K15: 2015-06-01 | L15: 2015-07-01 | M15: 2015-08-01 | N15: 2015-09-01 | O15: 2015-10-01 | P15: 2015-11-01 | Q15: 2015-12-01 | R15: 2016-01-01 | S15: 2016-02-01
C17: ='[2]Tasa de Falla'!C17 -> 1 | D17: ='[2]Tasa de Falla'!D17 -> AGUA BLANCA - VILLA QUINTEROS | E17: ='[2]Tasa de Falla'!E17 -> 132 | F17: ='[2]Tasa de Falla'!F17 -> 23.8 | G17: =IF('[2]Tasa de Falla'!IU17=0,"",'[2]Tasa de Falla'!IU17) ->  | H17: =IF('[2]Tasa de Falla'!IV17=0,"",'[2]Tasa de Falla'!IV17) ->  | I17: =IF('[2]Tasa de Falla'!IW17=0,"",'[2]Tasa de Falla'!IW17) ->  | J17: =IF('[2]Tasa de Falla'!IX17=0,"",'[2]Tasa de Falla'!IX17) ->  | K17: =IF('[2]Tasa de Falla'!IY17=0,"",'[2]Tasa de Falla'!IY17) ->  | L17: =IF('[2]Tasa de Falla'!IZ17=0,"",'[2]Tasa de Falla'!IZ17) ->  | M17: =IF('[2]Tasa de Falla'!JA17=0,"",'[2]Tasa de Falla'!JA17) ->  | N17: =IF('[2]Tasa de Falla'!JB17=0,"",'[2]Tasa de Falla'!JB17) ->  | O17: =IF('[2]Tasa de Falla'!JC17=0,"",'[2]Tasa de Falla'!JC17) ->  | P17: =IF('[2]Tasa de Falla'!JD17=0,"",'[2]Tasa de Falla'!JD17) ->  | Q17: =IF('[2]Tasa de Falla'!JE17=0,"",'[2]Tasa de Falla'!JE17) ->  | R17: =IF('[2]Tasa de Falla'!JF17=0,"",'[2]Tasa de Falla'!JF17) -> 
C18: ='[2]Tasa de Falla'!C18 -> 2 | D18: ='[2]Tasa de Falla'!D18 -> AGUILARES - ESCABA | E18: ='[2]Tasa de Falla'!E18 -> 132 | F18: ='[2]Tasa de Falla'!F18 -> 27 | G18: =IF('[2]Tasa de Falla'!IU18=0,"",'[2]Tasa de Falla'!IU18) ->  | H18: =IF('[2]Tasa de Falla'!IV18=0,"",'[2]Tasa de Falla'!IV18) ->  | I18: =IF('[2]Tasa de Falla'!IW18=0,"",'[2]Tasa de Falla'!IW18) ->  | J18: =IF('[2]Tasa de Falla'!IX18=0,"",'[2]Tasa de Falla'!IX18) ->  | K18: =IF('[2]Tasa de Falla'!IY18=0,"",'[2]Tasa de Falla'!IY18) ->  | L18: =IF('[2]Tasa de Falla'!IZ18=0,"",'[2]Tasa de Falla'!IZ18) ->  | M18: =IF('[2]Tasa de Falla'!JA18=0,"",'[2]Tasa de Falla'!JA18) -> 2 | N18: =IF('[2]Tasa de Falla'!JB18=0,"",'[2]Tasa de Falla'!JB18) ->  | O18: =IF('[2]Tasa de Falla'!JC18=0,"",'[2]Tasa de Falla'!JC18) ->  | P18: =IF('[2]Tasa de Falla'!JD18=0,"",'[2]Tasa de Falla'!JD18) ->  | Q18: =IF('[2]Tasa de Falla'!JE18=0,"",'[2]Tasa de Falla'!JE18) ->  | R18: =IF('[2]Tasa de Falla'!JF18=0,"",'[2]Tasa de Falla'!JF18) -> 
C19: ='[2]Tasa de Falla'!C19 -> 3 | D19: ='[2]Tasa de Falla'!D19 -> CABRA CORRAL - SALTA SUR | E19: ='[2]Tasa de Falla'!E19 -> 132 | F19: ='[2]Tasa de Falla'!F19 -> 62 | G19: =IF('[2]Tasa de Falla'!IU19=0,"",'[2]Tasa de Falla'!IU19) -> XXXX | H19: =IF('[2]Tasa de Falla'!IV19=0,"",'[2]Tasa de Falla'!IV19) -> XXXX | I19: =IF('[2]Tasa de Falla'!IW19=0,"",'[2]Tasa de Falla'!IW19) -> XXXX | J19: =IF('[2]Tasa de Falla'!IX19=0,"",'[2]Tasa de Falla'!IX19) -> XXXX | K19: =IF('[2]Tasa de Falla'!IY19=0,"",'[2]Tasa de Falla'!IY19) -> XXXX | L19: =IF('[2]Tasa de Falla'!IZ19=0,"",'[2]Tasa de Falla'!IZ19) -> XXXX | M19: =IF('[2]Tasa de Falla'!JA19=0,"",'[2]Tasa de Falla'!JA19) -> XXXX | N19: =IF('[2]Tasa de Falla'!JB19=0,"",'[2]Tasa de Falla'!JB19) -> XXXX | O19: =IF('[2]Tasa de Falla'!JC19=0,"",'[2]Tasa de Falla'!JC19) -> XXXX | P19: =IF('[2]Tasa de Falla'!JD19=0,"",'[2]Tasa de Falla'!JD19) -> XXXX | Q19: =IF('[2]Tasa de Falla'!JE19=0,"",'[2]Tasa de Falla'!JE19) -> XXXX | R19: =IF('[2]Tasa de Falla'!JF19=0,"",'[2]Tasa de Falla'!JF19) -> XXXX
C20: ='[2]Tasa de Falla'!C20 -> 4 | D20: ='[2]Tasa de Falla'!D20 -> CEVIL POZO - TUCUMAN NORTE | E20: ='[2]Tasa de Falla'!E20 -> 132 | F20: ='[2]Tasa de Falla'!F20 -> 14.5 | G20: =IF('[2]Tasa de Falla'!IU20=0,"",'[2]Tasa de Falla'!IU20) ->  | H20: =IF('[2]Tasa de Falla'!IV20=0,"",'[2]Tasa de Falla'!IV20) ->  | I20: =IF('[2]Tasa de Falla'!IW20=0,"",'[2]Tasa de Falla'!IW20) ->  | J20: =IF('[2]Tasa de Falla'!IX20=0,"",'[2]Tasa de Falla'!IX20) ->  | K20: =IF('[2]Tasa de Falla'!IY20=0,"",'[2]Tasa de Falla'!IY20) ->  | L20: =IF('[2]Tasa de Falla'!IZ20=0,"",'[2]Tasa de Falla'!IZ20) ->  | M20: =IF('[2]Tasa de Falla'!JA20=0,"",'[2]Tasa de Falla'!JA20) ->  | N20: =IF('[2]Tasa de Falla'!JB20=0,"",'[2]Tasa de Falla'!JB20) ->  | O20: =IF('[2]Tasa de Falla'!JC20=0,"",'[2]Tasa de Falla'!JC20) ->  | P20: =IF('[2]Tasa de Falla'!JD20=0,"",'[2]Tasa de Falla'!JD20) ->  | Q20: =IF('[2]Tasa de Falla'!JE20=0,"",'[2]Tasa de Falla'!JE20) ->  | R20: =IF('[2]Tasa de Falla'!JF20=0,"",'[2]Tasa de Falla'!JF20) -> 
C21: ='[2]Tasa de Falla'!C21 -> 5 | D21: ='[2]Tasa de Falla'!D21 -> CAMPO SANTO - MINETTI | E21: ='[2]Tasa de Falla'!E21 -> 132 | F21: ='[2]Tasa de Falla'!F21 -> 29.9 | G21: =IF('[2]Tasa de Falla'!IU21=0,"",'[2]Tasa de Falla'!IU21) -> XXXX | H21: =IF('[2]Tasa de Falla'!IV21=0,"",'[2]Tasa de Falla'!IV21) -> XXXX | I21: =IF('[2]Tasa de Falla'!IW21=0,"",'[2]Tasa de Falla'!IW21) -> XXXX | J21: =IF('[2]Tasa de Falla'!IX21=0,"",'[2]Tasa de Falla'!IX21) -> XXXX | K21: =IF('[2]Tasa de Falla'!IY21=0,"",'[2]Tasa de Falla'!IY21) -> XXXX | L21: =IF('[2]Tasa de Falla'!IZ21=0,"",'[2]Tasa de Falla'!IZ21) -> XXXX | M21: =IF('[2]Tasa de Falla'!JA21=0,"",'[2]Tasa de Falla'!JA21) -> XXXX | N21: =IF('[2]Tasa de Falla'!JB21=0,"",'[2]Tasa de Falla'!JB21) -> XXXX | O21: =IF('[2]Tasa de Falla'!JC21=0,"",'[2]Tasa de Falla'!JC21) -> XXXX | P21: =IF('[2]Tasa de Falla'!JD21=0,"",'[2]Tasa de Falla'!JD21) -> XXXX | Q21: =IF('[2]Tasa de Falla'!JE21=0,"",'[2]Tasa de Falla'!JE21) -> XXXX | R21: =IF('[2]Tasa de Falla'!JF21=0,"",'[2]Tasa de Falla'!JF21) -> XXXX
C22: ='[2]Tasa de Falla'!C22 -> 6 | D22: ='[2]Tasa de Falla'!D22 -> ESCABA - HUACRA | E22: ='[2]Tasa de Falla'!E22 -> 132 | F22: ='[2]Tasa de Falla'!F22 -> 49.9 | G22: =IF('[2]Tasa de Falla'!IU22=0,"",'[2]Tasa de Falla'!IU22) -> XXXX | H22: =IF('[2]Tasa de Falla'!IV22=0,"",'[2]Tasa de Falla'!IV22) -> XXXX | I22: =IF('[2]Tasa de Falla'!IW22=0,"",'[2]Tasa de Falla'!IW22) -> XXXX | J22: =IF('[2]Tasa de Falla'!IX22=0,"",'[2]Tasa de Falla'!IX22) -> XXXX | K22: =IF('[2]Tasa de Falla'!IY22=0,"",'[2]Tasa de Falla'!IY22) -> XXXX | L22: =IF('[2]Tasa de Falla'!IZ22=0,"",'[2]Tasa de Falla'!IZ22) -> XXXX | M22: =IF('[2]Tasa de Falla'!JA22=0,"",'[2]Tasa de Falla'!JA22) -> XXXX | N22: =IF('[2]Tasa de Falla'!JB22=0,"",'[2]Tasa de Falla'!JB22) -> XXXX | O22: =IF('[2]Tasa de Falla'!JC22=0,"",'[2]Tasa de Falla'!JC22) -> XXXX | P22: =IF('[2]Tasa de Falla'!JD22=0,"",'[2]Tasa de Falla'!JD22) -> XXXX | Q22: =IF('[2]Tasa de Falla'!JE22=0,"",'[2]Tasa de Falla'!JE22) -> XXXX | R22: =IF('[2]Tasa de Falla'!JF22=0,"",'[2]Tasa de Falla'!JF22) -> XXXX
C23: ='[2]Tasa de Falla'!C23 -> 7 | D23: ='[2]Tasa de Falla'!D23 -> ESTATICA SUR - EL BRACHO | E23: ='[2]Tasa de Falla'!E23 -> 132 | F23: ='[2]Tasa de Falla'!F23 -> 19.6 | G23: =IF('[2]Tasa de Falla'!IU23=0,"",'[2]Tasa de Falla'!IU23) ->  | H23: =IF('[2]Tasa de Falla'!IV23=0,"",'[2]Tasa de Falla'!IV23) -> XXXX | I23: =IF('[2]Tasa de Falla'!IW23=0,"",'[2]Tasa de Falla'!IW23) -> XXXX | J23: =IF('[2]Tasa de Falla'!IX23=0,"",'[2]Tasa de Falla'!IX23) -> XXXX | K23: =IF('[2]Tasa de Falla'!IY23=0,"",'[2]Tasa de Falla'!IY23) -> XXXX | L23: =IF('[2]Tasa de Falla'!IZ23=0,"",'[2]Tasa de Falla'!IZ23) -> XXXX | M23: =IF('[2]Tasa de Falla'!JA23=0,"",'[2]Tasa de Falla'!JA23) -> XXXX | N23: =IF('[2]Tasa de Falla'!JB23=0,"",'[2]Tasa de Falla'!JB23) -> XXXX | O23: =IF('[2]Tasa de Falla'!JC23=0,"",'[2]Tasa de Falla'!JC23) -> XXXX | P23: =IF('[2]Tasa de Falla'!JD23=0,"",'[2]Tasa de Falla'!JD23) -> XXXX | Q23: =IF('[2]Tasa de Falla'!JE23=0,"",'[2]Tasa de Falla'!JE23) -> XXXX | R23: =IF('[2]Tasa de Falla'!JF23=0,"",'[2]Tasa de Falla'!JF23) -> XXXX
C24: ='[2]Tasa de Falla'!C24 -> 8 | D24: ='[2]Tasa de Falla'!D24 -> ESTATICA SUR - INDEPENDENCIA 1 (O.F.) | E24: ='[2]Tasa de Falla'!E24 -> 132 | F24: ='[2]Tasa de Falla'!F24 -> 2.6 | G24: =IF('[2]Tasa de Falla'!IU24=0,"",'[2]Tasa de Falla'!IU24) ->  | H24: =IF('[2]Tasa de Falla'!IV24=0,"",'[2]Tasa de Falla'!IV24) ->  | I24: =IF('[2]Tasa de Falla'!IW24=0,"",'[2]Tasa de Falla'!IW24) ->  | J24: =IF('[2]Tasa de Falla'!IX24=0,"",'[2]Tasa de Falla'!IX24) ->  | K24: =IF('[2]Tasa de Falla'!IY24=0,"",'[2]Tasa de Falla'!IY24) ->  | L24: =IF('[2]Tasa de Falla'!IZ24=0,"",'[2]Tasa de Falla'!IZ24) -> 1 | M24: =IF('[2]Tasa de Falla'!JA24=0,"",'[2]Tasa de Falla'!JA24) ->  | N24: =IF('[2]Tasa de Falla'!JB24=0,"",'[2]Tasa de Falla'!JB24) ->  | O24: =IF('[2]Tasa de Falla'!JC24=0,"",'[2]Tasa de Falla'!JC24) ->  | P24: =IF('[2]Tasa de Falla'!JD24=0,"",'[2]Tasa de Falla'!JD24) ->  | Q24: =IF('[2]Tasa de Falla'!JE24=0,"",'[2]Tasa de Falla'!JE24) ->  | R24: =IF('[2]Tasa de Falla'!JF24=0,"",'[2]Tasa de Falla'!JF24) -> 
C25: ='[2]Tasa de Falla'!C25 -> 9 | D25: ='[2]Tasa de Falla'!D25 -> ESTATICA SUR - SARMIENTO "TRANSNOA S.A." | E25: ='[2]Tasa de Falla'!E25 -> 132 | F25: ='[2]Tasa de Falla'!F25 -> 4.4 | G25: =IF('[2]Tasa de Falla'!IU25=0,"",'[2]Tasa de Falla'!IU25) ->  | H25: =IF('[2]Tasa de Falla'!IV25=0,"",'[2]Tasa de Falla'!IV25) ->  | I25: =IF('[2]Tasa de Falla'!IW25=0,"",'[2]Tasa de Falla'!IW25) ->  | J25: =IF('[2]Tasa de Falla'!IX25=0,"",'[2]Tasa de Falla'!IX25) ->  | K25: =IF('[2]Tasa de Falla'!IY25=0,"",'[2]Tasa de Falla'!IY25) ->  | L25: =IF('[2]Tasa de Falla'!IZ25=0,"",'[2]Tasa de Falla'!IZ25) ->  | M25: =IF('[2]Tasa de Falla'!JA25=0,"",'[2]Tasa de Falla'!JA25) ->  | N25: =IF('[2]Tasa de Falla'!JB25=0,"",'[2]Tasa de Falla'!JB25) ->  | O25: =IF('[2]Tasa de Falla'!JC25=0,"",'[2]Tasa de Falla'!JC25) ->  | P25: =IF('[2]Tasa de Falla'!JD25=0,"",'[2]Tasa de Falla'!JD25) ->  | Q25: =IF('[2]Tasa de Falla'!JE25=0,"",'[2]Tasa de Falla'!JE25) ->  | R25: =IF('[2]Tasa de Falla'!JF25=0,"",'[2]Tasa de Falla'!JF25) -> 
C26: ='[2]Tasa de Falla'!C26 -> 10 | D26: ='[2]Tasa de Falla'!D26 -> GÜEMES - EL BRACHO | E26: ='[2]Tasa de Falla'!E26 -> 132 | F26: ='[2]Tasa de Falla'!F26 -> 308 | G26: =IF('[2]Tasa de Falla'!IU26=0,"",'[2]Tasa de Falla'!IU26) -> XXXX | H26: =IF('[2]Tasa de Falla'!IV26=0,"",'[2]Tasa de Falla'!IV26) -> XXXX | I26: =IF('[2]Tasa de Falla'!IW26=0,"",'[2]Tasa de Falla'!IW26) -> XXXX | J26: =IF('[2]Tasa de Falla'!IX26=0,"",'[2]Tasa de Falla'!IX26) -> XXXX | K26: =IF('[2]Tasa de Falla'!IY26=0,"",'[2]Tasa de Falla'!IY26) -> XXXX | L26: =IF('[2]Tasa de Falla'!IZ26=0,"",'[2]Tasa de Falla'!IZ26) -> XXXX | M26: =IF('[2]Tasa de Falla'!JA26=0,"",'[2]Tasa de Falla'!JA26) -> XXXX | N26: =IF('[2]Tasa de Falla'!JB26=0,"",'[2]Tasa de Falla'!JB26) -> XXXX | O26: =IF('[2]Tasa de Falla'!JC26=0,"",'[2]Tasa de Falla'!JC26) -> XXXX | P26: =IF('[2]Tasa de Falla'!JD26=0,"",'[2]Tasa de Falla'!JD26) -> XXXX | Q26: =IF('[2]Tasa de Falla'!JE26=0,"",'[2]Tasa de Falla'!JE26) -> XXXX | R26: =IF('[2]Tasa de Falla'!JF26=0,"",'[2]Tasa de Falla'!JF26) -> XXXX
C27: ='[2]Tasa de Falla'!C27 -> 11 | D27: ='[2]Tasa de Falla'!D27 -> CAMPO SANTO - GÜEMES | E27: ='[2]Tasa de Falla'!E27 -> 132 | F27: ='[2]Tasa de Falla'!F27 -> 6.2 | G27: =IF('[2]Tasa de Falla'!IU27=0,"",'[2]Tasa de Falla'!IU27) -> XXXX | H27: =IF('[2]Tasa de Falla'!IV27=0,"",'[2]Tasa de Falla'!IV27) -> XXXX | I27: =IF('[2]Tasa de Falla'!IW27=0,"",'[2]Tasa de Falla'!IW27) -> XXXX | J27: =IF('[2]Tasa de Falla'!IX27=0,"",'[2]Tasa de Falla'!IX27) -> XXXX | K27: =IF('[2]Tasa de Falla'!IY27=0,"",'[2]Tasa de Falla'!IY27) -> XXXX | L27: =IF('[2]Tasa de Falla'!IZ27=0,"",'[2]Tasa de Falla'!IZ27) -> XXXX | M27: =IF('[2]Tasa de Falla'!JA27=0,"",'[2]Tasa de Falla'!JA27) -> XXXX | N27: =IF('[2]Tasa de Falla'!JB27=0,"",'[2]Tasa de Falla'!JB27) -> XXXX | O27: =IF('[2]Tasa de Falla'!JC27=0,"",'[2]Tasa de Falla'!JC27) -> XXXX | P27: =IF('[2]Tasa de Falla'!JD27=0,"",'[2]Tasa de Falla'!JD27) -> XXXX | Q27: =IF('[2]Tasa de Falla'!JE27=0,"",'[2]Tasa de Falla'!JE27) -> XXXX | R27: =IF('[2]Tasa de Falla'!JF27=0,"",'[2]Tasa de Falla'!JF27) -> XXXX
C28: ='[2]Tasa de Falla'!C28 -> 12 | D28: ='[2]Tasa de Falla'!D28 -> GÜEMES - SAN JUANCITO | E28: ='[2]Tasa de Falla'!E28 -> 132 | F28: ='[2]Tasa de Falla'!F28 -> 36.24 | G28: =IF('[2]Tasa de Falla'!IU28=0,"",'[2]Tasa de Falla'!IU28) ->  | H28: =IF('[2]Tasa de Falla'!IV28=0,"",'[2]Tasa de Falla'!IV28) ->  | I28: =IF('[2]Tasa de Falla'!IW28=0,"",'[2]Tasa de Falla'!IW28) -> 3 | J28: =IF('[2]Tasa de Falla'!IX28=0,"",'[2]Tasa de Falla'!IX28) -> 1 | K28: =IF('[2]Tasa de Falla'!IY28=0,"",'[2]Tasa de Falla'!IY28) ->  | L28: =IF('[2]Tasa de Falla'!IZ28=0,"",'[2]Tasa de Falla'!IZ28) ->  | M28: =IF('[2]Tasa de Falla'!JA28=0,"",'[2]Tasa de Falla'!JA28) ->  | N28: =IF('[2]Tasa de Falla'!JB28=0,"",'[2]Tasa de Falla'!JB28) ->  | O28: =IF('[2]Tasa de Falla'!JC28=0,"",'[2]Tasa de Falla'!JC28) ->  | P28: =IF('[2]Tasa de Falla'!JD28=0,"",'[2]Tasa de Falla'!JD28) ->  | Q28: =IF('[2]Tasa de Falla'!JE28=0,"",'[2]Tasa de Falla'!JE28) -> 2 | R28: =IF('[2]Tasa de Falla'!JF28=0,"",'[2]Tasa de Falla'!JF28) -> 2
C29: ='[2]Tasa de Falla'!C29 -> 13 | D29: ='[2]Tasa de Falla'!D29 -> CATAMARCA - HUACRA | E29: ='[2]Tasa de Falla'!E29 -> 132 | F29: ='[2]Tasa de Falla'!F29 -> 67.3 | G29: =IF('[2]Tasa de Falla'!IU29=0,"",'[2]Tasa de Falla'!IU29) ->  | H29: =IF('[2]Tasa de Falla'!IV29=0,"",'[2]Tasa de Falla'!IV29) ->  | I29: =IF('[2]Tasa de Falla'!IW29=0,"",'[2]Tasa de Falla'!IW29) -> 1 | J29: =IF('[2]Tasa de Falla'!IX29=0,"",'[2]Tasa de Falla'!IX29) ->  | K29: =IF('[2]Tasa de Falla'!IY29=0,"",'[2]Tasa de Falla'!IY29) ->  | L29: =IF('[2]Tasa de Falla'!IZ29=0,"",'[2]Tasa de Falla'!IZ29) ->  | M29: =IF('[2]Tasa de Falla'!JA29=0,"",'[2]Tasa de Falla'!JA29) ->  | N29: =IF('[2]Tasa de Falla'!JB29=0,"",'[2]Tasa de Falla'!JB29) ->  | O29: =IF('[2]Tasa de Falla'!JC29=0,"",'[2]Tasa de Falla'!JC29) ->  | P29: =IF('[2]Tasa de Falla'!JD29=0,"",'[2]Tasa de Falla'!JD29) ->  | Q29: =IF('[2]Tasa de Falla'!JE29=0,"",'[2]Tasa de Falla'!JE29) -> 2 | R29: =IF('[2]Tasa de Falla'!JF29=0,"",'[2]Tasa de Falla'!JF29) -> 
C30: ='[2]Tasa de Falla'!C30 -> 14 | D30: ='[2]Tasa de Falla'!D30 -> HUACRA - LA CALERA | E30: ='[2]Tasa de Falla'!E30 -> 132 | F30: ='[2]Tasa de Falla'!F30 -> 91.2 | G30: =IF('[2]Tasa de Falla'!IU30=0,"",'[2]Tasa de Falla'!IU30) ->  | H30: =IF('[2]Tasa de Falla'!IV30=0,"",'[2]Tasa de Falla'!IV30) ->  | I30: =IF('[2]Tasa de Falla'!IW30=0,"",'[2]Tasa de Falla'!IW30) ->  | J30: =IF('[2]Tasa de Falla'!IX30=0,"",'[2]Tasa de Falla'!IX30) -> 1 | K30: =IF('[2]Tasa de Falla'!IY30=0,"",'[2]Tasa de Falla'!IY30) ->  | L30: =IF('[2]Tasa de Falla'!IZ30=0,"",'[2]Tasa de Falla'!IZ30) ->  | M30: =IF('[2]Tasa de Falla'!JA30=0,"",'[2]Tasa de Falla'!JA30) ->  | N30: =IF('[2]Tasa de Falla'!JB30=0,"",'[2]Tasa de Falla'!JB30) ->  | O30: =IF('[2]Tasa de Falla'!JC30=0,"",'[2]Tasa de Falla'!JC30) ->  | P30: =IF('[2]Tasa de Falla'!JD30=0,"",'[2]Tasa de Falla'!JD30) ->  | Q30: =IF('[2]Tasa de Falla'!JE30=0,"",'[2]Tasa de Falla'!JE30) ->  | R30: =IF('[2]Tasa de Falla'!JF30=0,"",'[2]Tasa de Falla'!JF30) -> 
C31: ='[2]Tasa de Falla'!C31 -> 15 | D31: ='[2]Tasa de Falla'!D31 -> AGUA BLANCA - INDEPENDENCIA | E31: ='[2]Tasa de Falla'!E31 -> 132 | F31: ='[2]Tasa de Falla'!F31 -> 34.14 | G31: =IF('[2]Tasa de Falla'!IU31=0,"",'[2]Tasa de Falla'!IU31) ->  | H31: =IF('[2]Tasa de Falla'!IV31=0,"",'[2]Tasa de Falla'!IV31) ->  | I31: =IF('[2]Tasa de Falla'!IW31=0,"",'[2]Tasa de Falla'!IW31) ->  | J31: =IF('[2]Tasa de Falla'!IX31=0,"",'[2]Tasa de Falla'!IX31) ->  | K31: =IF('[2]Tasa de Falla'!IY31=0,"",'[2]Tasa de Falla'!IY31) ->  | L31: =IF('[2]Tasa de Falla'!IZ31=0,"",'[2]Tasa de Falla'!IZ31) ->  | M31: =IF('[2]Tasa de Falla'!JA31=0,"",'[2]Tasa de Falla'!JA31) ->  | N31: =IF('[2]Tasa de Falla'!JB31=0,"",'[2]Tasa de Falla'!JB31) -> 1 | O31: =IF('[2]Tasa de Falla'!JC31=0,"",'[2]Tasa de Falla'!JC31) ->  | P31: =IF('[2]Tasa de Falla'!JD31=0,"",'[2]Tasa de Falla'!JD31) ->  | Q31: =IF('[2]Tasa de Falla'!JE31=0,"",'[2]Tasa de Falla'!JE31) ->  | R31: =IF('[2]Tasa de Falla'!JF31=0,"",'[2]Tasa de Falla'!JF31) -> 
C32: ='[2]Tasa de Falla'!C32 -> 16 | D32: ='[2]Tasa de Falla'!D32 -> INDEPENDENCIA - EL BRACHO 1 | E32: ='[2]Tasa de Falla'!E32 -> 132 | F32: ='[2]Tasa de Falla'!F32 -> 17.1 | G32: =IF('[2]Tasa de Falla'!IU32=0,"",'[2]Tasa de Falla'!IU32) ->  | H32: =IF('[2]Tasa de Falla'!IV32=0,"",'[2]Tasa de Falla'!IV32) ->  | I32: =IF('[2]Tasa de Falla'!IW32=0,"",'[2]Tasa de Falla'!IW32) ->  | J32: =IF('[2]Tasa de Falla'!IX32=0,"",'[2]Tasa de Falla'!IX32) ->  | K32: =IF('[2]Tasa de Falla'!IY32=0,"",'[2]Tasa de Falla'!IY32) ->  | L32: =IF('[2]Tasa de Falla'!IZ32=0,"",'[2]Tasa de Falla'!IZ32) ->  | M32: =IF('[2]Tasa de Falla'!JA32=0,"",'[2]Tasa de Falla'!JA32) -> 1 | N32: =IF('[2]Tasa de Falla'!JB32=0,"",'[2]Tasa de Falla'!JB32) ->  | O32: =IF('[2]Tasa de Falla'!JC32=0,"",'[2]Tasa de Falla'!JC32) ->  | P32: =IF('[2]Tasa de Falla'!JD32=0,"",'[2]Tasa de Falla'!JD32) ->  | Q32: =IF('[2]Tasa de Falla'!JE32=0,"",'[2]Tasa de Falla'!JE32) ->  | R32: =IF('[2]Tasa de Falla'!JF32=0,"",'[2]Tasa de Falla'!JF32) -> 
C33: ='[2]Tasa de Falla'!C33 -> 17 | D33: ='[2]Tasa de Falla'!D33 -> INDEPENDENCIA - LULES - PAPEL TUCUMAN | E33: ='[2]Tasa de Falla'!E33 -> 132 | F33: ='[2]Tasa de Falla'!F33 -> 19.3 | G33: =IF('[2]Tasa de Falla'!IU33=0,"",'[2]Tasa de Falla'!IU33) ->  | H33: =IF('[2]Tasa de Falla'!IV33=0,"",'[2]Tasa de Falla'!IV33) ->  | I33: =IF('[2]Tasa de Falla'!IW33=0,"",'[2]Tasa de Falla'!IW33) ->  | J33: =IF('[2]Tasa de Falla'!IX33=0,"",'[2]Tasa de Falla'!IX33) ->  | K33: =IF('[2]Tasa de Falla'!IY33=0,"",'[2]Tasa de Falla'!IY33) ->  | L33: =IF('[2]Tasa de Falla'!IZ33=0,"",'[2]Tasa de Falla'!IZ33) ->  | M33: =IF('[2]Tasa de Falla'!JA33=0,"",'[2]Tasa de Falla'!JA33) ->  | N33: =IF('[2]Tasa de Falla'!JB33=0,"",'[2]Tasa de Falla'!JB33) ->  | O33: =IF('[2]Tasa de Falla'!JC33=0,"",'[2]Tasa de Falla'!JC33) ->  | P33: =IF('[2]Tasa de Falla'!JD33=0,"",'[2]Tasa de Falla'!JD33) ->  | Q33: =IF('[2]Tasa de Falla'!JE33=0,"",'[2]Tasa de Falla'!JE33) ->  | R33: =IF('[2]Tasa de Falla'!JF33=0,"",'[2]Tasa de Falla'!JF33) -> 
C34: ='[2]Tasa de Falla'!C34 -> 18 | D34: ='[2]Tasa de Falla'!D34 -> FRIAS - LA CALERA NOA. | E34: ='[2]Tasa de Falla'!E34 -> 132 | F34: ='[2]Tasa de Falla'!F34 -> 27.3 | G34: =IF('[2]Tasa de Falla'!IU34=0,"",'[2]Tasa de Falla'!IU34) ->  | H34: =IF('[2]Tasa de Falla'!IV34=0,"",'[2]Tasa de Falla'!IV34) ->  | I34: =IF('[2]Tasa de Falla'!IW34=0,"",'[2]Tasa de Falla'!IW34) ->  | J34: =IF('[2]Tasa de Falla'!IX34=0,"",'[2]Tasa de Falla'!IX34) ->  | K34: =IF('[2]Tasa de Falla'!IY34=0,"",'[2]Tasa de Falla'!IY34) ->  | L34: =IF('[2]Tasa de Falla'!IZ34=0,"",'[2]Tasa de Falla'!IZ34) ->  | M34: =IF('[2]Tasa de Falla'!JA34=0,"",'[2]Tasa de Falla'!JA34) ->  | N34: =IF('[2]Tasa de Falla'!JB34=0,"",'[2]Tasa de Falla'!JB34) ->  | O34: =IF('[2]Tasa de Falla'!JC34=0,"",'[2]Tasa de Falla'!JC34) ->  | P34: =IF('[2]Tasa de Falla'!JD34=0,"",'[2]Tasa de Falla'!JD34) ->  | Q34: =IF('[2]Tasa de Falla'!JE34=0,"",'[2]Tasa de Falla'!JE34) ->  | R34: =IF('[2]Tasa de Falla'!JF34=0,"",'[2]Tasa de Falla'!JF34) -> 
C35: ='[2]Tasa de Falla'!C35 -> 19 | D35: ='[2]Tasa de Falla'!D35 -> LA BANDA - SANTIAGO CENTRO | E35: ='[2]Tasa de Falla'!E35 -> 132 | F35: ='[2]Tasa de Falla'!F35 -> 10.91 | G35: =IF('[2]Tasa de Falla'!IU35=0,"",'[2]Tasa de Falla'!IU35) ->  | H35: =IF('[2]Tasa de Falla'!IV35=0,"",'[2]Tasa de Falla'!IV35) -> 1 | I35: =IF('[2]Tasa de Falla'!IW35=0,"",'[2]Tasa de Falla'!IW35) ->  | J35: =IF('[2]Tasa de Falla'!IX35=0,"",'[2]Tasa de Falla'!IX35) ->  | K35: =IF('[2]Tasa de Falla'!IY35=0,"",'[2]Tasa de Falla'!IY35) -> XXXX | L35: =IF('[2]Tasa de Falla'!IZ35=0,"",'[2]Tasa de Falla'!IZ35) -> XXXX | M35: =IF('[2]Tasa de Falla'!JA35=0,"",'[2]Tasa de Falla'!JA35) -> XXXX | N35: =IF('[2]Tasa de Falla'!JB35=0,"",'[2]Tasa de Falla'!JB35) -> XXXX | O35: =IF('[2]Tasa de Falla'!JC35=0,"",'[2]Tasa de Falla'!JC35) -> XXXX | P35: =IF('[2]Tasa de Falla'!JD35=0,"",'[2]Tasa de Falla'!JD35) -> XXXX | Q35: =IF('[2]Tasa de Falla'!JE35=0,"",'[2]Tasa de Falla'!JE35) -> XXXX | R35: =IF('[2]Tasa de Falla'!JF35=0,"",'[2]Tasa de Falla'!JF35) -> XXXX
C36: ='[2]Tasa de Falla'!C36 -> 20 | D36: ='[2]Tasa de Falla'!D36 -> LIBERTADOR NOA. - PICHANAL | E36: ='[2]Tasa de Falla'!E36 -> 132 | F36: ='[2]Tasa de Falla'!F36 -> 76 | G36: =IF('[2]Tasa de Falla'!IU36=0,"",'[2]Tasa de Falla'!IU36) -> 1 | H36: =IF('[2]Tasa de Falla'!IV36=0,"",'[2]Tasa de Falla'!IV36) -> 4 | I36: =IF('[2]Tasa de Falla'!IW36=0,"",'[2]Tasa de Falla'!IW36) ->  | J36: =IF('[2]Tasa de Falla'!IX36=0,"",'[2]Tasa de Falla'!IX36) ->  | K36: =IF('[2]Tasa de Falla'!IY36=0,"",'[2]Tasa de Falla'!IY36) ->  | L36: =IF('[2]Tasa de Falla'!IZ36=0,"",'[2]Tasa de Falla'!IZ36) ->  | M36: =IF('[2]Tasa de Falla'!JA36=0,"",'[2]Tasa de Falla'!JA36) ->  | N36: =IF('[2]Tasa de Falla'!JB36=0,"",'[2]Tasa de Falla'!JB36) ->  | O36: =IF('[2]Tasa de Falla'!JC36=0,"",'[2]Tasa de Falla'!JC36) ->  | P36: =IF('[2]Tasa de Falla'!JD36=0,"",'[2]Tasa de Falla'!JD36) -> 1 | Q36: =IF('[2]Tasa de Falla'!JE36=0,"",'[2]Tasa de Falla'!JE36) -> 1 | R36: =IF('[2]Tasa de Falla'!JF36=0,"",'[2]Tasa de Falla'!JF36) -> 1
C37: ='[2]Tasa de Falla'!C37 -> 21 | D37: ='[2]Tasa de Falla'!D37 -> GÜEMES - METAN | E37: ='[2]Tasa de Falla'!E37 -> 132 | F37: ='[2]Tasa de Falla'!F37 -> 97.13 | G37: =IF('[2]Tasa de Falla'!IU37=0,"",'[2]Tasa de Falla'!IU37) -> XXXX | H37: =IF('[2]Tasa de Falla'!IV37=0,"",'[2]Tasa de Falla'!IV37) -> XXXX | I37: =IF('[2]Tasa de Falla'!IW37=0,"",'[2]Tasa de Falla'!IW37) -> XXXX | J37: =IF('[2]Tasa de Falla'!IX37=0,"",'[2]Tasa de Falla'!IX37) -> XXXX | K37: =IF('[2]Tasa de Falla'!IY37=0,"",'[2]Tasa de Falla'!IY37) -> XXXX | L37: =IF('[2]Tasa de Falla'!IZ37=0,"",'[2]Tasa de Falla'!IZ37) -> XXXX | M37: =IF('[2]Tasa de Falla'!JA37=0,"",'[2]Tasa de Falla'!JA37) -> XXXX | N37: =IF('[2]Tasa de Falla'!JB37=0,"",'[2]Tasa de Falla'!JB37) -> XXXX | O37: =IF('[2]Tasa de Falla'!JC37=0,"",'[2]Tasa de Falla'!JC37) -> XXXX | P37: =IF('[2]Tasa de Falla'!JD37=0,"",'[2]Tasa de Falla'!JD37) -> XXXX | Q37: =IF('[2]Tasa de Falla'!JE37=0,"",'[2]Tasa de Falla'!JE37) -> XXXX | R37: =IF('[2]Tasa de Falla'!JF37=0,"",'[2]Tasa de Falla'!JF37) -> XXXX
C38: ='[2]Tasa de Falla'!C38 -> 22 | D38: ='[2]Tasa de Falla'!D38 -> MINETTI - SAN JUANCITO | E38: ='[2]Tasa de Falla'!E38 -> 132 | F38: ='[2]Tasa de Falla'!F38 -> 26 | G38: =IF('[2]Tasa de Falla'!IU38=0,"",'[2]Tasa de Falla'!IU38) ->  | H38: =IF('[2]Tasa de Falla'!IV38=0,"",'[2]Tasa de Falla'!IV38) ->  | I38: =IF('[2]Tasa de Falla'!IW38=0,"",'[2]Tasa de Falla'!IW38) ->  | J38: =IF('[2]Tasa de Falla'!IX38=0,"",'[2]Tasa de Falla'!IX38) -> 2 | K38: =IF('[2]Tasa de Falla'!IY38=0,"",'[2]Tasa de Falla'!IY38) ->  | L38: =IF('[2]Tasa de Falla'!IZ38=0,"",'[2]Tasa de Falla'!IZ38) ->  | M38: =IF('[2]Tasa de Falla'!JA38=0,"",'[2]Tasa de Falla'!JA38) -> 1 | N38: =IF('[2]Tasa de Falla'!JB38=0,"",'[2]Tasa de Falla'!JB38) ->  | O38: =IF('[2]Tasa de Falla'!JC38=0,"",'[2]Tasa de Falla'!JC38) ->  | P38: =IF('[2]Tasa de Falla'!JD38=0,"",'[2]Tasa de Falla'!JD38) ->  | Q38: =IF('[2]Tasa de Falla'!JE38=0,"",'[2]Tasa de Falla'!JE38) ->  | R38: =IF('[2]Tasa de Falla'!JF38=0,"",'[2]Tasa de Falla'!JF38) -> 
C39: ='[2]Tasa de Falla'!C39 -> 23 | D39: ='[2]Tasa de Falla'!D39 -> PALPALA - JUJUY SUR | E39: ='[2]Tasa de Falla'!E39 -> 132 | F39: ='[2]Tasa de Falla'!F39 -> 14 | G39: =IF('[2]Tasa de Falla'!IU39=0,"",'[2]Tasa de Falla'!IU39) -> XXXX | H39: =IF('[2]Tasa de Falla'!IV39=0,"",'[2]Tasa de Falla'!IV39) -> XXXX | I39: =IF('[2]Tasa de Falla'!IW39=0,"",'[2]Tasa de Falla'!IW39) -> XXXX | J39: =IF('[2]Tasa de Falla'!IX39=0,"",'[2]Tasa de Falla'!IX39) -> XXXX | K39: =IF('[2]Tasa de Falla'!IY39=0,"",'[2]Tasa de Falla'!IY39) -> XXXX | L39: =IF('[2]Tasa de Falla'!IZ39=0,"",'[2]Tasa de Falla'!IZ39) -> XXXX | M39: =IF('[2]Tasa de Falla'!JA39=0,"",'[2]Tasa de Falla'!JA39) -> XXXX | N39: =IF('[2]Tasa de Falla'!JB39=0,"",'[2]Tasa de Falla'!JB39) -> XXXX | O39: =IF('[2]Tasa de Falla'!JC39=0,"",'[2]Tasa de Falla'!JC39) -> XXXX | P39: =IF('[2]Tasa de Falla'!JD39=0,"",'[2]Tasa de Falla'!JD39) -> XXXX | Q39: =IF('[2]Tasa de Falla'!JE39=0,"",'[2]Tasa de Falla'!JE39) -> XXXX | R39: =IF('[2]Tasa de Falla'!JF39=0,"",'[2]Tasa de Falla'!JF39) -> XXXX
C40: ='[2]Tasa de Falla'!C40 -> 24 | D40: ='[2]Tasa de Falla'!D40 -> ORAN - PICHANAL | E40: ='[2]Tasa de Falla'!E40 -> 132 | F40: ='[2]Tasa de Falla'!F40 -> 17 | G40: =IF('[2]Tasa de Falla'!IU40=0,"",'[2]Tasa de Falla'!IU40) -> XXXX | H40: =IF('[2]Tasa de Falla'!IV40=0,"",'[2]Tasa de Falla'!IV40) -> XXXX | I40: =IF('[2]Tasa de Falla'!IW40=0,"",'[2]Tasa de Falla'!IW40) -> XXXX | J40: =IF('[2]Tasa de Falla'!IX40=0,"",'[2]Tasa de Falla'!IX40) -> XXXX | K40: =IF('[2]Tasa de Falla'!IY40=0,"",'[2]Tasa de Falla'!IY40) -> XXXX | L40: =IF('[2]Tasa de Falla'!IZ40=0,"",'[2]Tasa de Falla'!IZ40) -> XXXX | M40: =IF('[2]Tasa de Falla'!JA40=0,"",'[2]Tasa de Falla'!JA40) -> XXXX | N40: =IF('[2]Tasa de Falla'!JB40=0,"",'[2]Tasa de Falla'!JB40) -> XXXX | O40: =IF('[2]Tasa de Falla'!JC40=0,"",'[2]Tasa de Falla'!JC40) -> XXXX | P40: =IF('[2]Tasa de Falla'!JD40=0,"",'[2]Tasa de Falla'!JD40) -> XXXX | Q40: =IF('[2]Tasa de Falla'!JE40=0,"",'[2]Tasa de Falla'!JE40) -> XXXX | R40: =IF('[2]Tasa de Falla'!JF40=0,"",'[2]Tasa de Falla'!JF40) -> XXXX
C41: ='[2]Tasa de Falla'!C41 -> 25 | D41: ='[2]Tasa de Falla'!D41 -> PICHANAL - TARTAGAL | E41: ='[2]Tasa de Falla'!E41 -> 132 | F41: ='[2]Tasa de Falla'!F41 -> 105 | G41: =IF('[2]Tasa de Falla'!IU41=0,"",'[2]Tasa de Falla'!IU41) ->  | H41: =IF('[2]Tasa de Falla'!IV41=0,"",'[2]Tasa de Falla'!IV41) -> XXXX | I41: =IF('[2]Tasa de Falla'!IW41=0,"",'[2]Tasa de Falla'!IW41) -> XXXX | J41: =IF('[2]Tasa de Falla'!IX41=0,"",'[2]Tasa de Falla'!IX41) -> XXXX | K41: =IF('[2]Tasa de Falla'!IY41=0,"",'[2]Tasa de Falla'!IY41) -> XXXX | L41: =IF('[2]Tasa de Falla'!IZ41=0,"",'[2]Tasa de Falla'!IZ41) -> XXXX | M41: =IF('[2]Tasa de Falla'!JA41=0,"",'[2]Tasa de Falla'!JA41) -> XXXX | N41: =IF('[2]Tasa de Falla'!JB41=0,"",'[2]Tasa de Falla'!JB41) -> XXXX | O41: =IF('[2]Tasa de Falla'!JC41=0,"",'[2]Tasa de Falla'!JC41) -> XXXX | P41: =IF('[2]Tasa de Falla'!JD41=0,"",'[2]Tasa de Falla'!JD41) -> XXXX | Q41: =IF('[2]Tasa de Falla'!JE41=0,"",'[2]Tasa de Falla'!JE41) -> XXXX | R41: =IF('[2]Tasa de Falla'!JF41=0,"",'[2]Tasa de Falla'!JF41) -> XXXX
C42: ='[2]Tasa de Falla'!C42 -> 26 | D42: ='[2]Tasa de Falla'!D42 -> C.H. RIO HONDO - LA BANDA | E42: ='[2]Tasa de Falla'!E42 -> 132 | F42: ='[2]Tasa de Falla'!F42 -> 76.5 | G42: =IF('[2]Tasa de Falla'!IU42=0,"",'[2]Tasa de Falla'!IU42) ->  | H42: =IF('[2]Tasa de Falla'!IV42=0,"",'[2]Tasa de Falla'!IV42) -> 1 | I42: =IF('[2]Tasa de Falla'!IW42=0,"",'[2]Tasa de Falla'!IW42) ->  | J42: =IF('[2]Tasa de Falla'!IX42=0,"",'[2]Tasa de Falla'!IX42) ->  | K42: =IF('[2]Tasa de Falla'!IY42=0,"",'[2]Tasa de Falla'!IY42) ->  | L42: =IF('[2]Tasa de Falla'!IZ42=0,"",'[2]Tasa de Falla'!IZ42) ->  | M42: =IF('[2]Tasa de Falla'!JA42=0,"",'[2]Tasa de Falla'!JA42) ->  | N42: =IF('[2]Tasa de Falla'!JB42=0,"",'[2]Tasa de Falla'!JB42) ->  | O42: =IF('[2]Tasa de Falla'!JC42=0,"",'[2]Tasa de Falla'!JC42) ->  | P42: =IF('[2]Tasa de Falla'!JD42=0,"",'[2]Tasa de Falla'!JD42) -> 1 | Q42: =IF('[2]Tasa de Falla'!JE42=0,"",'[2]Tasa de Falla'!JE42) ->  | R42: =IF('[2]Tasa de Falla'!JF42=0,"",'[2]Tasa de Falla'!JF42) -> 
C43: ='[2]Tasa de Falla'!C43 -> 27 | D43: ='[2]Tasa de Falla'!D43 -> LA RIOJA - RECREO 2 | E43: ='[2]Tasa de Falla'!E43 -> 132 | F43: ='[2]Tasa de Falla'!F43 -> 220 | G43: =IF('[2]Tasa de Falla'!IU43=0,"",'[2]Tasa de Falla'!IU43) -> XXXX | H43: =IF('[2]Tasa de Falla'!IV43=0,"",'[2]Tasa de Falla'!IV43) -> XXXX | I43: =IF('[2]Tasa de Falla'!IW43=0,"",'[2]Tasa de Falla'!IW43) -> XXXX | J43: =IF('[2]Tasa de Falla'!IX43=0,"",'[2]Tasa de Falla'!IX43) -> XXXX | K43: =IF('[2]Tasa de Falla'!IY43=0,"",'[2]Tasa de Falla'!IY43) -> XXXX | L43: =IF('[2]Tasa de Falla'!IZ43=0,"",'[2]Tasa de Falla'!IZ43) -> XXXX | M43: =IF('[2]Tasa de Falla'!JA43=0,"",'[2]Tasa de Falla'!JA43) -> XXXX | N43: =IF('[2]Tasa de Falla'!JB43=0,"",'[2]Tasa de Falla'!JB43) -> XXXX | O43: =IF('[2]Tasa de Falla'!JC43=0,"",'[2]Tasa de Falla'!JC43) -> XXXX | P43: =IF('[2]Tasa de Falla'!JD43=0,"",'[2]Tasa de Falla'!JD43) -> XXXX | Q43: =IF('[2]Tasa de Falla'!JE43=0,"",'[2]Tasa de Falla'!JE43) -> XXXX | R43: =IF('[2]Tasa de Falla'!JF43=0,"",'[2]Tasa de Falla'!JF43) -> XXXX
C44: ='[2]Tasa de Falla'!C44 -> 28 | D44: ='[2]Tasa de Falla'!D44 -> CAMPO SANTO - SALTA SUR | E44: ='[2]Tasa de Falla'!E44 -> 132 | F44: ='[2]Tasa de Falla'!F44 -> 40.92 | G44: =IF('[2]Tasa de Falla'!IU44=0,"",'[2]Tasa de Falla'!IU44) -> XXXX | H44: =IF('[2]Tasa de Falla'!IV44=0,"",'[2]Tasa de Falla'!IV44) -> XXXX | I44: =IF('[2]Tasa de Falla'!IW44=0,"",'[2]Tasa de Falla'!IW44) -> XXXX | J44: =IF('[2]Tasa de Falla'!IX44=0,"",'[2]Tasa de Falla'!IX44) -> XXXX | K44: =IF('[2]Tasa de Falla'!IY44=0,"",'[2]Tasa de Falla'!IY44) -> XXXX | L44: =IF('[2]Tasa de Falla'!IZ44=0,"",'[2]Tasa de Falla'!IZ44) -> XXXX | M44: =IF('[2]Tasa de Falla'!JA44=0,"",'[2]Tasa de Falla'!JA44) -> XXXX | N44: =IF('[2]Tasa de Falla'!JB44=0,"",'[2]Tasa de Falla'!JB44) -> XXXX | O44: =IF('[2]Tasa de Falla'!JC44=0,"",'[2]Tasa de Falla'!JC44) -> XXXX | P44: =IF('[2]Tasa de Falla'!JD44=0,"",'[2]Tasa de Falla'!JD44) -> XXXX | Q44: =IF('[2]Tasa de Falla'!JE44=0,"",'[2]Tasa de Falla'!JE44) -> XXXX | R44: =IF('[2]Tasa de Falla'!JF44=0,"",'[2]Tasa de Falla'!JF44) -> XXXX
C45: ='[2]Tasa de Falla'!C45 -> 29 | D45: ='[2]Tasa de Falla'!D45 -> PALPALA - SAN JUANCITO | E45: ='[2]Tasa de Falla'!E45 -> 132 | F45: ='[2]Tasa de Falla'!F45 -> 23.9 | G45: =IF('[2]Tasa de Falla'!IU45=0,"",'[2]Tasa de Falla'!IU45) ->  | H45: =IF('[2]Tasa de Falla'!IV45=0,"",'[2]Tasa de Falla'!IV45) ->  | I45: =IF('[2]Tasa de Falla'!IW45=0,"",'[2]Tasa de Falla'!IW45) -> 2 | J45: =IF('[2]Tasa de Falla'!IX45=0,"",'[2]Tasa de Falla'!IX45) -> 2 | K45: =IF('[2]Tasa de Falla'!IY45=0,"",'[2]Tasa de Falla'!IY45) ->  | L45: =IF('[2]Tasa de Falla'!IZ45=0,"",'[2]Tasa de Falla'!IZ45) ->  | M45: =IF('[2]Tasa de Falla'!JA45=0,"",'[2]Tasa de Falla'!JA45) ->  | N45: =IF('[2]Tasa de Falla'!JB45=0,"",'[2]Tasa de Falla'!JB45) ->  | O45: =IF('[2]Tasa de Falla'!JC45=0,"",'[2]Tasa de Falla'!JC45) ->  | P45: =IF('[2]Tasa de Falla'!JD45=0,"",'[2]Tasa de Falla'!JD45) -> 2 | Q45: =IF('[2]Tasa de Falla'!JE45=0,"",'[2]Tasa de Falla'!JE45) ->  | R45: =IF('[2]Tasa de Falla'!JF45=0,"",'[2]Tasa de Falla'!JF45) -> 
C46: ='[2]Tasa de Falla'!C46 -> 30 | D46: ='[2]Tasa de Falla'!D46 -> SAN JUANCITO - SAN PEDRO JUJUY | E46: ='[2]Tasa de Falla'!E46 -> 132 | F46: ='[2]Tasa de Falla'!F46 -> 27 | G46: =IF('[2]Tasa de Falla'!IU46=0,"",'[2]Tasa de Falla'!IU46) ->  | H46: =IF('[2]Tasa de Falla'!IV46=0,"",'[2]Tasa de Falla'!IV46) ->  | I46: =IF('[2]Tasa de Falla'!IW46=0,"",'[2]Tasa de Falla'!IW46) ->  | J46: =IF('[2]Tasa de Falla'!IX46=0,"",'[2]Tasa de Falla'!IX46) ->  | K46: =IF('[2]Tasa de Falla'!IY46=0,"",'[2]Tasa de Falla'!IY46) ->  | L46: =IF('[2]Tasa de Falla'!IZ46=0,"",'[2]Tasa de Falla'!IZ46) ->  | M46: =IF('[2]Tasa de Falla'!JA46=0,"",'[2]Tasa de Falla'!JA46) ->  | N46: =IF('[2]Tasa de Falla'!JB46=0,"",'[2]Tasa de Falla'!JB46) ->  | O46: =IF('[2]Tasa de Falla'!JC46=0,"",'[2]Tasa de Falla'!JC46) ->  | P46: =IF('[2]Tasa de Falla'!JD46=0,"",'[2]Tasa de Falla'!JD46) ->  | Q46: =IF('[2]Tasa de Falla'!JE46=0,"",'[2]Tasa de Falla'!JE46) ->  | R46: =IF('[2]Tasa de Falla'!JF46=0,"",'[2]Tasa de Falla'!JF46) -> 
C47: ='[2]Tasa de Falla'!C47 -> 31 | D47: ='[2]Tasa de Falla'!D47 -> SAN MARTIN - CATAMARCA | E47: ='[2]Tasa de Falla'!E47 -> 132 | F47: ='[2]Tasa de Falla'!F47 -> 88 | G47: =IF('[2]Tasa de Falla'!IU47=0,"",'[2]Tasa de Falla'!IU47) -> XXXX | H47: =IF('[2]Tasa de Falla'!IV47=0,"",'[2]Tasa de Falla'!IV47) -> XXXX | I47: =IF('[2]Tasa de Falla'!IW47=0,"",'[2]Tasa de Falla'!IW47) -> XXXX | J47: =IF('[2]Tasa de Falla'!IX47=0,"",'[2]Tasa de Falla'!IX47) -> XXXX | K47: =IF('[2]Tasa de Falla'!IY47=0,"",'[2]Tasa de Falla'!IY47) -> XXXX | L47: =IF('[2]Tasa de Falla'!IZ47=0,"",'[2]Tasa de Falla'!IZ47) -> XXXX | M47: =IF('[2]Tasa de Falla'!JA47=0,"",'[2]Tasa de Falla'!JA47) -> XXXX | N47: =IF('[2]Tasa de Falla'!JB47=0,"",'[2]Tasa de Falla'!JB47) -> XXXX | O47: =IF('[2]Tasa de Falla'!JC47=0,"",'[2]Tasa de Falla'!JC47) -> XXXX | P47: =IF('[2]Tasa de Falla'!JD47=0,"",'[2]Tasa de Falla'!JD47) -> XXXX | Q47: =IF('[2]Tasa de Falla'!JE47=0,"",'[2]Tasa de Falla'!JE47) -> XXXX | R47: =IF('[2]Tasa de Falla'!JF47=0,"",'[2]Tasa de Falla'!JF47) -> XXXX
C48: ='[2]Tasa de Falla'!C48 -> 32 | D48: ='[2]Tasa de Falla'!D48 -> SAN MARTIN - RECREO | E48: ='[2]Tasa de Falla'!E48 -> 132 | F48: ='[2]Tasa de Falla'!F48 -> 115 | G48: =IF('[2]Tasa de Falla'!IU48=0,"",'[2]Tasa de Falla'!IU48) -> XXXX | H48: =IF('[2]Tasa de Falla'!IV48=0,"",'[2]Tasa de Falla'!IV48) -> XXXX | I48: =IF('[2]Tasa de Falla'!IW48=0,"",'[2]Tasa de Falla'!IW48) -> XXXX | J48: =IF('[2]Tasa de Falla'!IX48=0,"",'[2]Tasa de Falla'!IX48) -> XXXX | K48: =IF('[2]Tasa de Falla'!IY48=0,"",'[2]Tasa de Falla'!IY48) -> XXXX | L48: =IF('[2]Tasa de Falla'!IZ48=0,"",'[2]Tasa de Falla'!IZ48) -> XXXX | M48: =IF('[2]Tasa de Falla'!JA48=0,"",'[2]Tasa de Falla'!JA48) -> XXXX | N48: =IF('[2]Tasa de Falla'!JB48=0,"",'[2]Tasa de Falla'!JB48) -> XXXX | O48: =IF('[2]Tasa de Falla'!JC48=0,"",'[2]Tasa de Falla'!JC48) -> XXXX | P48: =IF('[2]Tasa de Falla'!JD48=0,"",'[2]Tasa de Falla'!JD48) -> XXXX | Q48: =IF('[2]Tasa de Falla'!JE48=0,"",'[2]Tasa de Falla'!JE48) -> XXXX | R48: =IF('[2]Tasa de Falla'!JF48=0,"",'[2]Tasa de Falla'!JF48) -> XXXX
C49: ='[2]Tasa de Falla'!C49 -> 33 | D49: ='[2]Tasa de Falla'!D49 -> SAN MARTIN C. - LA RIOJA | E49: ='[2]Tasa de Falla'!E49 -> 132 | F49: ='[2]Tasa de Falla'!F49 -> 105 | G49: =IF('[2]Tasa de Falla'!IU49=0,"",'[2]Tasa de Falla'!IU49) -> XXXX | H49: =IF('[2]Tasa de Falla'!IV49=0,"",'[2]Tasa de Falla'!IV49) -> XXXX | I49: =IF('[2]Tasa de Falla'!IW49=0,"",'[2]Tasa de Falla'!IW49) -> XXXX | J49: =IF('[2]Tasa de Falla'!IX49=0,"",'[2]Tasa de Falla'!IX49) -> XXXX | K49: =IF('[2]Tasa de Falla'!IY49=0,"",'[2]Tasa de Falla'!IY49) -> XXXX | L49: =IF('[2]Tasa de Falla'!IZ49=0,"",'[2]Tasa de Falla'!IZ49) -> XXXX | M49: =IF('[2]Tasa de Falla'!JA49=0,"",'[2]Tasa de Falla'!JA49) -> XXXX | N49: =IF('[2]Tasa de Falla'!JB49=0,"",'[2]Tasa de Falla'!JB49) -> XXXX | O49: =IF('[2]Tasa de Falla'!JC49=0,"",'[2]Tasa de Falla'!JC49) -> XXXX | P49: =IF('[2]Tasa de Falla'!JD49=0,"",'[2]Tasa de Falla'!JD49) -> XXXX | Q49: =IF('[2]Tasa de Falla'!JE49=0,"",'[2]Tasa de Falla'!JE49) -> XXXX | R49: =IF('[2]Tasa de Falla'!JF49=0,"",'[2]Tasa de Falla'!JF49) -> XXXX
C50: ='[2]Tasa de Falla'!C50 -> 34 | D50: ='[2]Tasa de Falla'!D50 -> SAN PEDRO JUJUY - LIBERTADOR NOA. | E50: ='[2]Tasa de Falla'!E50 -> 132 | F50: ='[2]Tasa de Falla'!F50 -> 49 | G50: =IF('[2]Tasa de Falla'!IU50=0,"",'[2]Tasa de Falla'!IU50) ->  | H50: =IF('[2]Tasa de Falla'!IV50=0,"",'[2]Tasa de Falla'!IV50) ->  | I50: =IF('[2]Tasa de Falla'!IW50=0,"",'[2]Tasa de Falla'!IW50) ->  | J50: =IF('[2]Tasa de Falla'!IX50=0,"",'[2]Tasa de Falla'!IX50) ->  | K50: =IF('[2]Tasa de Falla'!IY50=0,"",'[2]Tasa de Falla'!IY50) ->  | L50: =IF('[2]Tasa de Falla'!IZ50=0,"",'[2]Tasa de Falla'!IZ50) ->  | M50: =IF('[2]Tasa de Falla'!JA50=0,"",'[2]Tasa de Falla'!JA50) ->  | N50: =IF('[2]Tasa de Falla'!JB50=0,"",'[2]Tasa de Falla'!JB50) ->  | O50: =IF('[2]Tasa de Falla'!JC50=0,"",'[2]Tasa de Falla'!JC50) ->  | P50: =IF('[2]Tasa de Falla'!JD50=0,"",'[2]Tasa de Falla'!JD50) -> 1 | Q50: =IF('[2]Tasa de Falla'!JE50=0,"",'[2]Tasa de Falla'!JE50) ->  | R50: =IF('[2]Tasa de Falla'!JF50=0,"",'[2]Tasa de Falla'!JF50) -> 
C51: ='[2]Tasa de Falla'!C51 -> 35 | D51: ='[2]Tasa de Falla'!D51 -> TUCUMAN NORTE - EL BRACHO | E51: ='[2]Tasa de Falla'!E51 -> 132 | F51: ='[2]Tasa de Falla'!F51 -> 31.5 | G51: =IF('[2]Tasa de Falla'!IU51=0,"",'[2]Tasa de Falla'!IU51) ->  | H51: =IF('[2]Tasa de Falla'!IV51=0,"",'[2]Tasa de Falla'!IV51) ->  | I51: =IF('[2]Tasa de Falla'!IW51=0,"",'[2]Tasa de Falla'!IW51) ->  | J51: =IF('[2]Tasa de Falla'!IX51=0,"",'[2]Tasa de Falla'!IX51) ->  | K51: =IF('[2]Tasa de Falla'!IY51=0,"",'[2]Tasa de Falla'!IY51) ->  | L51: =IF('[2]Tasa de Falla'!IZ51=0,"",'[2]Tasa de Falla'!IZ51) ->  | M51: =IF('[2]Tasa de Falla'!JA51=0,"",'[2]Tasa de Falla'!JA51) -> 1 | N51: =IF('[2]Tasa de Falla'!JB51=0,"",'[2]Tasa de Falla'!JB51) ->  | O51: =IF('[2]Tasa de Falla'!JC51=0,"",'[2]Tasa de Falla'!JC51) ->  | P51: =IF('[2]Tasa de Falla'!JD51=0,"",'[2]Tasa de Falla'!JD51) ->  | Q51: =IF('[2]Tasa de Falla'!JE51=0,"",'[2]Tasa de Falla'!JE51) ->  | R51: =IF('[2]Tasa de Falla'!JF51=0,"",'[2]Tasa de Falla'!JF51) -> 
C52: ='[2]Tasa de Falla'!C52 -> 36 | D52: ='[2]Tasa de Falla'!D52 -> C.H. EL CADILLAL - TUCUMAN NORTE | E52: ='[2]Tasa de Falla'!E52 -> 132 | F52: ='[2]Tasa de Falla'!F52 -> 21.8 | G52: =IF('[2]Tasa de Falla'!IU52=0,"",'[2]Tasa de Falla'!IU52) -> 2 | H52: =IF('[2]Tasa de Falla'!IV52=0,"",'[2]Tasa de Falla'!IV52) ->  | I52: =IF('[2]Tasa de Falla'!IW52=0,"",'[2]Tasa de Falla'!IW52) -> 1 | J52: =IF('[2]Tasa de Falla'!IX52=0,"",'[2]Tasa de Falla'!IX52) ->  | K52: =IF('[2]Tasa de Falla'!IY52=0,"",'[2]Tasa de Falla'!IY52) ->  | L52: =IF('[2]Tasa de Falla'!IZ52=0,"",'[2]Tasa de Falla'!IZ52) ->  | M52: =IF('[2]Tasa de Falla'!JA52=0,"",'[2]Tasa de Falla'!JA52) ->  | N52: =IF('[2]Tasa de Falla'!JB52=0,"",'[2]Tasa de Falla'!JB52) ->  | O52: =IF('[2]Tasa de Falla'!JC52=0,"",'[2]Tasa de Falla'!JC52) ->  | P52: =IF('[2]Tasa de Falla'!JD52=0,"",'[2]Tasa de Falla'!JD52) ->  | Q52: =IF('[2]Tasa de Falla'!JE52=0,"",'[2]Tasa de Falla'!JE52) ->  | R52: =IF('[2]Tasa de Falla'!JF52=0,"",'[2]Tasa de Falla'!JF52) -> 
C53: ='[2]Tasa de Falla'!C53 -> 37 | D53: ='[2]Tasa de Falla'!D53 -> TUCUMAN NORTE - CABRA CORRAL | E53: ='[2]Tasa de Falla'!E53 -> 132 | F53: ='[2]Tasa de Falla'!F53 -> 190 | G53: =IF('[2]Tasa de Falla'!IU53=0,"",'[2]Tasa de Falla'!IU53) -> XXXX | H53: =IF('[2]Tasa de Falla'!IV53=0,"",'[2]Tasa de Falla'!IV53) -> XXXX | I53: =IF('[2]Tasa de Falla'!IW53=0,"",'[2]Tasa de Falla'!IW53) -> XXXX | J53: =IF('[2]Tasa de Falla'!IX53=0,"",'[2]Tasa de Falla'!IX53) -> XXXX | K53: =IF('[2]Tasa de Falla'!IY53=0,"",'[2]Tasa de Falla'!IY53) -> XXXX | L53: =IF('[2]Tasa de Falla'!IZ53=0,"",'[2]Tasa de Falla'!IZ53) -> XXXX | M53: =IF('[2]Tasa de Falla'!JA53=0,"",'[2]Tasa de Falla'!JA53) -> XXXX | N53: =IF('[2]Tasa de Falla'!JB53=0,"",'[2]Tasa de Falla'!JB53) -> XXXX | O53: =IF('[2]Tasa de Falla'!JC53=0,"",'[2]Tasa de Falla'!JC53) -> XXXX | P53: =IF('[2]Tasa de Falla'!JD53=0,"",'[2]Tasa de Falla'!JD53) -> XXXX | Q53: =IF('[2]Tasa de Falla'!JE53=0,"",'[2]Tasa de Falla'!JE53) -> XXXX | R53: =IF('[2]Tasa de Falla'!JF53=0,"",'[2]Tasa de Falla'!JF53) -> XXXX
C54: ='[2]Tasa de Falla'!C54 -> 38 | D54: ='[2]Tasa de Falla'!D54 -> METAN - TUCUMAN NORTE | E54: ='[2]Tasa de Falla'!E54 -> 132 | F54: ='[2]Tasa de Falla'!F54 -> 155.6 | G54: =IF('[2]Tasa de Falla'!IU54=0,"",'[2]Tasa de Falla'!IU54) ->  | H54: =IF('[2]Tasa de Falla'!IV54=0,"",'[2]Tasa de Falla'!IV54) ->  | I54: =IF('[2]Tasa de Falla'!IW54=0,"",'[2]Tasa de Falla'!IW54) ->  | J54: =IF('[2]Tasa de Falla'!IX54=0,"",'[2]Tasa de Falla'!IX54) ->  | K54: =IF('[2]Tasa de Falla'!IY54=0,"",'[2]Tasa de Falla'!IY54) ->  | L54: =IF('[2]Tasa de Falla'!IZ54=0,"",'[2]Tasa de Falla'!IZ54) ->  | M54: =IF('[2]Tasa de Falla'!JA54=0,"",'[2]Tasa de Falla'!JA54) ->  | N54: =IF('[2]Tasa de Falla'!JB54=0,"",'[2]Tasa de Falla'!JB54) ->  | O54: =IF('[2]Tasa de Falla'!JC54=0,"",'[2]Tasa de Falla'!JC54) ->  | P54: =IF('[2]Tasa de Falla'!JD54=0,"",'[2]Tasa de Falla'!JD54) ->  | Q54: =IF('[2]Tasa de Falla'!JE54=0,"",'[2]Tasa de Falla'!JE54) ->  | R54: =IF('[2]Tasa de Falla'!JF54=0,"",'[2]Tasa de Falla'!JF54) -> 1
C55: ='[2]Tasa de Falla'!C55 -> 39 | D55: ='[2]Tasa de Falla'!D55 -> SARMIENTO - TUCUMAN NORTE (O.F.) | E55: ='[2]Tasa de Falla'!E55 -> 132 | F55: ='[2]Tasa de Falla'!F55 -> 3.3 | G55: =IF('[2]Tasa de Falla'!IU55=0,"",'[2]Tasa de Falla'!IU55) ->  | H55: =IF('[2]Tasa de Falla'!IV55=0,"",'[2]Tasa de Falla'!IV55) ->  | I55: =IF('[2]Tasa de Falla'!IW55=0,"",'[2]Tasa de Falla'!IW55) ->  | J55: =IF('[2]Tasa de Falla'!IX55=0,"",'[2]Tasa de Falla'!IX55) ->  | K55: =IF('[2]Tasa de Falla'!IY55=0,"",'[2]Tasa de Falla'!IY55) ->  | L55: =IF('[2]Tasa de Falla'!IZ55=0,"",'[2]Tasa de Falla'!IZ55) ->  | M55: =IF('[2]Tasa de Falla'!JA55=0,"",'[2]Tasa de Falla'!JA55) ->  | N55: =IF('[2]Tasa de Falla'!JB55=0,"",'[2]Tasa de Falla'!JB55) ->  | O55: =IF('[2]Tasa de Falla'!JC55=0,"",'[2]Tasa de Falla'!JC55) ->  | P55: =IF('[2]Tasa de Falla'!JD55=0,"",'[2]Tasa de Falla'!JD55) ->  | Q55: =IF('[2]Tasa de Falla'!JE55=0,"",'[2]Tasa de Falla'!JE55) ->  | R55: =IF('[2]Tasa de Falla'!JF55=0,"",'[2]Tasa de Falla'!JF55) -> 
C56: ='[2]Tasa de Falla'!C56 -> 40 | D56: ='[2]Tasa de Falla'!D56 -> TUCUMAN OESTE - TUCUMAN NORTE | E56: ='[2]Tasa de Falla'!E56 -> 132 | F56: ='[2]Tasa de Falla'!F56 -> 7 | G56: =IF('[2]Tasa de Falla'!IU56=0,"",'[2]Tasa de Falla'!IU56) ->  | H56: =IF('[2]Tasa de Falla'!IV56=0,"",'[2]Tasa de Falla'!IV56) ->  | I56: =IF('[2]Tasa de Falla'!IW56=0,"",'[2]Tasa de Falla'!IW56) ->  | J56: =IF('[2]Tasa de Falla'!IX56=0,"",'[2]Tasa de Falla'!IX56) ->  | K56: =IF('[2]Tasa de Falla'!IY56=0,"",'[2]Tasa de Falla'!IY56) ->  | L56: =IF('[2]Tasa de Falla'!IZ56=0,"",'[2]Tasa de Falla'!IZ56) -> 1 | M56: =IF('[2]Tasa de Falla'!JA56=0,"",'[2]Tasa de Falla'!JA56) -> 1 | N56: =IF('[2]Tasa de Falla'!JB56=0,"",'[2]Tasa de Falla'!JB56) ->  | O56: =IF('[2]Tasa de Falla'!JC56=0,"",'[2]Tasa de Falla'!JC56) ->  | P56: =IF('[2]Tasa de Falla'!JD56=0,"",'[2]Tasa de Falla'!JD56) ->  | Q56: =IF('[2]Tasa de Falla'!JE56=0,"",'[2]Tasa de Falla'!JE56) -> 1 | R56: =IF('[2]Tasa de Falla'!JF56=0,"",'[2]Tasa de Falla'!JF56) -> 
C57: ='[2]Tasa de Falla'!C57 -> 41 | D57: ='[2]Tasa de Falla'!D57 -> AGUILARES - VILLA QUINTEROS | E57: ='[2]Tasa de Falla'!E57 -> 132 | F57: ='[2]Tasa de Falla'!F57 -> 21 | G57: =IF('[2]Tasa de Falla'!IU57=0,"",'[2]Tasa de Falla'!IU57) ->  | H57: =IF('[2]Tasa de Falla'!IV57=0,"",'[2]Tasa de Falla'!IV57) ->  | I57: =IF('[2]Tasa de Falla'!IW57=0,"",'[2]Tasa de Falla'!IW57) -> 1 | J57: =IF('[2]Tasa de Falla'!IX57=0,"",'[2]Tasa de Falla'!IX57) ->  | K57: =IF('[2]Tasa de Falla'!IY57=0,"",'[2]Tasa de Falla'!IY57) ->  | L57: =IF('[2]Tasa de Falla'!IZ57=0,"",'[2]Tasa de Falla'!IZ57) ->  | M57: =IF('[2]Tasa de Falla'!JA57=0,"",'[2]Tasa de Falla'!JA57) ->  | N57: =IF('[2]Tasa de Falla'!JB57=0,"",'[2]Tasa de Falla'!JB57) ->  | O57: =IF('[2]Tasa de Falla'!JC57=0,"",'[2]Tasa de Falla'!JC57) ->  | P57: =IF('[2]Tasa de Falla'!JD57=0,"",'[2]Tasa de Falla'!JD57) ->  | Q57: =IF('[2]Tasa de Falla'!JE57=0,"",'[2]Tasa de Falla'!JE57) ->  | R57: =IF('[2]Tasa de Falla'!JF57=0,"",'[2]Tasa de Falla'!JF57) -> 1
C58: ='[2]Tasa de Falla'!C58 -> 42 | D58: ='[2]Tasa de Falla'!D58 -> C.H. PUEBLO VIEJO - VILLA QUINTEROS | E58: ='[2]Tasa de Falla'!E58 -> 132 | F58: ='[2]Tasa de Falla'!F58 -> 24.5 | G58: =IF('[2]Tasa de Falla'!IU58=0,"",'[2]Tasa de Falla'!IU58) ->  | H58: =IF('[2]Tasa de Falla'!IV58=0,"",'[2]Tasa de Falla'!IV58) -> 1 | I58: =IF('[2]Tasa de Falla'!IW58=0,"",'[2]Tasa de Falla'!IW58) ->  | J58: =IF('[2]Tasa de Falla'!IX58=0,"",'[2]Tasa de Falla'!IX58) ->  | K58: =IF('[2]Tasa de Falla'!IY58=0,"",'[2]Tasa de Falla'!IY58) ->  | L58: =IF('[2]Tasa de Falla'!IZ58=0,"",'[2]Tasa de Falla'!IZ58) ->  | M58: =IF('[2]Tasa de Falla'!JA58=0,"",'[2]Tasa de Falla'!JA58) ->  | N58: =IF('[2]Tasa de Falla'!JB58=0,"",'[2]Tasa de Falla'!JB58) ->  | O58: =IF('[2]Tasa de Falla'!JC58=0,"",'[2]Tasa de Falla'!JC58) ->  | P58: =IF('[2]Tasa de Falla'!JD58=0,"",'[2]Tasa de Falla'!JD58) ->  | Q58: =IF('[2]Tasa de Falla'!JE58=0,"",'[2]Tasa de Falla'!JE58) -> 1 | R58: =IF('[2]Tasa de Falla'!JF58=0,"",'[2]Tasa de Falla'!JF58) -> 
C59: ='[2]Tasa de Falla'!C59 -> 43 | D59: ='[2]Tasa de Falla'!D59 -> C.H. RIO HONDO - VILLA QUINTEROS | E59: ='[2]Tasa de Falla'!E59 -> 132 | F59: ='[2]Tasa de Falla'!F59 -> 75.4 | G59: =IF('[2]Tasa de Falla'!IU59=0,"",'[2]Tasa de Falla'!IU59) ->  | H59: =IF('[2]Tasa de Falla'!IV59=0,"",'[2]Tasa de Falla'!IV59) ->  | I59: =IF('[2]Tasa de Falla'!IW59=0,"",'[2]Tasa de Falla'!IW59) ->  | J59: =IF('[2]Tasa de Falla'!IX59=0,"",'[2]Tasa de Falla'!IX59) ->  | K59: =IF('[2]Tasa de Falla'!IY59=0,"",'[2]Tasa de Falla'!IY59) ->  | L59: =IF('[2]Tasa de Falla'!IZ59=0,"",'[2]Tasa de Falla'!IZ59) ->  | M59: =IF('[2]Tasa de Falla'!JA59=0,"",'[2]Tasa de Falla'!JA59) ->  | N59: =IF('[2]Tasa de Falla'!JB59=0,"",'[2]Tasa de Falla'!JB59) -> 1 | O59: =IF('[2]Tasa de Falla'!JC59=0,"",'[2]Tasa de Falla'!JC59) ->  | P59: =IF('[2]Tasa de Falla'!JD59=0,"",'[2]Tasa de Falla'!JD59) ->  | Q59: =IF('[2]Tasa de Falla'!JE59=0,"",'[2]Tasa de Falla'!JE59) -> 1 | R59: =IF('[2]Tasa de Falla'!JF59=0,"",'[2]Tasa de Falla'!JF59) -> 
C60: ='[2]Tasa de Falla'!C60 -> 44 | D60: ='[2]Tasa de Falla'!D60 -> C.H. RIO HONDO - SANTIAGO CENTRO | E60: ='[2]Tasa de Falla'!E60 -> 132 | F60: ='[2]Tasa de Falla'!F60 -> 79 | G60: =IF('[2]Tasa de Falla'!IU60=0,"",'[2]Tasa de Falla'!IU60) -> XXXX | H60: =IF('[2]Tasa de Falla'!IV60=0,"",'[2]Tasa de Falla'!IV60) -> XXXX | I60: =IF('[2]Tasa de Falla'!IW60=0,"",'[2]Tasa de Falla'!IW60) -> XXXX | J60: =IF('[2]Tasa de Falla'!IX60=0,"",'[2]Tasa de Falla'!IX60) -> XXXX | K60: =IF('[2]Tasa de Falla'!IY60=0,"",'[2]Tasa de Falla'!IY60) -> XXXX | L60: =IF('[2]Tasa de Falla'!IZ60=0,"",'[2]Tasa de Falla'!IZ60) -> XXXX | M60: =IF('[2]Tasa de Falla'!JA60=0,"",'[2]Tasa de Falla'!JA60) -> XXXX | N60: =IF('[2]Tasa de Falla'!JB60=0,"",'[2]Tasa de Falla'!JB60) -> XXXX | O60: =IF('[2]Tasa de Falla'!JC60=0,"",'[2]Tasa de Falla'!JC60) -> XXXX | P60: =IF('[2]Tasa de Falla'!JD60=0,"",'[2]Tasa de Falla'!JD60) -> XXXX | Q60: =IF('[2]Tasa de Falla'!JE60=0,"",'[2]Tasa de Falla'!JE60) -> XXXX | R60: =IF('[2]Tasa de Falla'!JF60=0,"",'[2]Tasa de Falla'!JF60) -> XXXX
C61: ='[2]Tasa de Falla'!C61 -> 45 | D61: ='[2]Tasa de Falla'!D61 -> C.H. RIO HONDO - EL BRACHO | E61: ='[2]Tasa de Falla'!E61 -> 132 | F61: ='[2]Tasa de Falla'!F61 -> 80.66 | G61: =IF('[2]Tasa de Falla'!IU61=0,"",'[2]Tasa de Falla'!IU61) -> XXXX | H61: =IF('[2]Tasa de Falla'!IV61=0,"",'[2]Tasa de Falla'!IV61) -> XXXX | I61: =IF('[2]Tasa de Falla'!IW61=0,"",'[2]Tasa de Falla'!IW61) -> XXXX | J61: =IF('[2]Tasa de Falla'!IX61=0,"",'[2]Tasa de Falla'!IX61) -> XXXX | K61: =IF('[2]Tasa de Falla'!IY61=0,"",'[2]Tasa de Falla'!IY61) -> XXXX | L61: =IF('[2]Tasa de Falla'!IZ61=0,"",'[2]Tasa de Falla'!IZ61) -> XXXX | M61: =IF('[2]Tasa de Falla'!JA61=0,"",'[2]Tasa de Falla'!JA61) -> XXXX | N61: =IF('[2]Tasa de Falla'!JB61=0,"",'[2]Tasa de Falla'!JB61) -> XXXX | O61: =IF('[2]Tasa de Falla'!JC61=0,"",'[2]Tasa de Falla'!JC61) -> XXXX | P61: =IF('[2]Tasa de Falla'!JD61=0,"",'[2]Tasa de Falla'!JD61) -> XXXX | Q61: =IF('[2]Tasa de Falla'!JE61=0,"",'[2]Tasa de Falla'!JE61) -> XXXX | R61: =IF('[2]Tasa de Falla'!JF61=0,"",'[2]Tasa de Falla'!JF61) -> XXXX
C62: ='[2]Tasa de Falla'!C62 -> 46 | D62: ='[2]Tasa de Falla'!D62 -> SALTA SUR - SALTA NORTE | E62: ='[2]Tasa de Falla'!E62 -> 132 | F62: ='[2]Tasa de Falla'!F62 -> 10 | G62: =IF('[2]Tasa de Falla'!IU62=0,"",'[2]Tasa de Falla'!IU62) ->  | H62: =IF('[2]Tasa de Falla'!IV62=0,"",'[2]Tasa de Falla'!IV62) ->  | I62: =IF('[2]Tasa de Falla'!IW62=0,"",'[2]Tasa de Falla'!IW62) ->  | J62: =IF('[2]Tasa de Falla'!IX62=0,"",'[2]Tasa de Falla'!IX62) ->  | K62: =IF('[2]Tasa de Falla'!IY62=0,"",'[2]Tasa de Falla'!IY62) ->  | L62: =IF('[2]Tasa de Falla'!IZ62=0,"",'[2]Tasa de Falla'!IZ62) ->  | M62: =IF('[2]Tasa de Falla'!JA62=0,"",'[2]Tasa de Falla'!JA62) ->  | N62: =IF('[2]Tasa de Falla'!JB62=0,"",'[2]Tasa de Falla'!JB62) ->  | O62: =IF('[2]Tasa de Falla'!JC62=0,"",'[2]Tasa de Falla'!JC62) ->  | P62: =IF('[2]Tasa de Falla'!JD62=0,"",'[2]Tasa de Falla'!JD62) ->  | Q62: =IF('[2]Tasa de Falla'!JE62=0,"",'[2]Tasa de Falla'!JE62) ->  | R62: =IF('[2]Tasa de Falla'!JF62=0,"",'[2]Tasa de Falla'!JF62) -> 
C63: ='[2]Tasa de Falla'!C63 -> 47 | D63: ='[2]Tasa de Falla'!D63 -> PALPALA - JUJUY ESTE | E63: ='[2]Tasa de Falla'!E63 -> 132 | F63: ='[2]Tasa de Falla'!F63 -> 12.3 | G63: =IF('[2]Tasa de Falla'!IU63=0,"",'[2]Tasa de Falla'!IU63) ->  | H63: =IF('[2]Tasa de Falla'!IV63=0,"",'[2]Tasa de Falla'!IV63) ->  | I63: =IF('[2]Tasa de Falla'!IW63=0,"",'[2]Tasa de Falla'!IW63) -> 1 | J63: =IF('[2]Tasa de Falla'!IX63=0,"",'[2]Tasa de Falla'!IX63) ->  | K63: =IF('[2]Tasa de Falla'!IY63=0,"",'[2]Tasa de Falla'!IY63) ->  | L63: =IF('[2]Tasa de Falla'!IZ63=0,"",'[2]Tasa de Falla'!IZ63) ->  | M63: =IF('[2]Tasa de Falla'!JA63=0,"",'[2]Tasa de Falla'!JA63) ->  | N63: =IF('[2]Tasa de Falla'!JB63=0,"",'[2]Tasa de Falla'!JB63) ->  | O63: =IF('[2]Tasa de Falla'!JC63=0,"",'[2]Tasa de Falla'!JC63) ->  | P63: =IF('[2]Tasa de Falla'!JD63=0,"",'[2]Tasa de Falla'!JD63) ->  | Q63: =IF('[2]Tasa de Falla'!JE63=0,"",'[2]Tasa de Falla'!JE63) ->  | R63: =IF('[2]Tasa de Falla'!JF63=0,"",'[2]Tasa de Falla'!JF63) -> 
C64: ='[2]Tasa de Falla'!C64 -> 48 | D64: ='[2]Tasa de Falla'!D64 -> JUJUY ESTE - JUJUY SUR | E64: ='[2]Tasa de Falla'!E64 -> 132 | F64: ='[2]Tasa de Falla'!F64 -> 4.3 | G64: =IF('[2]Tasa de Falla'!IU64=0,"",'[2]Tasa de Falla'!IU64) ->  | H64: =IF('[2]Tasa de Falla'!IV64=0,"",'[2]Tasa de Falla'!IV64) ->  | I64: =IF('[2]Tasa de Falla'!IW64=0,"",'[2]Tasa de Falla'!IW64) ->  | J64: =IF('[2]Tasa de Falla'!IX64=0,"",'[2]Tasa de Falla'!IX64) ->  | K64: =IF('[2]Tasa de Falla'!IY64=0,"",'[2]Tasa de Falla'!IY64) ->  | L64: =IF('[2]Tasa de Falla'!IZ64=0,"",'[2]Tasa de Falla'!IZ64) ->  | M64: =IF('[2]Tasa de Falla'!JA64=0,"",'[2]Tasa de Falla'!JA64) ->  | N64: =IF('[2]Tasa de Falla'!JB64=0,"",'[2]Tasa de Falla'!JB64) ->  | O64: =IF('[2]Tasa de Falla'!JC64=0,"",'[2]Tasa de Falla'!JC64) ->  | P64: =IF('[2]Tasa de Falla'!JD64=0,"",'[2]Tasa de Falla'!JD64) ->  | Q64: =IF('[2]Tasa de Falla'!JE64=0,"",'[2]Tasa de Falla'!JE64) ->  | R64: =IF('[2]Tasa de Falla'!JF64=0,"",'[2]Tasa de Falla'!JF64) -> 
C65: ='[2]Tasa de Falla'!C65 -> 49 | D65: ='[2]Tasa de Falla'!D65 -> CEVIL POZO - GUEMES | E65: ='[2]Tasa de Falla'!E65 -> 132 | F65: ='[2]Tasa de Falla'!F65 -> 291 | G65: =IF('[2]Tasa de Falla'!IU65=0,"",'[2]Tasa de Falla'!IU65) -> XXXX | H65: =IF('[2]Tasa de Falla'!IV65=0,"",'[2]Tasa de Falla'!IV65) -> XXXX | I65: =IF('[2]Tasa de Falla'!IW65=0,"",'[2]Tasa de Falla'!IW65) -> XXXX | J65: =IF('[2]Tasa de Falla'!IX65=0,"",'[2]Tasa de Falla'!IX65) -> XXXX | K65: =IF('[2]Tasa de Falla'!IY65=0,"",'[2]Tasa de Falla'!IY65) -> XXXX | L65: =IF('[2]Tasa de Falla'!IZ65=0,"",'[2]Tasa de Falla'!IZ65) -> XXXX | M65: =IF('[2]Tasa de Falla'!JA65=0,"",'[2]Tasa de Falla'!JA65) -> XXXX | N65: =IF('[2]Tasa de Falla'!JB65=0,"",'[2]Tasa de Falla'!JB65) -> XXXX | O65: =IF('[2]Tasa de Falla'!JC65=0,"",'[2]Tasa de Falla'!JC65) -> XXXX | P65: =IF('[2]Tasa de Falla'!JD65=0,"",'[2]Tasa de Falla'!JD65) -> XXXX | Q65: =IF('[2]Tasa de Falla'!JE65=0,"",'[2]Tasa de Falla'!JE65) -> XXXX | R65: =IF('[2]Tasa de Falla'!JF65=0,"",'[2]Tasa de Falla'!JF65) -> XXXX
C66: ='[2]Tasa de Falla'!C66 -> 50 | D66: ='[2]Tasa de Falla'!D66 -> CEVIL POZO - EL BRACHO | E66: ='[2]Tasa de Falla'!E66 -> 132 | F66: ='[2]Tasa de Falla'!F66 -> 17 | G66: =IF('[2]Tasa de Falla'!IU66=0,"",'[2]Tasa de Falla'!IU66) ->  | H66: =IF('[2]Tasa de Falla'!IV66=0,"",'[2]Tasa de Falla'!IV66) ->  | I66: =IF('[2]Tasa de Falla'!IW66=0,"",'[2]Tasa de Falla'!IW66) ->  | J66: =IF('[2]Tasa de Falla'!IX66=0,"",'[2]Tasa de Falla'!IX66) ->  | K66: =IF('[2]Tasa de Falla'!IY66=0,"",'[2]Tasa de Falla'!IY66) ->  | L66: =IF('[2]Tasa de Falla'!IZ66=0,"",'[2]Tasa de Falla'!IZ66) ->  | M66: =IF('[2]Tasa de Falla'!JA66=0,"",'[2]Tasa de Falla'!JA66) ->  | N66: =IF('[2]Tasa de Falla'!JB66=0,"",'[2]Tasa de Falla'!JB66) ->  | O66: =IF('[2]Tasa de Falla'!JC66=0,"",'[2]Tasa de Falla'!JC66) ->  | P66: =IF('[2]Tasa de Falla'!JD66=0,"",'[2]Tasa de Falla'!JD66) ->  | Q66: =IF('[2]Tasa de Falla'!JE66=0,"",'[2]Tasa de Falla'!JE66) ->  | R66: =IF('[2]Tasa de Falla'!JF66=0,"",'[2]Tasa de Falla'!JF66) -> 
C67: ='[2]Tasa de Falla'!C67 -> 0 | D67: ='[2]Tasa de Falla'!D67 -> 0 | E67: ='[2]Tasa de Falla'!E67 -> 0 | F67: ='[2]Tasa de Falla'!F67 -> 0 | G67: =IF('[2]Tasa de Falla'!IU67=0,"",'[2]Tasa de Falla'!IU67) ->  | H67: =IF('[2]Tasa de Falla'!IV67=0,"",'[2]Tasa de Falla'!IV67) ->  | I67: =IF('[2]Tasa de Falla'!IW67=0,"",'[2]Tasa de Falla'!IW67) ->  | J67: =IF('[2]Tasa de Falla'!IX67=0,"",'[2]Tasa de Falla'!IX67) ->  | K67: =IF('[2]Tasa de Falla'!IY67=0,"",'[2]Tasa de Falla'!IY67) ->  | L67: =IF('[2]Tasa de Falla'!IZ67=0,"",'[2]Tasa de Falla'!IZ67) ->  | M67: =IF('[2]Tasa de Falla'!JA67=0,"",'[2]Tasa de Falla'!JA67) ->  | N67: =IF('[2]Tasa de Falla'!JB67=0,"",'[2]Tasa de Falla'!JB67) ->  | O67: =IF('[2]Tasa de Falla'!JC67=0,"",'[2]Tasa de Falla'!JC67) ->  | P67: =IF('[2]Tasa de Falla'!JD67=0,"",'[2]Tasa de Falla'!JD67) ->  | Q67: =IF('[2]Tasa de Falla'!JE67=0,"",'[2]Tasa de Falla'!JE67) ->  | R67: =IF('[2]Tasa de Falla'!JF67=0,"",'[2]Tasa de Falla'!JF67) -> 
C68: ='[2]Tasa de Falla'!C68 -> 51 | D68: ='[2]Tasa de Falla'!D68 -> METAN - EL TUNAL | E68: ='[2]Tasa de Falla'!E68 -> 132 | F68: ='[2]Tasa de Falla'!F68 -> 75.6 | G68: =IF('[2]Tasa de Falla'!IU68=0,"",'[2]Tasa de Falla'!IU68) ->  | H68: =IF('[2]Tasa de Falla'!IV68=0,"",'[2]Tasa de Falla'!IV68) ->  | I68: =IF('[2]Tasa de Falla'!IW68=0,"",'[2]Tasa de Falla'!IW68) ->  | J68: =IF('[2]Tasa de Falla'!IX68=0,"",'[2]Tasa de Falla'!IX68) ->  | K68: =IF('[2]Tasa de Falla'!IY68=0,"",'[2]Tasa de Falla'!IY68) ->  | L68: =IF('[2]Tasa de Falla'!IZ68=0,"",'[2]Tasa de Falla'!IZ68) ->  | M68: =IF('[2]Tasa de Falla'!JA68=0,"",'[2]Tasa de Falla'!JA68) ->  | N68: =IF('[2]Tasa de Falla'!JB68=0,"",'[2]Tasa de Falla'!JB68) ->  | O68: =IF('[2]Tasa de Falla'!JC68=0,"",'[2]Tasa de Falla'!JC68) ->  | P68: =IF('[2]Tasa de Falla'!JD68=0,"",'[2]Tasa de Falla'!JD68) ->  | Q68: =IF('[2]Tasa de Falla'!JE68=0,"",'[2]Tasa de Falla'!JE68) ->  | R68: =IF('[2]Tasa de Falla'!JF68=0,"",'[2]Tasa de Falla'!JF68) -> 
C69: ='[2]Tasa de Falla'!C69 -> 52 | D69: ='[2]Tasa de Falla'!D69 -> EL TUNAL - J.V. GONZALEZ | E69: ='[2]Tasa de Falla'!E69 -> 132 | F69: ='[2]Tasa de Falla'!F69 -> 41.4 | G69: =IF('[2]Tasa de Falla'!IU69=0,"",'[2]Tasa de Falla'!IU69) ->  | H69: =IF('[2]Tasa de Falla'!IV69=0,"",'[2]Tasa de Falla'!IV69) ->  | I69: =IF('[2]Tasa de Falla'!IW69=0,"",'[2]Tasa de Falla'!IW69) ->  | J69: =IF('[2]Tasa de Falla'!IX69=0,"",'[2]Tasa de Falla'!IX69) ->  | K69: =IF('[2]Tasa de Falla'!IY69=0,"",'[2]Tasa de Falla'!IY69) ->  | L69: =IF('[2]Tasa de Falla'!IZ69=0,"",'[2]Tasa de Falla'!IZ69) ->  | M69: =IF('[2]Tasa de Falla'!JA69=0,"",'[2]Tasa de Falla'!JA69) ->  | N69: =IF('[2]Tasa de Falla'!JB69=0,"",'[2]Tasa de Falla'!JB69) ->  | O69: =IF('[2]Tasa de Falla'!JC69=0,"",'[2]Tasa de Falla'!JC69) ->  | P69: =IF('[2]Tasa de Falla'!JD69=0,"",'[2]Tasa de Falla'!JD69) ->  | Q69: =IF('[2]Tasa de Falla'!JE69=0,"",'[2]Tasa de Falla'!JE69) ->  | R69: =IF('[2]Tasa de Falla'!JF69=0,"",'[2]Tasa de Falla'!JF69) -> 
C70: ='[2]Tasa de Falla'!C70 -> 0 | D70: ='[2]Tasa de Falla'!D70 -> 0 | E70: ='[2]Tasa de Falla'!E70 -> 0 | F70: ='[2]Tasa de Falla'!F70 -> 0 | G70: =IF('[2]Tasa de Falla'!IU70=0,"",'[2]Tasa de Falla'!IU70) ->  | H70: =IF('[2]Tasa de Falla'!IV70=0,"",'[2]Tasa de Falla'!IV70) ->  | I70: =IF('[2]Tasa de Falla'!IW70=0,"",'[2]Tasa de Falla'!IW70) ->  | J70: =IF('[2]Tasa de Falla'!IX70=0,"",'[2]Tasa de Falla'!IX70) ->  | K70: =IF('[2]Tasa de Falla'!IY70=0,"",'[2]Tasa de Falla'!IY70) ->  | L70: =IF('[2]Tasa de Falla'!IZ70=0,"",'[2]Tasa de Falla'!IZ70) ->  | M70: =IF('[2]Tasa de Falla'!JA70=0,"",'[2]Tasa de Falla'!JA70) ->  | N70: =IF('[2]Tasa de Falla'!JB70=0,"",'[2]Tasa de Falla'!JB70) ->  | O70: =IF('[2]Tasa de Falla'!JC70=0,"",'[2]Tasa de Falla'!JC70) ->  | P70: =IF('[2]Tasa de Falla'!JD70=0,"",'[2]Tasa de Falla'!JD70) ->  | Q70: =IF('[2]Tasa de Falla'!JE70=0,"",'[2]Tasa de Falla'!JE70) ->  | R70: =IF('[2]Tasa de Falla'!JF70=0,"",'[2]Tasa de Falla'!JF70) -> 
C71: ='[2]Tasa de Falla'!C71 -> 53 | D71: ='[2]Tasa de Falla'!D71 -> LOS PIZARROS - ESCABA | E71: ='[2]Tasa de Falla'!E71 -> 132 | F71: ='[2]Tasa de Falla'!F71 -> 21.4 | G71: =IF('[2]Tasa de Falla'!IU71=0,"",'[2]Tasa de Falla'!IU71) ->  | H71: =IF('[2]Tasa de Falla'!IV71=0,"",'[2]Tasa de Falla'!IV71) -> 1 | I71: =IF('[2]Tasa de Falla'!IW71=0,"",'[2]Tasa de Falla'!IW71) ->  | J71: =IF('[2]Tasa de Falla'!IX71=0,"",'[2]Tasa de Falla'!IX71) ->  | K71: =IF('[2]Tasa de Falla'!IY71=0,"",'[2]Tasa de Falla'!IY71) ->  | L71: =IF('[2]Tasa de Falla'!IZ71=0,"",'[2]Tasa de Falla'!IZ71) ->  | M71: =IF('[2]Tasa de Falla'!JA71=0,"",'[2]Tasa de Falla'!JA71) ->  | N71: =IF('[2]Tasa de Falla'!JB71=0,"",'[2]Tasa de Falla'!JB71) -> 1 | O71: =IF('[2]Tasa de Falla'!JC71=0,"",'[2]Tasa de Falla'!JC71) ->  | P71: =IF('[2]Tasa de Falla'!JD71=0,"",'[2]Tasa de Falla'!JD71) ->  | Q71: =IF('[2]Tasa de Falla'!JE71=0,"",'[2]Tasa de Falla'!JE71) ->  | R71: =IF('[2]Tasa de Falla'!JF71=0,"",'[2]Tasa de Falla'!JF71) -> 
C72: ='[2]Tasa de Falla'!C72 -> 54 | D72: ='[2]Tasa de Falla'!D72 -> LOS PIZARROS - LA COCHA | E72: ='[2]Tasa de Falla'!E72 -> 132 | F72: ='[2]Tasa de Falla'!F72 -> 6.5 | G72: =IF('[2]Tasa de Falla'!IU72=0,"",'[2]Tasa de Falla'!IU72) ->  | H72: =IF('[2]Tasa de Falla'!IV72=0,"",'[2]Tasa de Falla'!IV72) ->  | I72: =IF('[2]Tasa de Falla'!IW72=0,"",'[2]Tasa de Falla'!IW72) ->  | J72: =IF('[2]Tasa de Falla'!IX72=0,"",'[2]Tasa de Falla'!IX72) ->  | K72: =IF('[2]Tasa de Falla'!IY72=0,"",'[2]Tasa de Falla'!IY72) ->  | L72: =IF('[2]Tasa de Falla'!IZ72=0,"",'[2]Tasa de Falla'!IZ72) ->  | M72: =IF('[2]Tasa de Falla'!JA72=0,"",'[2]Tasa de Falla'!JA72) ->  | N72: =IF('[2]Tasa de Falla'!JB72=0,"",'[2]Tasa de Falla'!JB72) ->  | O72: =IF('[2]Tasa de Falla'!JC72=0,"",'[2]Tasa de Falla'!JC72) ->  | P72: =IF('[2]Tasa de Falla'!JD72=0,"",'[2]Tasa de Falla'!JD72) ->  | Q72: =IF('[2]Tasa de Falla'!JE72=0,"",'[2]Tasa de Falla'!JE72) ->  | R72: =IF('[2]Tasa de Falla'!JF72=0,"",'[2]Tasa de Falla'!JF72) -> 
C73: ='[2]Tasa de Falla'!C73 -> 55 | D73: ='[2]Tasa de Falla'!D73 -> HUACRA - LOS PIZARROS | E73: ='[2]Tasa de Falla'!E73 -> 132 | F73: ='[2]Tasa de Falla'!F73 -> 28.5 | G73: =IF('[2]Tasa de Falla'!IU73=0,"",'[2]Tasa de Falla'!IU73) -> 1 | H73: =IF('[2]Tasa de Falla'!IV73=0,"",'[2]Tasa de Falla'!IV73) ->  | I73: =IF('[2]Tasa de Falla'!IW73=0,"",'[2]Tasa de Falla'!IW73) ->  | J73: =IF('[2]Tasa de Falla'!IX73=0,"",'[2]Tasa de Falla'!IX73) ->  | K73: =IF('[2]Tasa de Falla'!IY73=0,"",'[2]Tasa de Falla'!IY73) ->  | L73: =IF('[2]Tasa de Falla'!IZ73=0,"",'[2]Tasa de Falla'!IZ73) ->  | M73: =IF('[2]Tasa de Falla'!JA73=0,"",'[2]Tasa de Falla'!JA73) ->  | N73: =IF('[2]Tasa de Falla'!JB73=0,"",'[2]Tasa de Falla'!JB73) ->  | O73: =IF('[2]Tasa de Falla'!JC73=0,"",'[2]Tasa de Falla'!JC73) ->  | P73: =IF('[2]Tasa de Falla'!JD73=0,"",'[2]Tasa de Falla'!JD73) ->  | Q73: =IF('[2]Tasa de Falla'!JE73=0,"",'[2]Tasa de Falla'!JE73) ->  | R73: =IF('[2]Tasa de Falla'!JF73=0,"",'[2]Tasa de Falla'!JF73) -> 
C74: ='[2]Tasa de Falla'!C74 -> 56 | D74: ='[2]Tasa de Falla'!D74 -> CEVIL POZO - AVELLANEDA | E74: ='[2]Tasa de Falla'!E74 -> 132 | F74: ='[2]Tasa de Falla'!F74 -> 8 | G74: =IF('[2]Tasa de Falla'!IU74=0,"",'[2]Tasa de Falla'!IU74) ->  | H74: =IF('[2]Tasa de Falla'!IV74=0,"",'[2]Tasa de Falla'!IV74) ->  | I74: =IF('[2]Tasa de Falla'!IW74=0,"",'[2]Tasa de Falla'!IW74) ->  | J74: =IF('[2]Tasa de Falla'!IX74=0,"",'[2]Tasa de Falla'!IX74) ->  | K74: =IF('[2]Tasa de Falla'!IY74=0,"",'[2]Tasa de Falla'!IY74) ->  | L74: =IF('[2]Tasa de Falla'!IZ74=0,"",'[2]Tasa de Falla'!IZ74) ->  | M74: =IF('[2]Tasa de Falla'!JA74=0,"",'[2]Tasa de Falla'!JA74) ->  | N74: =IF('[2]Tasa de Falla'!JB74=0,"",'[2]Tasa de Falla'!JB74) ->  | O74: =IF('[2]Tasa de Falla'!JC74=0,"",'[2]Tasa de Falla'!JC74) ->  | P74: =IF('[2]Tasa de Falla'!JD74=0,"",'[2]Tasa de Falla'!JD74) ->  | Q74: =IF('[2]Tasa de Falla'!JE74=0,"",'[2]Tasa de Falla'!JE74) ->  | R74: =IF('[2]Tasa de Falla'!JF74=0,"",'[2]Tasa de Falla'!JF74) -> 
C75: ='[2]Tasa de Falla'!C75 -> 57 | D75: ='[2]Tasa de Falla'!D75 -> CABRA CORRAL - SALTA ESTE | E75: ='[2]Tasa de Falla'!E75 -> 132 | F75: ='[2]Tasa de Falla'!F75 -> 55 | G75: =IF('[2]Tasa de Falla'!IU75=0,"",'[2]Tasa de Falla'!IU75) -> 1 | H75: =IF('[2]Tasa de Falla'!IV75=0,"",'[2]Tasa de Falla'!IV75) ->  | I75: =IF('[2]Tasa de Falla'!IW75=0,"",'[2]Tasa de Falla'!IW75) -> 1 | J75: =IF('[2]Tasa de Falla'!IX75=0,"",'[2]Tasa de Falla'!IX75) ->  | K75: =IF('[2]Tasa de Falla'!IY75=0,"",'[2]Tasa de Falla'!IY75) ->  | L75: =IF('[2]Tasa de Falla'!IZ75=0,"",'[2]Tasa de Falla'!IZ75) -> 1 | M75: =IF('[2]Tasa de Falla'!JA75=0,"",'[2]Tasa de Falla'!JA75) ->  | N75: =IF('[2]Tasa de Falla'!JB75=0,"",'[2]Tasa de Falla'!JB75) ->  | O75: =IF('[2]Tasa de Falla'!JC75=0,"",'[2]Tasa de Falla'!JC75) ->  | P75: =IF('[2]Tasa de Falla'!JD75=0,"",'[2]Tasa de Falla'!JD75) ->  | Q75: =IF('[2]Tasa de Falla'!JE75=0,"",'[2]Tasa de Falla'!JE75) -> 1 | R75: =IF('[2]Tasa de Falla'!JF75=0,"",'[2]Tasa de Falla'!JF75) -> 
C76: ='[2]Tasa de Falla'!C76 -> 58 | D76: ='[2]Tasa de Falla'!D76 -> SALTA ESTE - SALTA SUR | E76: ='[2]Tasa de Falla'!E76 -> 132 | F76: ='[2]Tasa de Falla'!F76 -> 7 | G76: =IF('[2]Tasa de Falla'!IU76=0,"",'[2]Tasa de Falla'!IU76) ->  | H76: =IF('[2]Tasa de Falla'!IV76=0,"",'[2]Tasa de Falla'!IV76) ->  | I76: =IF('[2]Tasa de Falla'!IW76=0,"",'[2]Tasa de Falla'!IW76) ->  | J76: =IF('[2]Tasa de Falla'!IX76=0,"",'[2]Tasa de Falla'!IX76) ->  | K76: =IF('[2]Tasa de Falla'!IY76=0,"",'[2]Tasa de Falla'!IY76) ->  | L76: =IF('[2]Tasa de Falla'!IZ76=0,"",'[2]Tasa de Falla'!IZ76) ->  | M76: =IF('[2]Tasa de Falla'!JA76=0,"",'[2]Tasa de Falla'!JA76) ->  | N76: =IF('[2]Tasa de Falla'!JB76=0,"",'[2]Tasa de Falla'!JB76) ->  | O76: =IF('[2]Tasa de Falla'!JC76=0,"",'[2]Tasa de Falla'!JC76) ->  | P76: =IF('[2]Tasa de Falla'!JD76=0,"",'[2]Tasa de Falla'!JD76) ->  | Q76: =IF('[2]Tasa de Falla'!JE76=0,"",'[2]Tasa de Falla'!JE76) ->  | R76: =IF('[2]Tasa de Falla'!JF76=0,"",'[2]Tasa de Falla'!JF76) -> 
C77: ='[2]Tasa de Falla'!C77 -> 59 | D77: ='[2]Tasa de Falla'!D77 -> V. QUINTEROS - ACONQUIJA - ANDALGALA | E77: ='[2]Tasa de Falla'!E77 -> 132 | F77: ='[2]Tasa de Falla'!F77 -> 102 | G77: =IF('[2]Tasa de Falla'!IU77=0,"",'[2]Tasa de Falla'!IU77) -> 2 | H77: =IF('[2]Tasa de Falla'!IV77=0,"",'[2]Tasa de Falla'!IV77) -> 1 | I77: =IF('[2]Tasa de Falla'!IW77=0,"",'[2]Tasa de Falla'!IW77) ->  | J77: =IF('[2]Tasa de Falla'!IX77=0,"",'[2]Tasa de Falla'!IX77) ->  | K77: =IF('[2]Tasa de Falla'!IY77=0,"",'[2]Tasa de Falla'!IY77) ->  | L77: =IF('[2]Tasa de Falla'!IZ77=0,"",'[2]Tasa de Falla'!IZ77) ->  | M77: =IF('[2]Tasa de Falla'!JA77=0,"",'[2]Tasa de Falla'!JA77) -> 1 | N77: =IF('[2]Tasa de Falla'!JB77=0,"",'[2]Tasa de Falla'!JB77) ->  | O77: =IF('[2]Tasa de Falla'!JC77=0,"",'[2]Tasa de Falla'!JC77) -> 2 | P77: =IF('[2]Tasa de Falla'!JD77=0,"",'[2]Tasa de Falla'!JD77) ->  | Q77: =IF('[2]Tasa de Falla'!JE77=0,"",'[2]Tasa de Falla'!JE77) ->  | R77: =IF('[2]Tasa de Falla'!JF77=0,"",'[2]Tasa de Falla'!JF77) -> 1
C78: ='[2]Tasa de Falla'!C78 -> 60 | D78: ='[2]Tasa de Falla'!D78 -> ANDALGALA - BELEN | E78: ='[2]Tasa de Falla'!E78 -> 132 | F78: ='[2]Tasa de Falla'!F78 -> 80.3 | G78: =IF('[2]Tasa de Falla'!IU78=0,"",'[2]Tasa de Falla'!IU78) -> 1 | H78: =IF('[2]Tasa de Falla'!IV78=0,"",'[2]Tasa de Falla'!IV78) ->  | I78: =IF('[2]Tasa de Falla'!IW78=0,"",'[2]Tasa de Falla'!IW78) ->  | J78: =IF('[2]Tasa de Falla'!IX78=0,"",'[2]Tasa de Falla'!IX78) ->  | K78: =IF('[2]Tasa de Falla'!IY78=0,"",'[2]Tasa de Falla'!IY78) ->  | L78: =IF('[2]Tasa de Falla'!IZ78=0,"",'[2]Tasa de Falla'!IZ78) ->  | M78: =IF('[2]Tasa de Falla'!JA78=0,"",'[2]Tasa de Falla'!JA78) ->  | N78: =IF('[2]Tasa de Falla'!JB78=0,"",'[2]Tasa de Falla'!JB78) ->  | O78: =IF('[2]Tasa de Falla'!JC78=0,"",'[2]Tasa de Falla'!JC78) ->  | P78: =IF('[2]Tasa de Falla'!JD78=0,"",'[2]Tasa de Falla'!JD78) ->  | Q78: =IF('[2]Tasa de Falla'!JE78=0,"",'[2]Tasa de Falla'!JE78) ->  | R78: =IF('[2]Tasa de Falla'!JF78=0,"",'[2]Tasa de Falla'!JF78) -> 
C79: ='[2]Tasa de Falla'!C79 -> 61 | D79: ='[2]Tasa de Falla'!D79 -> TUCUMAN NORTE - TRANCAS | E79: ='[2]Tasa de Falla'!E79 -> 132 | F79: ='[2]Tasa de Falla'!F79 -> 75 | G79: =IF('[2]Tasa de Falla'!IU79=0,"",'[2]Tasa de Falla'!IU79) ->  | H79: =IF('[2]Tasa de Falla'!IV79=0,"",'[2]Tasa de Falla'!IV79) ->  | I79: =IF('[2]Tasa de Falla'!IW79=0,"",'[2]Tasa de Falla'!IW79) ->  | J79: =IF('[2]Tasa de Falla'!IX79=0,"",'[2]Tasa de Falla'!IX79) ->  | K79: =IF('[2]Tasa de Falla'!IY79=0,"",'[2]Tasa de Falla'!IY79) ->  | L79: =IF('[2]Tasa de Falla'!IZ79=0,"",'[2]Tasa de Falla'!IZ79) -> 1 | M79: =IF('[2]Tasa de Falla'!JA79=0,"",'[2]Tasa de Falla'!JA79) ->  | N79: =IF('[2]Tasa de Falla'!JB79=0,"",'[2]Tasa de Falla'!JB79) ->  | O79: =IF('[2]Tasa de Falla'!JC79=0,"",'[2]Tasa de Falla'!JC79) ->  | P79: =IF('[2]Tasa de Falla'!JD79=0,"",'[2]Tasa de Falla'!JD79) ->  | Q79: =IF('[2]Tasa de Falla'!JE79=0,"",'[2]Tasa de Falla'!JE79) ->  | R79: =IF('[2]Tasa de Falla'!JF79=0,"",'[2]Tasa de Falla'!JF79) -> 
C80: ='[2]Tasa de Falla'!C80 -> 62 | D80: ='[2]Tasa de Falla'!D80 -> CABRA CORRAL - TRANCAS | E80: ='[2]Tasa de Falla'!E80 -> 132 | F80: ='[2]Tasa de Falla'!F80 -> 115 | G80: =IF('[2]Tasa de Falla'!IU80=0,"",'[2]Tasa de Falla'!IU80) -> XXXX | H80: =IF('[2]Tasa de Falla'!IV80=0,"",'[2]Tasa de Falla'!IV80) -> XXXX | I80: =IF('[2]Tasa de Falla'!IW80=0,"",'[2]Tasa de Falla'!IW80) -> XXXX | J80: =IF('[2]Tasa de Falla'!IX80=0,"",'[2]Tasa de Falla'!IX80) -> XXXX | K80: =IF('[2]Tasa de Falla'!IY80=0,"",'[2]Tasa de Falla'!IY80) -> XXXX | L80: =IF('[2]Tasa de Falla'!IZ80=0,"",'[2]Tasa de Falla'!IZ80) -> XXXX | M80: =IF('[2]Tasa de Falla'!JA80=0,"",'[2]Tasa de Falla'!JA80) -> XXXX | N80: =IF('[2]Tasa de Falla'!JB80=0,"",'[2]Tasa de Falla'!JB80) -> XXXX | O80: =IF('[2]Tasa de Falla'!JC80=0,"",'[2]Tasa de Falla'!JC80) -> XXXX | P80: =IF('[2]Tasa de Falla'!JD80=0,"",'[2]Tasa de Falla'!JD80) -> XXXX | Q80: =IF('[2]Tasa de Falla'!JE80=0,"",'[2]Tasa de Falla'!JE80) -> XXXX | R80: =IF('[2]Tasa de Falla'!JF80=0,"",'[2]Tasa de Falla'!JF80) -> XXXX
C81: ='[2]Tasa de Falla'!C81 -> 63 | D81: ='[2]Tasa de Falla'!D81 -> LAS MADERAS - JUJUY SUR | E81: ='[2]Tasa de Falla'!E81 -> 132 | F81: ='[2]Tasa de Falla'!F81 -> 27.6 | G81: =IF('[2]Tasa de Falla'!IU81=0,"",'[2]Tasa de Falla'!IU81) ->  | H81: =IF('[2]Tasa de Falla'!IV81=0,"",'[2]Tasa de Falla'!IV81) ->  | I81: =IF('[2]Tasa de Falla'!IW81=0,"",'[2]Tasa de Falla'!IW81) ->  | J81: =IF('[2]Tasa de Falla'!IX81=0,"",'[2]Tasa de Falla'!IX81) ->  | K81: =IF('[2]Tasa de Falla'!IY81=0,"",'[2]Tasa de Falla'!IY81) ->  | L81: =IF('[2]Tasa de Falla'!IZ81=0,"",'[2]Tasa de Falla'!IZ81) ->  | M81: =IF('[2]Tasa de Falla'!JA81=0,"",'[2]Tasa de Falla'!JA81) ->  | N81: =IF('[2]Tasa de Falla'!JB81=0,"",'[2]Tasa de Falla'!JB81) ->  | O81: =IF('[2]Tasa de Falla'!JC81=0,"",'[2]Tasa de Falla'!JC81) ->  | P81: =IF('[2]Tasa de Falla'!JD81=0,"",'[2]Tasa de Falla'!JD81) ->  | Q81: =IF('[2]Tasa de Falla'!JE81=0,"",'[2]Tasa de Falla'!JE81) ->  | R81: =IF('[2]Tasa de Falla'!JF81=0,"",'[2]Tasa de Falla'!JF81) -> 
C82: ='[2]Tasa de Falla'!C82 -> 64 | D82: ='[2]Tasa de Falla'!D82 -> BELEN - TINOGASTA | E82: ='[2]Tasa de Falla'!E82 -> 132 | F82: ='[2]Tasa de Falla'!F82 -> 72 | G82: =IF('[2]Tasa de Falla'!IU82=0,"",'[2]Tasa de Falla'!IU82) ->  | H82: =IF('[2]Tasa de Falla'!IV82=0,"",'[2]Tasa de Falla'!IV82) ->  | I82: =IF('[2]Tasa de Falla'!IW82=0,"",'[2]Tasa de Falla'!IW82) ->  | J82: =IF('[2]Tasa de Falla'!IX82=0,"",'[2]Tasa de Falla'!IX82) ->  | K82: =IF('[2]Tasa de Falla'!IY82=0,"",'[2]Tasa de Falla'!IY82) ->  | L82: =IF('[2]Tasa de Falla'!IZ82=0,"",'[2]Tasa de Falla'!IZ82) ->  | M82: =IF('[2]Tasa de Falla'!JA82=0,"",'[2]Tasa de Falla'!JA82) ->  | N82: =IF('[2]Tasa de Falla'!JB82=0,"",'[2]Tasa de Falla'!JB82) ->  | O82: =IF('[2]Tasa de Falla'!JC82=0,"",'[2]Tasa de Falla'!JC82) ->  | P82: =IF('[2]Tasa de Falla'!JD82=0,"",'[2]Tasa de Falla'!JD82) ->  | Q82: =IF('[2]Tasa de Falla'!JE82=0,"",'[2]Tasa de Falla'!JE82) ->  | R82: =IF('[2]Tasa de Falla'!JF82=0,"",'[2]Tasa de Falla'!JF82) -> 
C83: ='[2]Tasa de Falla'!C83 -> 65 | D83: ='[2]Tasa de Falla'!D83 -> BURRUYACU - CEVIL POZO | E83: ='[2]Tasa de Falla'!E83 -> 132 | F83: ='[2]Tasa de Falla'!F83 -> 56 | G83: =IF('[2]Tasa de Falla'!IU83=0,"",'[2]Tasa de Falla'!IU83) -> 1 | H83: =IF('[2]Tasa de Falla'!IV83=0,"",'[2]Tasa de Falla'!IV83) -> 1 | I83: =IF('[2]Tasa de Falla'!IW83=0,"",'[2]Tasa de Falla'!IW83) ->  | J83: =IF('[2]Tasa de Falla'!IX83=0,"",'[2]Tasa de Falla'!IX83) ->  | K83: =IF('[2]Tasa de Falla'!IY83=0,"",'[2]Tasa de Falla'!IY83) ->  | L83: =IF('[2]Tasa de Falla'!IZ83=0,"",'[2]Tasa de Falla'!IZ83) ->  | M83: =IF('[2]Tasa de Falla'!JA83=0,"",'[2]Tasa de Falla'!JA83) ->  | N83: =IF('[2]Tasa de Falla'!JB83=0,"",'[2]Tasa de Falla'!JB83) ->  | O83: =IF('[2]Tasa de Falla'!JC83=0,"",'[2]Tasa de Falla'!JC83) ->  | P83: =IF('[2]Tasa de Falla'!JD83=0,"",'[2]Tasa de Falla'!JD83) ->  | Q83: =IF('[2]Tasa de Falla'!JE83=0,"",'[2]Tasa de Falla'!JE83) ->  | R83: =IF('[2]Tasa de Falla'!JF83=0,"",'[2]Tasa de Falla'!JF83) -> 
C84: ='[2]Tasa de Falla'!C84 -> 66 | D84: ='[2]Tasa de Falla'!D84 -> GÜEMES - BURRUYACU | E84: ='[2]Tasa de Falla'!E84 -> 132 | F84: ='[2]Tasa de Falla'!F84 -> 235.1 | G84: =IF('[2]Tasa de Falla'!IU84=0,"",'[2]Tasa de Falla'!IU84) -> XXXX | H84: =IF('[2]Tasa de Falla'!IV84=0,"",'[2]Tasa de Falla'!IV84) -> XXXX | I84: =IF('[2]Tasa de Falla'!IW84=0,"",'[2]Tasa de Falla'!IW84) -> XXXX | J84: =IF('[2]Tasa de Falla'!IX84=0,"",'[2]Tasa de Falla'!IX84) -> XXXX | K84: =IF('[2]Tasa de Falla'!IY84=0,"",'[2]Tasa de Falla'!IY84) -> XXXX | L84: =IF('[2]Tasa de Falla'!IZ84=0,"",'[2]Tasa de Falla'!IZ84) -> XXXX | M84: =IF('[2]Tasa de Falla'!JA84=0,"",'[2]Tasa de Falla'!JA84) -> XXXX | N84: =IF('[2]Tasa de Falla'!JB84=0,"",'[2]Tasa de Falla'!JB84) -> XXXX | O84: =IF('[2]Tasa de Falla'!JC84=0,"",'[2]Tasa de Falla'!JC84) -> XXXX | P84: =IF('[2]Tasa de Falla'!JD84=0,"",'[2]Tasa de Falla'!JD84) -> XXXX | Q84: =IF('[2]Tasa de Falla'!JE84=0,"",'[2]Tasa de Falla'!JE84) -> XXXX | R84: =IF('[2]Tasa de Falla'!JF84=0,"",'[2]Tasa de Falla'!JF84) -> XXXX
C85: ='[2]Tasa de Falla'!C85 -> 67 | D85: ='[2]Tasa de Falla'!D85 -> FRIAS - RECREO | E85: ='[2]Tasa de Falla'!E85 -> 132 | F85: ='[2]Tasa de Falla'!F85 -> 74.54 | G85: =IF('[2]Tasa de Falla'!IU85=0,"",'[2]Tasa de Falla'!IU85) ->  | H85: =IF('[2]Tasa de Falla'!IV85=0,"",'[2]Tasa de Falla'!IV85) ->  | I85: =IF('[2]Tasa de Falla'!IW85=0,"",'[2]Tasa de Falla'!IW85) ->  | J85: =IF('[2]Tasa de Falla'!IX85=0,"",'[2]Tasa de Falla'!IX85) ->  | K85: =IF('[2]Tasa de Falla'!IY85=0,"",'[2]Tasa de Falla'!IY85) ->  | L85: =IF('[2]Tasa de Falla'!IZ85=0,"",'[2]Tasa de Falla'!IZ85) ->  | M85: =IF('[2]Tasa de Falla'!JA85=0,"",'[2]Tasa de Falla'!JA85) ->  | N85: =IF('[2]Tasa de Falla'!JB85=0,"",'[2]Tasa de Falla'!JB85) ->  | O85: =IF('[2]Tasa de Falla'!JC85=0,"",'[2]Tasa de Falla'!JC85) ->  | P85: =IF('[2]Tasa de Falla'!JD85=0,"",'[2]Tasa de Falla'!JD85) ->  | Q85: =IF('[2]Tasa de Falla'!JE85=0,"",'[2]Tasa de Falla'!JE85) ->  | R85: =IF('[2]Tasa de Falla'!JF85=0,"",'[2]Tasa de Falla'!JF85) -> 2
C86: ='[2]Tasa de Falla'!C86 -> 68 | D86: ='[2]Tasa de Falla'!D86 -> RECREO - LA RIOJA 1 | E86: ='[2]Tasa de Falla'!E86 -> 132 | F86: ='[2]Tasa de Falla'!F86 -> 221 | G86: =IF('[2]Tasa de Falla'!IU86=0,"",'[2]Tasa de Falla'!IU86) -> 1 | H86: =IF('[2]Tasa de Falla'!IV86=0,"",'[2]Tasa de Falla'!IV86) ->  | I86: =IF('[2]Tasa de Falla'!IW86=0,"",'[2]Tasa de Falla'!IW86) ->  | J86: =IF('[2]Tasa de Falla'!IX86=0,"",'[2]Tasa de Falla'!IX86) ->  | K86: =IF('[2]Tasa de Falla'!IY86=0,"",'[2]Tasa de Falla'!IY86) -> 1 | L86: =IF('[2]Tasa de Falla'!IZ86=0,"",'[2]Tasa de Falla'!IZ86) -> 1 | M86: =IF('[2]Tasa de Falla'!JA86=0,"",'[2]Tasa de Falla'!JA86) ->  | N86: =IF('[2]Tasa de Falla'!JB86=0,"",'[2]Tasa de Falla'!JB86) ->  | O86: =IF('[2]Tasa de Falla'!JC86=0,"",'[2]Tasa de Falla'!JC86) ->  | P86: =IF('[2]Tasa de Falla'!JD86=0,"",'[2]Tasa de Falla'!JD86) -> 2 | Q86: =IF('[2]Tasa de Falla'!JE86=0,"",'[2]Tasa de Falla'!JE86) ->  | R86: =IF('[2]Tasa de Falla'!JF86=0,"",'[2]Tasa de Falla'!JF86) -> 
C87: ='[2]Tasa de Falla'!C87 -> 69 | D87: ='[2]Tasa de Falla'!D87 -> RECREO - LA RIOJA 2 | E87: ='[2]Tasa de Falla'!E87 -> 132 | F87: ='[2]Tasa de Falla'!F87 -> 220 | G87: =IF('[2]Tasa de Falla'!IU87=0,"",'[2]Tasa de Falla'!IU87) -> 1 | H87: =IF('[2]Tasa de Falla'!IV87=0,"",'[2]Tasa de Falla'!IV87) ->  | I87: =IF('[2]Tasa de Falla'!IW87=0,"",'[2]Tasa de Falla'!IW87) ->  | J87: =IF('[2]Tasa de Falla'!IX87=0,"",'[2]Tasa de Falla'!IX87) -> 1 | K87: =IF('[2]Tasa de Falla'!IY87=0,"",'[2]Tasa de Falla'!IY87) -> 1 | L87: =IF('[2]Tasa de Falla'!IZ87=0,"",'[2]Tasa de Falla'!IZ87) ->  | M87: =IF('[2]Tasa de Falla'!JA87=0,"",'[2]Tasa de Falla'!JA87) ->  | N87: =IF('[2]Tasa de Falla'!JB87=0,"",'[2]Tasa de Falla'!JB87) ->  | O87: =IF('[2]Tasa de Falla'!JC87=0,"",'[2]Tasa de Falla'!JC87) ->  | P87: =IF('[2]Tasa de Falla'!JD87=0,"",'[2]Tasa de Falla'!JD87) -> 3 | Q87: =IF('[2]Tasa de Falla'!JE87=0,"",'[2]Tasa de Falla'!JE87) -> 1 | R87: =IF('[2]Tasa de Falla'!JF87=0,"",'[2]Tasa de Falla'!JF87) -> 2
C88: ='[2]Tasa de Falla'!C88 -> 70 | D88: ='[2]Tasa de Falla'!D88 -> RECREO - CATAMARCA | E88: ='[2]Tasa de Falla'!E88 -> 132 | F88: ='[2]Tasa de Falla'!F88 -> 203 | G88: =IF('[2]Tasa de Falla'!IU88=0,"",'[2]Tasa de Falla'!IU88) ->  | H88: =IF('[2]Tasa de Falla'!IV88=0,"",'[2]Tasa de Falla'!IV88) ->  | I88: =IF('[2]Tasa de Falla'!IW88=0,"",'[2]Tasa de Falla'!IW88) -> 1 | J88: =IF('[2]Tasa de Falla'!IX88=0,"",'[2]Tasa de Falla'!IX88) ->  | K88: =IF('[2]Tasa de Falla'!IY88=0,"",'[2]Tasa de Falla'!IY88) ->  | L88: =IF('[2]Tasa de Falla'!IZ88=0,"",'[2]Tasa de Falla'!IZ88) ->  | M88: =IF('[2]Tasa de Falla'!JA88=0,"",'[2]Tasa de Falla'!JA88) ->  | N88: =IF('[2]Tasa de Falla'!JB88=0,"",'[2]Tasa de Falla'!JB88) ->  | O88: =IF('[2]Tasa de Falla'!JC88=0,"",'[2]Tasa de Falla'!JC88) ->  | P88: =IF('[2]Tasa de Falla'!JD88=0,"",'[2]Tasa de Falla'!JD88) ->  | Q88: =IF('[2]Tasa de Falla'!JE88=0,"",'[2]Tasa de Falla'!JE88) ->  | R88: =IF('[2]Tasa de Falla'!JF88=0,"",'[2]Tasa de Falla'!JF88) -> 
C89: ='[2]Tasa de Falla'!C89 -> 71 | D89: ='[2]Tasa de Falla'!D89 -> CABRA CORRAL - EL CARRIL | E89: ='[2]Tasa de Falla'!E89 -> 132 | F89: ='[2]Tasa de Falla'!F89 -> 33.75 | G89: =IF('[2]Tasa de Falla'!IU89=0,"",'[2]Tasa de Falla'!IU89) ->  | H89: =IF('[2]Tasa de Falla'!IV89=0,"",'[2]Tasa de Falla'!IV89) ->  | I89: =IF('[2]Tasa de Falla'!IW89=0,"",'[2]Tasa de Falla'!IW89) ->  | J89: =IF('[2]Tasa de Falla'!IX89=0,"",'[2]Tasa de Falla'!IX89) ->  | K89: =IF('[2]Tasa de Falla'!IY89=0,"",'[2]Tasa de Falla'!IY89) ->  | L89: =IF('[2]Tasa de Falla'!IZ89=0,"",'[2]Tasa de Falla'!IZ89) -> 1 | M89: =IF('[2]Tasa de Falla'!JA89=0,"",'[2]Tasa de Falla'!JA89) ->  | N89: =IF('[2]Tasa de Falla'!JB89=0,"",'[2]Tasa de Falla'!JB89) ->  | O89: =IF('[2]Tasa de Falla'!JC89=0,"",'[2]Tasa de Falla'!JC89) ->  | P89: =IF('[2]Tasa de Falla'!JD89=0,"",'[2]Tasa de Falla'!JD89) ->  | Q89: =IF('[2]Tasa de Falla'!JE89=0,"",'[2]Tasa de Falla'!JE89) ->  | R89: =IF('[2]Tasa de Falla'!JF89=0,"",'[2]Tasa de Falla'!JF89) -> 
C90: ='[2]Tasa de Falla'!C90 -> 72 | D90: ='[2]Tasa de Falla'!D90 -> PAMPA GRANDE - CABRA CORRAL | E90: ='[2]Tasa de Falla'!E90 -> 132 | F90: ='[2]Tasa de Falla'!F90 -> 60 | G90: =IF('[2]Tasa de Falla'!IU90=0,"",'[2]Tasa de Falla'!IU90) -> 1 | H90: =IF('[2]Tasa de Falla'!IV90=0,"",'[2]Tasa de Falla'!IV90) -> 1 | I90: =IF('[2]Tasa de Falla'!IW90=0,"",'[2]Tasa de Falla'!IW90) -> 1 | J90: =IF('[2]Tasa de Falla'!IX90=0,"",'[2]Tasa de Falla'!IX90) ->  | K90: =IF('[2]Tasa de Falla'!IY90=0,"",'[2]Tasa de Falla'!IY90) ->  | L90: =IF('[2]Tasa de Falla'!IZ90=0,"",'[2]Tasa de Falla'!IZ90) -> 1 | M90: =IF('[2]Tasa de Falla'!JA90=0,"",'[2]Tasa de Falla'!JA90) ->  | N90: =IF('[2]Tasa de Falla'!JB90=0,"",'[2]Tasa de Falla'!JB90) ->  | O90: =IF('[2]Tasa de Falla'!JC90=0,"",'[2]Tasa de Falla'!JC90) ->  | P90: =IF('[2]Tasa de Falla'!JD90=0,"",'[2]Tasa de Falla'!JD90) -> XXXX | Q90: =IF('[2]Tasa de Falla'!JE90=0,"",'[2]Tasa de Falla'!JE90) -> XXXX | R90: =IF('[2]Tasa de Falla'!JF90=0,"",'[2]Tasa de Falla'!JF90) -> XXXX
C91: ='[2]Tasa de Falla'!C91 -> 73 | D91: ='[2]Tasa de Falla'!D91 -> PAMPA GRANDE - CAFAYATE | E91: ='[2]Tasa de Falla'!E91 -> 132 | F91: ='[2]Tasa de Falla'!F91 -> 63 | G91: =IF('[2]Tasa de Falla'!IU91=0,"",'[2]Tasa de Falla'!IU91) ->  | H91: =IF('[2]Tasa de Falla'!IV91=0,"",'[2]Tasa de Falla'!IV91) ->  | I91: =IF('[2]Tasa de Falla'!IW91=0,"",'[2]Tasa de Falla'!IW91) ->  | J91: =IF('[2]Tasa de Falla'!IX91=0,"",'[2]Tasa de Falla'!IX91) ->  | K91: =IF('[2]Tasa de Falla'!IY91=0,"",'[2]Tasa de Falla'!IY91) ->  | L91: =IF('[2]Tasa de Falla'!IZ91=0,"",'[2]Tasa de Falla'!IZ91) ->  | M91: =IF('[2]Tasa de Falla'!JA91=0,"",'[2]Tasa de Falla'!JA91) ->  | N91: =IF('[2]Tasa de Falla'!JB91=0,"",'[2]Tasa de Falla'!JB91) ->  | O91: =IF('[2]Tasa de Falla'!JC91=0,"",'[2]Tasa de Falla'!JC91) -> 3 | P91: =IF('[2]Tasa de Falla'!JD91=0,"",'[2]Tasa de Falla'!JD91) ->  | Q91: =IF('[2]Tasa de Falla'!JE91=0,"",'[2]Tasa de Falla'!JE91) ->  | R91: =IF('[2]Tasa de Falla'!JF91=0,"",'[2]Tasa de Falla'!JF91) -> 
C92: ='[2]Tasa de Falla'!C92 -> 74 | D92: ='[2]Tasa de Falla'!D92 -> PAMPA GRANDE - TRANCAS | E92: ='[2]Tasa de Falla'!E92 -> 132 | F92: ='[2]Tasa de Falla'!F92 -> 55 | G92: =IF('[2]Tasa de Falla'!IU92=0,"",'[2]Tasa de Falla'!IU92) ->  | H92: =IF('[2]Tasa de Falla'!IV92=0,"",'[2]Tasa de Falla'!IV92) ->  | I92: =IF('[2]Tasa de Falla'!IW92=0,"",'[2]Tasa de Falla'!IW92) ->  | J92: =IF('[2]Tasa de Falla'!IX92=0,"",'[2]Tasa de Falla'!IX92) ->  | K92: =IF('[2]Tasa de Falla'!IY92=0,"",'[2]Tasa de Falla'!IY92) ->  | L92: =IF('[2]Tasa de Falla'!IZ92=0,"",'[2]Tasa de Falla'!IZ92) ->  | M92: =IF('[2]Tasa de Falla'!JA92=0,"",'[2]Tasa de Falla'!JA92) -> 2 | N92: =IF('[2]Tasa de Falla'!JB92=0,"",'[2]Tasa de Falla'!JB92) ->  | O92: =IF('[2]Tasa de Falla'!JC92=0,"",'[2]Tasa de Falla'!JC92) ->  | P92: =IF('[2]Tasa de Falla'!JD92=0,"",'[2]Tasa de Falla'!JD92) -> 1 | Q92: =IF('[2]Tasa de Falla'!JE92=0,"",'[2]Tasa de Falla'!JE92) -> 1 | R92: =IF('[2]Tasa de Falla'!JF92=0,"",'[2]Tasa de Falla'!JF92) -> 1
C93: ='[2]Tasa de Falla'!C93 -> 75 | D93: ='[2]Tasa de Falla'!D93 -> SANTIAGO CENTRO - FERNANDEZ - SUNCHO CORRAL | E93: ='[2]Tasa de Falla'!E93 -> 132 | F93: ='[2]Tasa de Falla'!F93 -> 103 | G93: =IF('[2]Tasa de Falla'!IU93=0,"",'[2]Tasa de Falla'!IU93) ->  | H93: =IF('[2]Tasa de Falla'!IV93=0,"",'[2]Tasa de Falla'!IV93) ->  | I93: =IF('[2]Tasa de Falla'!IW93=0,"",'[2]Tasa de Falla'!IW93) ->  | J93: =IF('[2]Tasa de Falla'!IX93=0,"",'[2]Tasa de Falla'!IX93) ->  | K93: =IF('[2]Tasa de Falla'!IY93=0,"",'[2]Tasa de Falla'!IY93) ->  | L93: =IF('[2]Tasa de Falla'!IZ93=0,"",'[2]Tasa de Falla'!IZ93) ->  | M93: =IF('[2]Tasa de Falla'!JA93=0,"",'[2]Tasa de Falla'!JA93) ->  | N93: =IF('[2]Tasa de Falla'!JB93=0,"",'[2]Tasa de Falla'!JB93) -> 1 | O93: =IF('[2]Tasa de Falla'!JC93=0,"",'[2]Tasa de Falla'!JC93) ->  | P93: =IF('[2]Tasa de Falla'!JD93=0,"",'[2]Tasa de Falla'!JD93) ->  | Q93: =IF('[2]Tasa de Falla'!JE93=0,"",'[2]Tasa de Falla'!JE93) ->  | R93: =IF('[2]Tasa de Falla'!JF93=0,"",'[2]Tasa de Falla'!JF93) -> 
C94: ='[2]Tasa de Falla'!C94 -> 76 | D94: ='[2]Tasa de Falla'!D94 -> SUNCHO CORRAL - ANATUYA | E94: ='[2]Tasa de Falla'!E94 -> 132 | F94: ='[2]Tasa de Falla'!F94 -> 81 | G94: =IF('[2]Tasa de Falla'!IU94=0,"",'[2]Tasa de Falla'!IU94) ->  | H94: =IF('[2]Tasa de Falla'!IV94=0,"",'[2]Tasa de Falla'!IV94) ->  | I94: =IF('[2]Tasa de Falla'!IW94=0,"",'[2]Tasa de Falla'!IW94) ->  | J94: =IF('[2]Tasa de Falla'!IX94=0,"",'[2]Tasa de Falla'!IX94) ->  | K94: =IF('[2]Tasa de Falla'!IY94=0,"",'[2]Tasa de Falla'!IY94) ->  | L94: =IF('[2]Tasa de Falla'!IZ94=0,"",'[2]Tasa de Falla'!IZ94) ->  | M94: =IF('[2]Tasa de Falla'!JA94=0,"",'[2]Tasa de Falla'!JA94) ->  | N94: =IF('[2]Tasa de Falla'!JB94=0,"",'[2]Tasa de Falla'!JB94) ->  | O94: =IF('[2]Tasa de Falla'!JC94=0,"",'[2]Tasa de Falla'!JC94) ->  | P94: =IF('[2]Tasa de Falla'!JD94=0,"",'[2]Tasa de Falla'!JD94) ->  | Q94: =IF('[2]Tasa de Falla'!JE94=0,"",'[2]Tasa de Falla'!JE94) -> 1 | R94: =IF('[2]Tasa de Falla'!JF94=0,"",'[2]Tasa de Falla'!JF94) -> 
C95: ='[2]Tasa de Falla'!C95 -> 77 | D95: ='[2]Tasa de Falla'!D95 -> LAS MADERAS - GÜEMES SALTA | E95: ='[2]Tasa de Falla'!E95 -> 132 | F95: ='[2]Tasa de Falla'!F95 -> 42 | G95: =IF('[2]Tasa de Falla'!IU95=0,"",'[2]Tasa de Falla'!IU95) ->  | H95: =IF('[2]Tasa de Falla'!IV95=0,"",'[2]Tasa de Falla'!IV95) ->  | I95: =IF('[2]Tasa de Falla'!IW95=0,"",'[2]Tasa de Falla'!IW95) ->  | J95: =IF('[2]Tasa de Falla'!IX95=0,"",'[2]Tasa de Falla'!IX95) ->  | K95: =IF('[2]Tasa de Falla'!IY95=0,"",'[2]Tasa de Falla'!IY95) ->  | L95: =IF('[2]Tasa de Falla'!IZ95=0,"",'[2]Tasa de Falla'!IZ95) ->  | M95: =IF('[2]Tasa de Falla'!JA95=0,"",'[2]Tasa de Falla'!JA95) ->  | N95: =IF('[2]Tasa de Falla'!JB95=0,"",'[2]Tasa de Falla'!JB95) ->  | O95: =IF('[2]Tasa de Falla'!JC95=0,"",'[2]Tasa de Falla'!JC95) ->  | P95: =IF('[2]Tasa de Falla'!JD95=0,"",'[2]Tasa de Falla'!JD95) ->  | Q95: =IF('[2]Tasa de Falla'!JE95=0,"",'[2]Tasa de Falla'!JE95) ->  | R95: =IF('[2]Tasa de Falla'!JF95=0,"",'[2]Tasa de Falla'!JF95) -> 
C96: ='[2]Tasa de Falla'!C96 -> 78 | D96: ='[2]Tasa de Falla'!D96 -> INDEPENDENCIA - EL BRACHO 2 | E96: ='[2]Tasa de Falla'!E96 -> 132 | F96: ='[2]Tasa de Falla'!F96 -> 17.1 | G96: =IF('[2]Tasa de Falla'!IU96=0,"",'[2]Tasa de Falla'!IU96) ->  | H96: =IF('[2]Tasa de Falla'!IV96=0,"",'[2]Tasa de Falla'!IV96) -> 1 | I96: =IF('[2]Tasa de Falla'!IW96=0,"",'[2]Tasa de Falla'!IW96) ->  | J96: =IF('[2]Tasa de Falla'!IX96=0,"",'[2]Tasa de Falla'!IX96) ->  | K96: =IF('[2]Tasa de Falla'!IY96=0,"",'[2]Tasa de Falla'!IY96) ->  | L96: =IF('[2]Tasa de Falla'!IZ96=0,"",'[2]Tasa de Falla'!IZ96) -> 1 | M96: =IF('[2]Tasa de Falla'!JA96=0,"",'[2]Tasa de Falla'!JA96) -> 2 | N96: =IF('[2]Tasa de Falla'!JB96=0,"",'[2]Tasa de Falla'!JB96) ->  | O96: =IF('[2]Tasa de Falla'!JC96=0,"",'[2]Tasa de Falla'!JC96) ->  | P96: =IF('[2]Tasa de Falla'!JD96=0,"",'[2]Tasa de Falla'!JD96) ->  | Q96: =IF('[2]Tasa de Falla'!JE96=0,"",'[2]Tasa de Falla'!JE96) ->  | R96: =IF('[2]Tasa de Falla'!JF96=0,"",'[2]Tasa de Falla'!JF96) -> 1
C97: ='[2]Tasa de Falla'!C97 -> 79 | D97: ='[2]Tasa de Falla'!D97 -> GÜEMES - SALTA NORTE | E97: ='[2]Tasa de Falla'!E97 -> 132 | F97: ='[2]Tasa de Falla'!F97 -> 39 | G97: =IF('[2]Tasa de Falla'!IU97=0,"",'[2]Tasa de Falla'!IU97) -> XXXX | H97: =IF('[2]Tasa de Falla'!IV97=0,"",'[2]Tasa de Falla'!IV97) -> XXXX | I97: =IF('[2]Tasa de Falla'!IW97=0,"",'[2]Tasa de Falla'!IW97) -> XXXX | J97: =IF('[2]Tasa de Falla'!IX97=0,"",'[2]Tasa de Falla'!IX97) -> XXXX | K97: =IF('[2]Tasa de Falla'!IY97=0,"",'[2]Tasa de Falla'!IY97) -> XXXX | L97: =IF('[2]Tasa de Falla'!IZ97=0,"",'[2]Tasa de Falla'!IZ97) -> XXXX | M97: =IF('[2]Tasa de Falla'!JA97=0,"",'[2]Tasa de Falla'!JA97) -> XXXX | N97: =IF('[2]Tasa de Falla'!JB97=0,"",'[2]Tasa de Falla'!JB97) -> XXXX | O97: =IF('[2]Tasa de Falla'!JC97=0,"",'[2]Tasa de Falla'!JC97) -> XXXX | P97: =IF('[2]Tasa de Falla'!JD97=0,"",'[2]Tasa de Falla'!JD97) -> XXXX | Q97: =IF('[2]Tasa de Falla'!JE97=0,"",'[2]Tasa de Falla'!JE97) -> XXXX | R97: =IF('[2]Tasa de Falla'!JF97=0,"",'[2]Tasa de Falla'!JF97) -> XXXX
C98: ='[2]Tasa de Falla'!C98 -> 80 | D98: ='[2]Tasa de Falla'!D98 -> BURRUYACU - COBOS | E98: ='[2]Tasa de Falla'!E98 -> 132 | F98: ='[2]Tasa de Falla'!F98 -> 229.5 | G98: =IF('[2]Tasa de Falla'!IU98=0,"",'[2]Tasa de Falla'!IU98) -> XXXX | H98: =IF('[2]Tasa de Falla'!IV98=0,"",'[2]Tasa de Falla'!IV98) -> XXXX | I98: =IF('[2]Tasa de Falla'!IW98=0,"",'[2]Tasa de Falla'!IW98) -> XXXX | J98: =IF('[2]Tasa de Falla'!IX98=0,"",'[2]Tasa de Falla'!IX98) -> XXXX | K98: =IF('[2]Tasa de Falla'!IY98=0,"",'[2]Tasa de Falla'!IY98) -> XXXX | L98: =IF('[2]Tasa de Falla'!IZ98=0,"",'[2]Tasa de Falla'!IZ98) -> XXXX | M98: =IF('[2]Tasa de Falla'!JA98=0,"",'[2]Tasa de Falla'!JA98) -> XXXX | N98: =IF('[2]Tasa de Falla'!JB98=0,"",'[2]Tasa de Falla'!JB98) -> XXXX | O98: =IF('[2]Tasa de Falla'!JC98=0,"",'[2]Tasa de Falla'!JC98) -> XXXX | P98: =IF('[2]Tasa de Falla'!JD98=0,"",'[2]Tasa de Falla'!JD98) -> XXXX | Q98: =IF('[2]Tasa de Falla'!JE98=0,"",'[2]Tasa de Falla'!JE98) -> XXXX | R98: =IF('[2]Tasa de Falla'!JF98=0,"",'[2]Tasa de Falla'!JF98) -> XXXX
C99: ='[2]Tasa de Falla'!C99 -> 81 | D99: ='[2]Tasa de Falla'!D99 -> METAN - COBOS | E99: ='[2]Tasa de Falla'!E99 -> 132 | F99: ='[2]Tasa de Falla'!F99 -> 89.2 | G99: =IF('[2]Tasa de Falla'!IU99=0,"",'[2]Tasa de Falla'!IU99) ->  | H99: =IF('[2]Tasa de Falla'!IV99=0,"",'[2]Tasa de Falla'!IV99) ->  | I99: =IF('[2]Tasa de Falla'!IW99=0,"",'[2]Tasa de Falla'!IW99) ->  | J99: =IF('[2]Tasa de Falla'!IX99=0,"",'[2]Tasa de Falla'!IX99) ->  | K99: =IF('[2]Tasa de Falla'!IY99=0,"",'[2]Tasa de Falla'!IY99) ->  | L99: =IF('[2]Tasa de Falla'!IZ99=0,"",'[2]Tasa de Falla'!IZ99) ->  | M99: =IF('[2]Tasa de Falla'!JA99=0,"",'[2]Tasa de Falla'!JA99) ->  | N99: =IF('[2]Tasa de Falla'!JB99=0,"",'[2]Tasa de Falla'!JB99) ->  | O99: =IF('[2]Tasa de Falla'!JC99=0,"",'[2]Tasa de Falla'!JC99) ->  | P99: =IF('[2]Tasa de Falla'!JD99=0,"",'[2]Tasa de Falla'!JD99) ->  | Q99: =IF('[2]Tasa de Falla'!JE99=0,"",'[2]Tasa de Falla'!JE99) ->  | R99: =IF('[2]Tasa de Falla'!JF99=0,"",'[2]Tasa de Falla'!JF99) -> 
C100: ='[2]Tasa de Falla'!C100 -> 82 | D100: ='[2]Tasa de Falla'!D100 -> AÑATUYA - BANDERA | E100: ='[2]Tasa de Falla'!E100 -> 132 | F100: ='[2]Tasa de Falla'!F100 -> 76 | G100: =IF('[2]Tasa de Falla'!IU100=0,"",'[2]Tasa de Falla'!IU100) ->  | H100: =IF('[2]Tasa de Falla'!IV100=0,"",'[2]Tasa de Falla'!IV100) -> 1 | I100: =IF('[2]Tasa de Falla'!IW100=0,"",'[2]Tasa de Falla'!IW100) ->  | J100: =IF('[2]Tasa de Falla'!IX100=0,"",'[2]Tasa de Falla'!IX100) ->  | K100: =IF('[2]Tasa de Falla'!IY100=0,"",'[2]Tasa de Falla'!IY100) ->  | L100: =IF('[2]Tasa de Falla'!IZ100=0,"",'[2]Tasa de Falla'!IZ100) ->  | M100: =IF('[2]Tasa de Falla'!JA100=0,"",'[2]Tasa de Falla'!JA100) ->  | N100: =IF('[2]Tasa de Falla'!JB100=0,"",'[2]Tasa de Falla'!JB100) ->  | O100: =IF('[2]Tasa de Falla'!JC100=0,"",'[2]Tasa de Falla'!JC100) ->  | P100: =IF('[2]Tasa de Falla'!JD100=0,"",'[2]Tasa de Falla'!JD100) ->  | Q100: =IF('[2]Tasa de Falla'!JE100=0,"",'[2]Tasa de Falla'!JE100) -> 1 | R100: =IF('[2]Tasa de Falla'!JF100=0,"",'[2]Tasa de Falla'!JF100) -> 
C101: ='[2]Tasa de Falla'!C101 -> 84 | D101: ='[2]Tasa de Falla'!D101 -> GÜEMES SALTA - COBOS 1 | E101: ='[2]Tasa de Falla'!E101 -> 132 | F101: ='[2]Tasa de Falla'!F101 -> 12.1 | G101: =IF('[2]Tasa de Falla'!IU101=0,"",'[2]Tasa de Falla'!IU101) ->  | H101: =IF('[2]Tasa de Falla'!IV101=0,"",'[2]Tasa de Falla'!IV101) ->  | I101: =IF('[2]Tasa de Falla'!IW101=0,"",'[2]Tasa de Falla'!IW101) ->  | J101: =IF('[2]Tasa de Falla'!IX101=0,"",'[2]Tasa de Falla'!IX101) ->  | K101: =IF('[2]Tasa de Falla'!IY101=0,"",'[2]Tasa de Falla'!IY101) ->  | L101: =IF('[2]Tasa de Falla'!IZ101=0,"",'[2]Tasa de Falla'!IZ101) ->  | M101: =IF('[2]Tasa de Falla'!JA101=0,"",'[2]Tasa de Falla'!JA101) ->  | N101: =IF('[2]Tasa de Falla'!JB101=0,"",'[2]Tasa de Falla'!JB101) ->  | O101: =IF('[2]Tasa de Falla'!JC101=0,"",'[2]Tasa de Falla'!JC101) ->  | P101: =IF('[2]Tasa de Falla'!JD101=0,"",'[2]Tasa de Falla'!JD101) ->  | Q101: =IF('[2]Tasa de Falla'!JE101=0,"",'[2]Tasa de Falla'!JE101) -> 1 | R101: =IF('[2]Tasa de Falla'!JF101=0,"",'[2]Tasa de Falla'!JF101) -> 1
C102: ='[2]Tasa de Falla'!C102 -> 85 | D102: ='[2]Tasa de Falla'!D102 -> GÜEMES SALTA - COBOS 2 | E102: ='[2]Tasa de Falla'!E102 -> 132 | F102: ='[2]Tasa de Falla'!F102 -> 12.1 | G102: =IF('[2]Tasa de Falla'!IU102=0,"",'[2]Tasa de Falla'!IU102) ->  | H102: =IF('[2]Tasa de Falla'!IV102=0,"",'[2]Tasa de Falla'!IV102) ->  | I102: =IF('[2]Tasa de Falla'!IW102=0,"",'[2]Tasa de Falla'!IW102) ->  | J102: =IF('[2]Tasa de Falla'!IX102=0,"",'[2]Tasa de Falla'!IX102) ->  | K102: =IF('[2]Tasa de Falla'!IY102=0,"",'[2]Tasa de Falla'!IY102) ->  | L102: =IF('[2]Tasa de Falla'!IZ102=0,"",'[2]Tasa de Falla'!IZ102) -> 1 | M102: =IF('[2]Tasa de Falla'!JA102=0,"",'[2]Tasa de Falla'!JA102) ->  | N102: =IF('[2]Tasa de Falla'!JB102=0,"",'[2]Tasa de Falla'!JB102) ->  | O102: =IF('[2]Tasa de Falla'!JC102=0,"",'[2]Tasa de Falla'!JC102) ->  | P102: =IF('[2]Tasa de Falla'!JD102=0,"",'[2]Tasa de Falla'!JD102) ->  | Q102: =IF('[2]Tasa de Falla'!JE102=0,"",'[2]Tasa de Falla'!JE102) -> 2 | R102: =IF('[2]Tasa de Falla'!JF102=0,"",'[2]Tasa de Falla'!JF102) -> 
C103: ='[2]Tasa de Falla'!C103 -> 86 | D103: ='[2]Tasa de Falla'!D103 -> EL BRACHO - LA BANDA | E103: ='[2]Tasa de Falla'!E103 -> 132 | F103: ='[2]Tasa de Falla'!F103 -> 133.5 | G103: =IF('[2]Tasa de Falla'!IU103=0,"",'[2]Tasa de Falla'!IU103) -> XXXX | H103: =IF('[2]Tasa de Falla'!IV103=0,"",'[2]Tasa de Falla'!IV103) -> XXXX | I103: =IF('[2]Tasa de Falla'!IW103=0,"",'[2]Tasa de Falla'!IW103) -> XXXX | J103: =IF('[2]Tasa de Falla'!IX103=0,"",'[2]Tasa de Falla'!IX103) -> XXXX | K103: =IF('[2]Tasa de Falla'!IY103=0,"",'[2]Tasa de Falla'!IY103) -> XXXX | L103: =IF('[2]Tasa de Falla'!IZ103=0,"",'[2]Tasa de Falla'!IZ103) -> XXXX | M103: =IF('[2]Tasa de Falla'!JA103=0,"",'[2]Tasa de Falla'!JA103) -> XXXX | N103: =IF('[2]Tasa de Falla'!JB103=0,"",'[2]Tasa de Falla'!JB103) -> XXXX | O103: =IF('[2]Tasa de Falla'!JC103=0,"",'[2]Tasa de Falla'!JC103) -> XXXX | P103: =IF('[2]Tasa de Falla'!JD103=0,"",'[2]Tasa de Falla'!JD103) -> XXXX | Q103: =IF('[2]Tasa de Falla'!JE103=0,"",'[2]Tasa de Falla'!JE103) -> XXXX | R103: =IF('[2]Tasa de Falla'!JF103=0,"",'[2]Tasa de Falla'!JF103) -> XXXX
C104: ='[2]Tasa de Falla'!C104 -> 87 | D104: ='[2]Tasa de Falla'!D104 -> SANTIAGO OESTE - SANTIAGO SUR | E104: ='[2]Tasa de Falla'!E104 -> 132 | F104: ='[2]Tasa de Falla'!F104 -> 10.6 | G104: =IF('[2]Tasa de Falla'!IU104=0,"",'[2]Tasa de Falla'!IU104) ->  | H104: =IF('[2]Tasa de Falla'!IV104=0,"",'[2]Tasa de Falla'!IV104) ->  | I104: =IF('[2]Tasa de Falla'!IW104=0,"",'[2]Tasa de Falla'!IW104) ->  | J104: =IF('[2]Tasa de Falla'!IX104=0,"",'[2]Tasa de Falla'!IX104) ->  | K104: =IF('[2]Tasa de Falla'!IY104=0,"",'[2]Tasa de Falla'!IY104) ->  | L104: =IF('[2]Tasa de Falla'!IZ104=0,"",'[2]Tasa de Falla'!IZ104) ->  | M104: =IF('[2]Tasa de Falla'!JA104=0,"",'[2]Tasa de Falla'!JA104) ->  | N104: =IF('[2]Tasa de Falla'!JB104=0,"",'[2]Tasa de Falla'!JB104) ->  | O104: =IF('[2]Tasa de Falla'!JC104=0,"",'[2]Tasa de Falla'!JC104) ->  | P104: =IF('[2]Tasa de Falla'!JD104=0,"",'[2]Tasa de Falla'!JD104) ->  | Q104: =IF('[2]Tasa de Falla'!JE104=0,"",'[2]Tasa de Falla'!JE104) ->  | R104: =IF('[2]Tasa de Falla'!JF104=0,"",'[2]Tasa de Falla'!JF104) -> 
C105: ='[2]Tasa de Falla'!C105 -> 88 | D105: ='[2]Tasa de Falla'!D105 -> SANTIAGO SUR - SANTIAGO CENTRO | E105: ='[2]Tasa de Falla'!E105 -> 132 | F105: ='[2]Tasa de Falla'!F105 -> 4 | G105: =IF('[2]Tasa de Falla'!IU105=0,"",'[2]Tasa de Falla'!IU105) ->  | H105: =IF('[2]Tasa de Falla'!IV105=0,"",'[2]Tasa de Falla'!IV105) ->  | I105: =IF('[2]Tasa de Falla'!IW105=0,"",'[2]Tasa de Falla'!IW105) ->  | J105: =IF('[2]Tasa de Falla'!IX105=0,"",'[2]Tasa de Falla'!IX105) ->  | K105: =IF('[2]Tasa de Falla'!IY105=0,"",'[2]Tasa de Falla'!IY105) ->  | L105: =IF('[2]Tasa de Falla'!IZ105=0,"",'[2]Tasa de Falla'!IZ105) ->  | M105: =IF('[2]Tasa de Falla'!JA105=0,"",'[2]Tasa de Falla'!JA105) ->  | N105: =IF('[2]Tasa de Falla'!JB105=0,"",'[2]Tasa de Falla'!JB105) ->  | O105: =IF('[2]Tasa de Falla'!JC105=0,"",'[2]Tasa de Falla'!JC105) ->  | P105: =IF('[2]Tasa de Falla'!JD105=0,"",'[2]Tasa de Falla'!JD105) ->  | Q105: =IF('[2]Tasa de Falla'!JE105=0,"",'[2]Tasa de Falla'!JE105) ->  | R105: =IF('[2]Tasa de Falla'!JF105=0,"",'[2]Tasa de Falla'!JF105) -> 
C106: ='[2]Tasa de Falla'!C106 -> 89 | D106: ='[2]Tasa de Falla'!D106 -> C.H. RIO HONDO - SANTIAGO OESTE | E106: ='[2]Tasa de Falla'!E106 -> 132 | F106: ='[2]Tasa de Falla'!F106 -> 69.8 | G106: =IF('[2]Tasa de Falla'!IU106=0,"",'[2]Tasa de Falla'!IU106) ->  | H106: =IF('[2]Tasa de Falla'!IV106=0,"",'[2]Tasa de Falla'!IV106) ->  | I106: =IF('[2]Tasa de Falla'!IW106=0,"",'[2]Tasa de Falla'!IW106) ->  | J106: =IF('[2]Tasa de Falla'!IX106=0,"",'[2]Tasa de Falla'!IX106) ->  | K106: =IF('[2]Tasa de Falla'!IY106=0,"",'[2]Tasa de Falla'!IY106) ->  | L106: =IF('[2]Tasa de Falla'!IZ106=0,"",'[2]Tasa de Falla'!IZ106) ->  | M106: =IF('[2]Tasa de Falla'!JA106=0,"",'[2]Tasa de Falla'!JA106) ->  | N106: =IF('[2]Tasa de Falla'!JB106=0,"",'[2]Tasa de Falla'!JB106) ->  | O106: =IF('[2]Tasa de Falla'!JC106=0,"",'[2]Tasa de Falla'!JC106) ->  | P106: =IF('[2]Tasa de Falla'!JD106=0,"",'[2]Tasa de Falla'!JD106) ->  | Q106: =IF('[2]Tasa de Falla'!JE106=0,"",'[2]Tasa de Falla'!JE106) ->  | R106: =IF('[2]Tasa de Falla'!JF106=0,"",'[2]Tasa de Falla'!JF106) -> 
C107: ='[2]Tasa de Falla'!C107 -> 90 | D107: ='[2]Tasa de Falla'!D107 -> GÜEMES - MINETTI | E107: ='[2]Tasa de Falla'!E107 -> 132 | F107: ='[2]Tasa de Falla'!F107 -> 36.1 | G107: =IF('[2]Tasa de Falla'!IU107=0,"",'[2]Tasa de Falla'!IU107) -> XXXX | H107: =IF('[2]Tasa de Falla'!IV107=0,"",'[2]Tasa de Falla'!IV107) -> XXXX | I107: =IF('[2]Tasa de Falla'!IW107=0,"",'[2]Tasa de Falla'!IW107) -> XXXX | J107: =IF('[2]Tasa de Falla'!IX107=0,"",'[2]Tasa de Falla'!IX107) -> XXXX | K107: =IF('[2]Tasa de Falla'!IY107=0,"",'[2]Tasa de Falla'!IY107) -> XXXX | L107: =IF('[2]Tasa de Falla'!IZ107=0,"",'[2]Tasa de Falla'!IZ107) -> XXXX | M107: =IF('[2]Tasa de Falla'!JA107=0,"",'[2]Tasa de Falla'!JA107) -> XXXX | N107: =IF('[2]Tasa de Falla'!JB107=0,"",'[2]Tasa de Falla'!JB107) -> XXXX | O107: =IF('[2]Tasa de Falla'!JC107=0,"",'[2]Tasa de Falla'!JC107) -> XXXX | P107: =IF('[2]Tasa de Falla'!JD107=0,"",'[2]Tasa de Falla'!JD107) -> XXXX | Q107: =IF('[2]Tasa de Falla'!JE107=0,"",'[2]Tasa de Falla'!JE107) -> XXXX | R107: =IF('[2]Tasa de Falla'!JF107=0,"",'[2]Tasa de Falla'!JF107) -> XXXX
C108: ='[2]Tasa de Falla'!C108 -> 91 | D108: ='[2]Tasa de Falla'!D108 -> GÜEMES - SALTA NORTE | E108: ='[2]Tasa de Falla'!E108 -> 132 | F108: ='[2]Tasa de Falla'!F108 -> 38.97 | G108: =IF('[2]Tasa de Falla'!IU108=0,"",'[2]Tasa de Falla'!IU108) ->  | H108: =IF('[2]Tasa de Falla'!IV108=0,"",'[2]Tasa de Falla'!IV108) ->  | I108: =IF('[2]Tasa de Falla'!IW108=0,"",'[2]Tasa de Falla'!IW108) ->  | J108: =IF('[2]Tasa de Falla'!IX108=0,"",'[2]Tasa de Falla'!IX108) ->  | K108: =IF('[2]Tasa de Falla'!IY108=0,"",'[2]Tasa de Falla'!IY108) ->  | L108: =IF('[2]Tasa de Falla'!IZ108=0,"",'[2]Tasa de Falla'!IZ108) ->  | M108: =IF('[2]Tasa de Falla'!JA108=0,"",'[2]Tasa de Falla'!JA108) ->  | N108: =IF('[2]Tasa de Falla'!JB108=0,"",'[2]Tasa de Falla'!JB108) ->  | O108: =IF('[2]Tasa de Falla'!JC108=0,"",'[2]Tasa de Falla'!JC108) ->  | P108: =IF('[2]Tasa de Falla'!JD108=0,"",'[2]Tasa de Falla'!JD108) ->  | Q108: =IF('[2]Tasa de Falla'!JE108=0,"",'[2]Tasa de Falla'!JE108) ->  | R108: =IF('[2]Tasa de Falla'!JF108=0,"",'[2]Tasa de Falla'!JF108) -> 
C109: ='[2]Tasa de Falla'!C109 -> 92 | D109: ='[2]Tasa de Falla'!D109 -> BURRUYACU - R. DE LA FRONTERA | E109: ='[2]Tasa de Falla'!E109 -> 132 | F109: ='[2]Tasa de Falla'!F109 -> 99.1 | G109: =IF('[2]Tasa de Falla'!IU109=0,"",'[2]Tasa de Falla'!IU109) ->  | H109: =IF('[2]Tasa de Falla'!IV109=0,"",'[2]Tasa de Falla'!IV109) ->  | I109: =IF('[2]Tasa de Falla'!IW109=0,"",'[2]Tasa de Falla'!IW109) ->  | J109: =IF('[2]Tasa de Falla'!IX109=0,"",'[2]Tasa de Falla'!IX109) ->  | K109: =IF('[2]Tasa de Falla'!IY109=0,"",'[2]Tasa de Falla'!IY109) ->  | L109: =IF('[2]Tasa de Falla'!IZ109=0,"",'[2]Tasa de Falla'!IZ109) ->  | M109: =IF('[2]Tasa de Falla'!JA109=0,"",'[2]Tasa de Falla'!JA109) -> 1 | N109: =IF('[2]Tasa de Falla'!JB109=0,"",'[2]Tasa de Falla'!JB109) ->  | O109: =IF('[2]Tasa de Falla'!JC109=0,"",'[2]Tasa de Falla'!JC109) ->  | P109: =IF('[2]Tasa de Falla'!JD109=0,"",'[2]Tasa de Falla'!JD109) ->  | Q109: =IF('[2]Tasa de Falla'!JE109=0,"",'[2]Tasa de Falla'!JE109) ->  | R109: =IF('[2]Tasa de Falla'!JF109=0,"",'[2]Tasa de Falla'!JF109) -> 
C110: ='[2]Tasa de Falla'!C110 -> 93 | D110: ='[2]Tasa de Falla'!D110 -> R. DE LA FRONTERA - COBOS | E110: ='[2]Tasa de Falla'!E110 -> 132 | F110: ='[2]Tasa de Falla'!F110 -> 130.4 | G110: =IF('[2]Tasa de Falla'!IU110=0,"",'[2]Tasa de Falla'!IU110) ->  | H110: =IF('[2]Tasa de Falla'!IV110=0,"",'[2]Tasa de Falla'!IV110) ->  | I110: =IF('[2]Tasa de Falla'!IW110=0,"",'[2]Tasa de Falla'!IW110) ->  | J110: =IF('[2]Tasa de Falla'!IX110=0,"",'[2]Tasa de Falla'!IX110) ->  | K110: =IF('[2]Tasa de Falla'!IY110=0,"",'[2]Tasa de Falla'!IY110) ->  | L110: =IF('[2]Tasa de Falla'!IZ110=0,"",'[2]Tasa de Falla'!IZ110) ->  | M110: =IF('[2]Tasa de Falla'!JA110=0,"",'[2]Tasa de Falla'!JA110) -> 1 | N110: =IF('[2]Tasa de Falla'!JB110=0,"",'[2]Tasa de Falla'!JB110) ->  | O110: =IF('[2]Tasa de Falla'!JC110=0,"",'[2]Tasa de Falla'!JC110) ->  | P110: =IF('[2]Tasa de Falla'!JD110=0,"",'[2]Tasa de Falla'!JD110) ->  | Q110: =IF('[2]Tasa de Falla'!JE110=0,"",'[2]Tasa de Falla'!JE110) ->  | R110: =IF('[2]Tasa de Falla'!JF110=0,"",'[2]Tasa de Falla'!JF110) -> 1
C111: ='[2]Tasa de Falla'!C111 -> 94 | D111: ='[2]Tasa de Falla'!D111 -> J.V. GONZALEZ - APOLINARIO SARAVIA | E111: ='[2]Tasa de Falla'!E111 -> 132 | F111: ='[2]Tasa de Falla'!F111 -> 94 | G111: =IF('[2]Tasa de Falla'!IU111=0,"",'[2]Tasa de Falla'!IU111) ->  | H111: =IF('[2]Tasa de Falla'!IV111=0,"",'[2]Tasa de Falla'!IV111) ->  | I111: =IF('[2]Tasa de Falla'!IW111=0,"",'[2]Tasa de Falla'!IW111) ->  | J111: =IF('[2]Tasa de Falla'!IX111=0,"",'[2]Tasa de Falla'!IX111) ->  | K111: =IF('[2]Tasa de Falla'!IY111=0,"",'[2]Tasa de Falla'!IY111) ->  | L111: =IF('[2]Tasa de Falla'!IZ111=0,"",'[2]Tasa de Falla'!IZ111) ->  | M111: =IF('[2]Tasa de Falla'!JA111=0,"",'[2]Tasa de Falla'!JA111) ->  | N111: =IF('[2]Tasa de Falla'!JB111=0,"",'[2]Tasa de Falla'!JB111) ->  | O111: =IF('[2]Tasa de Falla'!JC111=0,"",'[2]Tasa de Falla'!JC111) -> 1 | P111: =IF('[2]Tasa de Falla'!JD111=0,"",'[2]Tasa de Falla'!JD111) ->  | Q111: =IF('[2]Tasa de Falla'!JE111=0,"",'[2]Tasa de Falla'!JE111) ->  | R111: =IF('[2]Tasa de Falla'!JF111=0,"",'[2]Tasa de Falla'!JF111) -> 
C112: ='[2]Tasa de Falla'!C112 -> 95 | D112: ='[2]Tasa de Falla'!D112 -> ANDALGALA - SAULIL | E112: ='[2]Tasa de Falla'!E112 -> 132 | F112: ='[2]Tasa de Falla'!F112 -> 76 | G112: =IF('[2]Tasa de Falla'!IU112=0,"",'[2]Tasa de Falla'!IU112) ->  | H112: =IF('[2]Tasa de Falla'!IV112=0,"",'[2]Tasa de Falla'!IV112) ->  | I112: =IF('[2]Tasa de Falla'!IW112=0,"",'[2]Tasa de Falla'!IW112) ->  | J112: =IF('[2]Tasa de Falla'!IX112=0,"",'[2]Tasa de Falla'!IX112) ->  | K112: =IF('[2]Tasa de Falla'!IY112=0,"",'[2]Tasa de Falla'!IY112) ->  | L112: =IF('[2]Tasa de Falla'!IZ112=0,"",'[2]Tasa de Falla'!IZ112) ->  | M112: =IF('[2]Tasa de Falla'!JA112=0,"",'[2]Tasa de Falla'!JA112) ->  | N112: =IF('[2]Tasa de Falla'!JB112=0,"",'[2]Tasa de Falla'!JB112) ->  | O112: =IF('[2]Tasa de Falla'!JC112=0,"",'[2]Tasa de Falla'!JC112) -> 1 | P112: =IF('[2]Tasa de Falla'!JD112=0,"",'[2]Tasa de Falla'!JD112) ->  | Q112: =IF('[2]Tasa de Falla'!JE112=0,"",'[2]Tasa de Falla'!JE112) -> 1 | R112: =IF('[2]Tasa de Falla'!JF112=0,"",'[2]Tasa de Falla'!JF112) -> 
C113: ='[2]Tasa de Falla'!C113 -> 96 | D113: ='[2]Tasa de Falla'!D113 -> SANTIAGO OESTE - SANT. SUR - SANT. CENTRO | E113: ='[2]Tasa de Falla'!E113 -> 132 | F113: ='[2]Tasa de Falla'!F113 -> 14.6 | G113: =IF('[2]Tasa de Falla'!IU113=0,"",'[2]Tasa de Falla'!IU113) -> XXXX | H113: =IF('[2]Tasa de Falla'!IV113=0,"",'[2]Tasa de Falla'!IV113) -> XXXX | I113: =IF('[2]Tasa de Falla'!IW113=0,"",'[2]Tasa de Falla'!IW113) -> XXXX | J113: =IF('[2]Tasa de Falla'!IX113=0,"",'[2]Tasa de Falla'!IX113) -> XXXX | K113: =IF('[2]Tasa de Falla'!IY113=0,"",'[2]Tasa de Falla'!IY113) -> XXXX | L113: =IF('[2]Tasa de Falla'!IZ113=0,"",'[2]Tasa de Falla'!IZ113) -> XXXX | M113: =IF('[2]Tasa de Falla'!JA113=0,"",'[2]Tasa de Falla'!JA113) -> XXXX | N113: =IF('[2]Tasa de Falla'!JB113=0,"",'[2]Tasa de Falla'!JB113) -> XXXX | O113: =IF('[2]Tasa de Falla'!JC113=0,"",'[2]Tasa de Falla'!JC113) -> XXXX | P113: =IF('[2]Tasa de Falla'!JD113=0,"",'[2]Tasa de Falla'!JD113) -> XXXX | Q113: =IF('[2]Tasa de Falla'!JE113=0,"",'[2]Tasa de Falla'!JE113) -> XXXX | R113: =IF('[2]Tasa de Falla'!JF113=0,"",'[2]Tasa de Falla'!JF113) -> XXXX
C114: ='[2]Tasa de Falla'!C114 -> 97 | D114: ='[2]Tasa de Falla'!D114 -> SUNCHO CORRAL - QUIMILI | E114: ='[2]Tasa de Falla'!E114 -> 132 | F114: ='[2]Tasa de Falla'!F114 -> 108 | G114: =IF('[2]Tasa de Falla'!IU114=0,"",'[2]Tasa de Falla'!IU114) ->  | H114: =IF('[2]Tasa de Falla'!IV114=0,"",'[2]Tasa de Falla'!IV114) ->  | I114: =IF('[2]Tasa de Falla'!IW114=0,"",'[2]Tasa de Falla'!IW114) ->  | J114: =IF('[2]Tasa de Falla'!IX114=0,"",'[2]Tasa de Falla'!IX114) ->  | K114: =IF('[2]Tasa de Falla'!IY114=0,"",'[2]Tasa de Falla'!IY114) ->  | L114: =IF('[2]Tasa de Falla'!IZ114=0,"",'[2]Tasa de Falla'!IZ114) ->  | M114: =IF('[2]Tasa de Falla'!JA114=0,"",'[2]Tasa de Falla'!JA114) ->  | N114: =IF('[2]Tasa de Falla'!JB114=0,"",'[2]Tasa de Falla'!JB114) ->  | O114: =IF('[2]Tasa de Falla'!JC114=0,"",'[2]Tasa de Falla'!JC114) ->  | P114: =IF('[2]Tasa de Falla'!JD114=0,"",'[2]Tasa de Falla'!JD114) ->  | Q114: =IF('[2]Tasa de Falla'!JE114=0,"",'[2]Tasa de Falla'!JE114) ->  | R114: =IF('[2]Tasa de Falla'!JF114=0,"",'[2]Tasa de Falla'!JF114) -> 
C115: ='[2]Tasa de Falla'!C115 -> 98 | D115: ='[2]Tasa de Falla'!D115 -> EL BRACHO - LA BANDA ESTE | E115: ='[2]Tasa de Falla'!E115 -> 132 | F115: ='[2]Tasa de Falla'!F115 -> 140.9 | G115: =IF('[2]Tasa de Falla'!IU115=0,"",'[2]Tasa de Falla'!IU115) ->  | H115: =IF('[2]Tasa de Falla'!IV115=0,"",'[2]Tasa de Falla'!IV115) -> 1 | I115: =IF('[2]Tasa de Falla'!IW115=0,"",'[2]Tasa de Falla'!IW115) ->  | J115: =IF('[2]Tasa de Falla'!IX115=0,"",'[2]Tasa de Falla'!IX115) ->  | K115: =IF('[2]Tasa de Falla'!IY115=0,"",'[2]Tasa de Falla'!IY115) ->  | L115: =IF('[2]Tasa de Falla'!IZ115=0,"",'[2]Tasa de Falla'!IZ115) ->  | M115: =IF('[2]Tasa de Falla'!JA115=0,"",'[2]Tasa de Falla'!JA115) ->  | N115: =IF('[2]Tasa de Falla'!JB115=0,"",'[2]Tasa de Falla'!JB115) ->  | O115: =IF('[2]Tasa de Falla'!JC115=0,"",'[2]Tasa de Falla'!JC115) -> 1 | P115: =IF('[2]Tasa de Falla'!JD115=0,"",'[2]Tasa de Falla'!JD115) ->  | Q115: =IF('[2]Tasa de Falla'!JE115=0,"",'[2]Tasa de Falla'!JE115) ->  | R115: =IF('[2]Tasa de Falla'!JF115=0,"",'[2]Tasa de Falla'!JF115) -> 1
C116: ='[2]Tasa de Falla'!C116 -> 99 | D116: ='[2]Tasa de Falla'!D116 -> LA BANDA ESTE - LA BANDA | E116: ='[2]Tasa de Falla'!E116 -> 132 | F116: ='[2]Tasa de Falla'!F116 -> 16.2 | G116: =IF('[2]Tasa de Falla'!IU116=0,"",'[2]Tasa de Falla'!IU116) ->  | H116: =IF('[2]Tasa de Falla'!IV116=0,"",'[2]Tasa de Falla'!IV116) ->  | I116: =IF('[2]Tasa de Falla'!IW116=0,"",'[2]Tasa de Falla'!IW116) ->  | J116: =IF('[2]Tasa de Falla'!IX116=0,"",'[2]Tasa de Falla'!IX116) ->  | K116: =IF('[2]Tasa de Falla'!IY116=0,"",'[2]Tasa de Falla'!IY116) ->  | L116: =IF('[2]Tasa de Falla'!IZ116=0,"",'[2]Tasa de Falla'!IZ116) ->  | M116: =IF('[2]Tasa de Falla'!JA116=0,"",'[2]Tasa de Falla'!JA116) ->  | N116: =IF('[2]Tasa de Falla'!JB116=0,"",'[2]Tasa de Falla'!JB116) ->  | O116: =IF('[2]Tasa de Falla'!JC116=0,"",'[2]Tasa de Falla'!JC116) ->  | P116: =IF('[2]Tasa de Falla'!JD116=0,"",'[2]Tasa de Falla'!JD116) ->  | Q116: =IF('[2]Tasa de Falla'!JE116=0,"",'[2]Tasa de Falla'!JE116) ->  | R116: =IF('[2]Tasa de Falla'!JF116=0,"",'[2]Tasa de Falla'!JF116) -> 
C117: ='[2]Tasa de Falla'!C117 -> 100 | D117: ='[2]Tasa de Falla'!D117 -> TABACAL - PICHANAL | E117: ='[2]Tasa de Falla'!E117 -> 132 | F117: ='[2]Tasa de Falla'!F117 -> 9.04 | G117: =IF('[2]Tasa de Falla'!IU117=0,"",'[2]Tasa de Falla'!IU117) ->  | H117: =IF('[2]Tasa de Falla'!IV117=0,"",'[2]Tasa de Falla'!IV117) ->  | I117: =IF('[2]Tasa de Falla'!IW117=0,"",'[2]Tasa de Falla'!IW117) ->  | J117: =IF('[2]Tasa de Falla'!IX117=0,"",'[2]Tasa de Falla'!IX117) ->  | K117: =IF('[2]Tasa de Falla'!IY117=0,"",'[2]Tasa de Falla'!IY117) ->  | L117: =IF('[2]Tasa de Falla'!IZ117=0,"",'[2]Tasa de Falla'!IZ117) ->  | M117: =IF('[2]Tasa de Falla'!JA117=0,"",'[2]Tasa de Falla'!JA117) ->  | N117: =IF('[2]Tasa de Falla'!JB117=0,"",'[2]Tasa de Falla'!JB117) ->  | O117: =IF('[2]Tasa de Falla'!JC117=0,"",'[2]Tasa de Falla'!JC117) ->  | P117: =IF('[2]Tasa de Falla'!JD117=0,"",'[2]Tasa de Falla'!JD117) ->  | Q117: =IF('[2]Tasa de Falla'!JE117=0,"",'[2]Tasa de Falla'!JE117) -> 1 | R117: =IF('[2]Tasa de Falla'!JF117=0,"",'[2]Tasa de Falla'!JF117) -> 
C118: ='[2]Tasa de Falla'!C118 -> 101 | D118: ='[2]Tasa de Falla'!D118 -> ORAN - TABACAL | E118: ='[2]Tasa de Falla'!E118 -> 132 | F118: ='[2]Tasa de Falla'!F118 -> 10 | G118: =IF('[2]Tasa de Falla'!IU118=0,"",'[2]Tasa de Falla'!IU118) ->  | H118: =IF('[2]Tasa de Falla'!IV118=0,"",'[2]Tasa de Falla'!IV118) ->  | I118: =IF('[2]Tasa de Falla'!IW118=0,"",'[2]Tasa de Falla'!IW118) ->  | J118: =IF('[2]Tasa de Falla'!IX118=0,"",'[2]Tasa de Falla'!IX118) ->  | K118: =IF('[2]Tasa de Falla'!IY118=0,"",'[2]Tasa de Falla'!IY118) -> 1 | L118: =IF('[2]Tasa de Falla'!IZ118=0,"",'[2]Tasa de Falla'!IZ118) ->  | M118: =IF('[2]Tasa de Falla'!JA118=0,"",'[2]Tasa de Falla'!JA118) ->  | N118: =IF('[2]Tasa de Falla'!JB118=0,"",'[2]Tasa de Falla'!JB118) ->  | O118: =IF('[2]Tasa de Falla'!JC118=0,"",'[2]Tasa de Falla'!JC118) ->  | P118: =IF('[2]Tasa de Falla'!JD118=0,"",'[2]Tasa de Falla'!JD118) -> XXXX | Q118: =IF('[2]Tasa de Falla'!JE118=0,"",'[2]Tasa de Falla'!JE118) -> XXXX | R118: =IF('[2]Tasa de Falla'!JF118=0,"",'[2]Tasa de Falla'!JF118) -> XXXX
C119: ='[2]Tasa de Falla'!C119 -> 102 | D119: ='[2]Tasa de Falla'!D119 -> MONTE QUEMADO -COPO - QUIMILI | E119: ='[2]Tasa de Falla'!E119 -> 132 | F119: ='[2]Tasa de Falla'!F119 -> 218 | G119: =IF('[2]Tasa de Falla'!IU119=0,"",'[2]Tasa de Falla'!IU119) ->  | H119: =IF('[2]Tasa de Falla'!IV119=0,"",'[2]Tasa de Falla'!IV119) ->  | I119: =IF('[2]Tasa de Falla'!IW119=0,"",'[2]Tasa de Falla'!IW119) ->  | J119: =IF('[2]Tasa de Falla'!IX119=0,"",'[2]Tasa de Falla'!IX119) ->  | K119: =IF('[2]Tasa de Falla'!IY119=0,"",'[2]Tasa de Falla'!IY119) ->  | L119: =IF('[2]Tasa de Falla'!IZ119=0,"",'[2]Tasa de Falla'!IZ119) ->  | M119: =IF('[2]Tasa de Falla'!JA119=0,"",'[2]Tasa de Falla'!JA119) ->  | N119: =IF('[2]Tasa de Falla'!JB119=0,"",'[2]Tasa de Falla'!JB119) ->  | O119: =IF('[2]Tasa de Falla'!JC119=0,"",'[2]Tasa de Falla'!JC119) ->  | P119: =IF('[2]Tasa de Falla'!JD119=0,"",'[2]Tasa de Falla'!JD119) ->  | Q119: =IF('[2]Tasa de Falla'!JE119=0,"",'[2]Tasa de Falla'!JE119) ->  | R119: =IF('[2]Tasa de Falla'!JF119=0,"",'[2]Tasa de Falla'!JF119) -> 
C120: ='[2]Tasa de Falla'!C120 -> 103 | D120: ='[2]Tasa de Falla'!D120 -> PI. CIRCUNVALACIÓN - LARIOJA N. 1 | E120: ='[2]Tasa de Falla'!E120 -> 132 | F120: ='[2]Tasa de Falla'!F120 -> 16.65 | G120: =IF('[2]Tasa de Falla'!IU120=0,"",'[2]Tasa de Falla'!IU120) ->  | H120: =IF('[2]Tasa de Falla'!IV120=0,"",'[2]Tasa de Falla'!IV120) ->  | I120: =IF('[2]Tasa de Falla'!IW120=0,"",'[2]Tasa de Falla'!IW120) ->  | J120: =IF('[2]Tasa de Falla'!IX120=0,"",'[2]Tasa de Falla'!IX120) ->  | K120: =IF('[2]Tasa de Falla'!IY120=0,"",'[2]Tasa de Falla'!IY120) ->  | L120: =IF('[2]Tasa de Falla'!IZ120=0,"",'[2]Tasa de Falla'!IZ120) ->  | M120: =IF('[2]Tasa de Falla'!JA120=0,"",'[2]Tasa de Falla'!JA120) ->  | N120: =IF('[2]Tasa de Falla'!JB120=0,"",'[2]Tasa de Falla'!JB120) ->  | O120: =IF('[2]Tasa de Falla'!JC120=0,"",'[2]Tasa de Falla'!JC120) ->  | P120: =IF('[2]Tasa de Falla'!JD120=0,"",'[2]Tasa de Falla'!JD120) ->  | Q120: =IF('[2]Tasa de Falla'!JE120=0,"",'[2]Tasa de Falla'!JE120) ->  | R120: =IF('[2]Tasa de Falla'!JF120=0,"",'[2]Tasa de Falla'!JF120) -> 1
C121: ='[2]Tasa de Falla'!C121 -> 104 | D121: ='[2]Tasa de Falla'!D121 -> PATQUIA NONOGASTA 132 1 | E121: ='[2]Tasa de Falla'!E121 -> 132 | F121: ='[2]Tasa de Falla'!F121 -> 108.3 | G121: =IF('[2]Tasa de Falla'!IU121=0,"",'[2]Tasa de Falla'!IU121) ->  | H121: =IF('[2]Tasa de Falla'!IV121=0,"",'[2]Tasa de Falla'!IV121) ->  | I121: =IF('[2]Tasa de Falla'!IW121=0,"",'[2]Tasa de Falla'!IW121) ->  | J121: =IF('[2]Tasa de Falla'!IX121=0,"",'[2]Tasa de Falla'!IX121) ->  | K121: =IF('[2]Tasa de Falla'!IY121=0,"",'[2]Tasa de Falla'!IY121) ->  | L121: =IF('[2]Tasa de Falla'!IZ121=0,"",'[2]Tasa de Falla'!IZ121) ->  | M121: =IF('[2]Tasa de Falla'!JA121=0,"",'[2]Tasa de Falla'!JA121) ->  | N121: =IF('[2]Tasa de Falla'!JB121=0,"",'[2]Tasa de Falla'!JB121) ->  | O121: =IF('[2]Tasa de Falla'!JC121=0,"",'[2]Tasa de Falla'!JC121) ->  | P121: =IF('[2]Tasa de Falla'!JD121=0,"",'[2]Tasa de Falla'!JD121) ->  | Q121: =IF('[2]Tasa de Falla'!JE121=0,"",'[2]Tasa de Falla'!JE121) ->  | R121: =IF('[2]Tasa de Falla'!JF121=0,"",'[2]Tasa de Falla'!JF121) -> 
C122: ='[2]Tasa de Falla'!C122 -> 105 | D122: ='[2]Tasa de Falla'!D122 -> NONOGASTA - VILLA UNION 132 1 | E122: ='[2]Tasa de Falla'!E122 -> 132 | F122: ='[2]Tasa de Falla'!F122 -> 82.1 | G122: =IF('[2]Tasa de Falla'!IU122=0,"",'[2]Tasa de Falla'!IU122) ->  | H122: =IF('[2]Tasa de Falla'!IV122=0,"",'[2]Tasa de Falla'!IV122) ->  | I122: =IF('[2]Tasa de Falla'!IW122=0,"",'[2]Tasa de Falla'!IW122) ->  | J122: =IF('[2]Tasa de Falla'!IX122=0,"",'[2]Tasa de Falla'!IX122) ->  | K122: =IF('[2]Tasa de Falla'!IY122=0,"",'[2]Tasa de Falla'!IY122) ->  | L122: =IF('[2]Tasa de Falla'!IZ122=0,"",'[2]Tasa de Falla'!IZ122) ->  | M122: =IF('[2]Tasa de Falla'!JA122=0,"",'[2]Tasa de Falla'!JA122) ->  | N122: =IF('[2]Tasa de Falla'!JB122=0,"",'[2]Tasa de Falla'!JB122) ->  | O122: =IF('[2]Tasa de Falla'!JC122=0,"",'[2]Tasa de Falla'!JC122) ->  | P122: =IF('[2]Tasa de Falla'!JD122=0,"",'[2]Tasa de Falla'!JD122) ->  | Q122: =IF('[2]Tasa de Falla'!JE122=0,"",'[2]Tasa de Falla'!JE122) ->  | R122: =IF('[2]Tasa de Falla'!JF122=0,"",'[2]Tasa de Falla'!JF122) -> 
C123: ='[2]Tasa de Falla'!C123 -> 106 | D123: ='[2]Tasa de Falla'!D123 -> ARAUCO - AIMOGASTA 132 1 | E123: ='[2]Tasa de Falla'!E123 -> 132 | F123: ='[2]Tasa de Falla'!F123 -> 20 | G123: =IF('[2]Tasa de Falla'!IU123=0,"",'[2]Tasa de Falla'!IU123) ->  | H123: =IF('[2]Tasa de Falla'!IV123=0,"",'[2]Tasa de Falla'!IV123) ->  | I123: =IF('[2]Tasa de Falla'!IW123=0,"",'[2]Tasa de Falla'!IW123) ->  | J123: =IF('[2]Tasa de Falla'!IX123=0,"",'[2]Tasa de Falla'!IX123) ->  | K123: =IF('[2]Tasa de Falla'!IY123=0,"",'[2]Tasa de Falla'!IY123) ->  | L123: =IF('[2]Tasa de Falla'!IZ123=0,"",'[2]Tasa de Falla'!IZ123) ->  | M123: =IF('[2]Tasa de Falla'!JA123=0,"",'[2]Tasa de Falla'!JA123) ->  | N123: =IF('[2]Tasa de Falla'!JB123=0,"",'[2]Tasa de Falla'!JB123) ->  | O123: =IF('[2]Tasa de Falla'!JC123=0,"",'[2]Tasa de Falla'!JC123) ->  | P123: =IF('[2]Tasa de Falla'!JD123=0,"",'[2]Tasa de Falla'!JD123) ->  | Q123: =IF('[2]Tasa de Falla'!JE123=0,"",'[2]Tasa de Falla'!JE123) ->  | R123: =IF('[2]Tasa de Falla'!JF123=0,"",'[2]Tasa de Falla'!JF123) -> 
C124: ='[2]Tasa de Falla'!C124 -> 107 | D124: ='[2]Tasa de Falla'!D124 -> PATQUIA - CHAMICAL 132 1 | E124: ='[2]Tasa de Falla'!E124 -> 132 | F124: ='[2]Tasa de Falla'!F124 -> 67.4 | G124: =IF('[2]Tasa de Falla'!IU124=0,"",'[2]Tasa de Falla'!IU124) ->  | H124: =IF('[2]Tasa de Falla'!IV124=0,"",'[2]Tasa de Falla'!IV124) ->  | I124: =IF('[2]Tasa de Falla'!IW124=0,"",'[2]Tasa de Falla'!IW124) ->  | J124: =IF('[2]Tasa de Falla'!IX124=0,"",'[2]Tasa de Falla'!IX124) ->  | K124: =IF('[2]Tasa de Falla'!IY124=0,"",'[2]Tasa de Falla'!IY124) ->  | L124: =IF('[2]Tasa de Falla'!IZ124=0,"",'[2]Tasa de Falla'!IZ124) ->  | M124: =IF('[2]Tasa de Falla'!JA124=0,"",'[2]Tasa de Falla'!JA124) ->  | N124: =IF('[2]Tasa de Falla'!JB124=0,"",'[2]Tasa de Falla'!JB124) ->  | O124: =IF('[2]Tasa de Falla'!JC124=0,"",'[2]Tasa de Falla'!JC124) ->  | P124: =IF('[2]Tasa de Falla'!JD124=0,"",'[2]Tasa de Falla'!JD124) ->  | Q124: =IF('[2]Tasa de Falla'!JE124=0,"",'[2]Tasa de Falla'!JE124) -> 2 | R124: =IF('[2]Tasa de Falla'!JF124=0,"",'[2]Tasa de Falla'!JF124) -> 
C125: ='[2]Tasa de Falla'!C125 -> 108 | D125: ='[2]Tasa de Falla'!D125 -> LA RIOJA - ARAUCO 132 1 | E125: ='[2]Tasa de Falla'!E125 -> 132 | F125: ='[2]Tasa de Falla'!F125 -> 84.3 | G125: =IF('[2]Tasa de Falla'!IU125=0,"",'[2]Tasa de Falla'!IU125) ->  | H125: =IF('[2]Tasa de Falla'!IV125=0,"",'[2]Tasa de Falla'!IV125) ->  | I125: =IF('[2]Tasa de Falla'!IW125=0,"",'[2]Tasa de Falla'!IW125) -> 1 | J125: =IF('[2]Tasa de Falla'!IX125=0,"",'[2]Tasa de Falla'!IX125) ->  | K125: =IF('[2]Tasa de Falla'!IY125=0,"",'[2]Tasa de Falla'!IY125) ->  | L125: =IF('[2]Tasa de Falla'!IZ125=0,"",'[2]Tasa de Falla'!IZ125) ->  | M125: =IF('[2]Tasa de Falla'!JA125=0,"",'[2]Tasa de Falla'!JA125) ->  | N125: =IF('[2]Tasa de Falla'!JB125=0,"",'[2]Tasa de Falla'!JB125) ->  | O125: =IF('[2]Tasa de Falla'!JC125=0,"",'[2]Tasa de Falla'!JC125) ->  | P125: =IF('[2]Tasa de Falla'!JD125=0,"",'[2]Tasa de Falla'!JD125) -> 1 | Q125: =IF('[2]Tasa de Falla'!JE125=0,"",'[2]Tasa de Falla'!JE125) -> 5 | R125: =IF('[2]Tasa de Falla'!JF125=0,"",'[2]Tasa de Falla'!JF125) -> 1
C126: ='[2]Tasa de Falla'!C126 -> 109 | D126: ='[2]Tasa de Falla'!D126 -> PI PATQUIA - PATQUIA 132 1 | E126: ='[2]Tasa de Falla'!E126 -> 132 | F126: ='[2]Tasa de Falla'!F126 -> 58.65 | G126: =IF('[2]Tasa de Falla'!IU126=0,"",'[2]Tasa de Falla'!IU126) ->  | H126: =IF('[2]Tasa de Falla'!IV126=0,"",'[2]Tasa de Falla'!IV126) ->  | I126: =IF('[2]Tasa de Falla'!IW126=0,"",'[2]Tasa de Falla'!IW126) ->  | J126: =IF('[2]Tasa de Falla'!IX126=0,"",'[2]Tasa de Falla'!IX126) ->  | K126: =IF('[2]Tasa de Falla'!IY126=0,"",'[2]Tasa de Falla'!IY126) ->  | L126: =IF('[2]Tasa de Falla'!IZ126=0,"",'[2]Tasa de Falla'!IZ126) ->  | M126: =IF('[2]Tasa de Falla'!JA126=0,"",'[2]Tasa de Falla'!JA126) ->  | N126: =IF('[2]Tasa de Falla'!JB126=0,"",'[2]Tasa de Falla'!JB126) ->  | O126: =IF('[2]Tasa de Falla'!JC126=0,"",'[2]Tasa de Falla'!JC126) ->  | P126: =IF('[2]Tasa de Falla'!JD126=0,"",'[2]Tasa de Falla'!JD126) ->  | Q126: =IF('[2]Tasa de Falla'!JE126=0,"",'[2]Tasa de Falla'!JE126) ->  | R126: =IF('[2]Tasa de Falla'!JF126=0,"",'[2]Tasa de Falla'!JF126) -> 
C127: ='[2]Tasa de Falla'!C127 -> 110 | D127: ='[2]Tasa de Falla'!D127 -> RIO HONDO - TERMAS NORTE | E127: ='[2]Tasa de Falla'!E127 -> 132 | F127: ='[2]Tasa de Falla'!F127 -> 5.8 | G127: =IF('[2]Tasa de Falla'!IU127=0,"",'[2]Tasa de Falla'!IU127) ->  | H127: =IF('[2]Tasa de Falla'!IV127=0,"",'[2]Tasa de Falla'!IV127) ->  | I127: =IF('[2]Tasa de Falla'!IW127=0,"",'[2]Tasa de Falla'!IW127) ->  | J127: =IF('[2]Tasa de Falla'!IX127=0,"",'[2]Tasa de Falla'!IX127) ->  | K127: =IF('[2]Tasa de Falla'!IY127=0,"",'[2]Tasa de Falla'!IY127) ->  | L127: =IF('[2]Tasa de Falla'!IZ127=0,"",'[2]Tasa de Falla'!IZ127) ->  | M127: =IF('[2]Tasa de Falla'!JA127=0,"",'[2]Tasa de Falla'!JA127) ->  | N127: =IF('[2]Tasa de Falla'!JB127=0,"",'[2]Tasa de Falla'!JB127) ->  | O127: =IF('[2]Tasa de Falla'!JC127=0,"",'[2]Tasa de Falla'!JC127) ->  | P127: =IF('[2]Tasa de Falla'!JD127=0,"",'[2]Tasa de Falla'!JD127) ->  | Q127: =IF('[2]Tasa de Falla'!JE127=0,"",'[2]Tasa de Falla'!JE127) ->  | R127: =IF('[2]Tasa de Falla'!JF127=0,"",'[2]Tasa de Falla'!JF127) -> 
C128: ='[2]Tasa de Falla'!C128 -> 111 | D128: ='[2]Tasa de Falla'!D128 -> EL BRACHO - TETRMAS NORTE | E128: ='[2]Tasa de Falla'!E128 -> 132 | F128: ='[2]Tasa de Falla'!F128 -> 78.4 | G128: =IF('[2]Tasa de Falla'!IU128=0,"",'[2]Tasa de Falla'!IU128) ->  | H128: =IF('[2]Tasa de Falla'!IV128=0,"",'[2]Tasa de Falla'!IV128) ->  | I128: =IF('[2]Tasa de Falla'!IW128=0,"",'[2]Tasa de Falla'!IW128) ->  | J128: =IF('[2]Tasa de Falla'!IX128=0,"",'[2]Tasa de Falla'!IX128) ->  | K128: =IF('[2]Tasa de Falla'!IY128=0,"",'[2]Tasa de Falla'!IY128) ->  | L128: =IF('[2]Tasa de Falla'!IZ128=0,"",'[2]Tasa de Falla'!IZ128) -> 1 | M128: =IF('[2]Tasa de Falla'!JA128=0,"",'[2]Tasa de Falla'!JA128) -> 1 | N128: =IF('[2]Tasa de Falla'!JB128=0,"",'[2]Tasa de Falla'!JB128) ->  | O128: =IF('[2]Tasa de Falla'!JC128=0,"",'[2]Tasa de Falla'!JC128) ->  | P128: =IF('[2]Tasa de Falla'!JD128=0,"",'[2]Tasa de Falla'!JD128) ->  | Q128: =IF('[2]Tasa de Falla'!JE128=0,"",'[2]Tasa de Falla'!JE128) ->  | R128: =IF('[2]Tasa de Falla'!JF128=0,"",'[2]Tasa de Falla'!JF128) -> 
C129: ='[2]Tasa de Falla'!C129 -> 112 | D129: ='[2]Tasa de Falla'!D129 -> PI 150 NORTE - LA RIOJA ESTE | E129: ='[2]Tasa de Falla'!E129 -> 132 | F129: ='[2]Tasa de Falla'!F129 -> 4 | G129: =IF('[2]Tasa de Falla'!IU129=0,"",'[2]Tasa de Falla'!IU129) ->  | H129: =IF('[2]Tasa de Falla'!IV129=0,"",'[2]Tasa de Falla'!IV129) ->  | I129: =IF('[2]Tasa de Falla'!IW129=0,"",'[2]Tasa de Falla'!IW129) ->  | J129: =IF('[2]Tasa de Falla'!IX129=0,"",'[2]Tasa de Falla'!IX129) ->  | K129: =IF('[2]Tasa de Falla'!IY129=0,"",'[2]Tasa de Falla'!IY129) ->  | L129: =IF('[2]Tasa de Falla'!IZ129=0,"",'[2]Tasa de Falla'!IZ129) ->  | M129: =IF('[2]Tasa de Falla'!JA129=0,"",'[2]Tasa de Falla'!JA129) ->  | N129: =IF('[2]Tasa de Falla'!JB129=0,"",'[2]Tasa de Falla'!JB129) ->  | O129: =IF('[2]Tasa de Falla'!JC129=0,"",'[2]Tasa de Falla'!JC129) ->  | P129: =IF('[2]Tasa de Falla'!JD129=0,"",'[2]Tasa de Falla'!JD129) ->  | Q129: =IF('[2]Tasa de Falla'!JE129=0,"",'[2]Tasa de Falla'!JE129) ->  | R129: =IF('[2]Tasa de Falla'!JF129=0,"",'[2]Tasa de Falla'!JF129) -> 
C130: ='[2]Tasa de Falla'!C130 -> 113 | D130: ='[2]Tasa de Falla'!D130 -> PI 150 SUR - LA RIOJA ESTE | E130: ='[2]Tasa de Falla'!E130 -> 132 | F130: ='[2]Tasa de Falla'!F130 -> 4 | G130: =IF('[2]Tasa de Falla'!IU130=0,"",'[2]Tasa de Falla'!IU130) ->  | H130: =IF('[2]Tasa de Falla'!IV130=0,"",'[2]Tasa de Falla'!IV130) ->  | I130: =IF('[2]Tasa de Falla'!IW130=0,"",'[2]Tasa de Falla'!IW130) ->  | J130: =IF('[2]Tasa de Falla'!IX130=0,"",'[2]Tasa de Falla'!IX130) ->  | K130: =IF('[2]Tasa de Falla'!IY130=0,"",'[2]Tasa de Falla'!IY130) ->  | L130: =IF('[2]Tasa de Falla'!IZ130=0,"",'[2]Tasa de Falla'!IZ130) ->  | M130: =IF('[2]Tasa de Falla'!JA130=0,"",'[2]Tasa de Falla'!JA130) ->  | N130: =IF('[2]Tasa de Falla'!JB130=0,"",'[2]Tasa de Falla'!JB130) ->  | O130: =IF('[2]Tasa de Falla'!JC130=0,"",'[2]Tasa de Falla'!JC130) ->  | P130: =IF('[2]Tasa de Falla'!JD130=0,"",'[2]Tasa de Falla'!JD130) ->  | Q130: =IF('[2]Tasa de Falla'!JE130=0,"",'[2]Tasa de Falla'!JE130) ->  | R130: =IF('[2]Tasa de Falla'!JF130=0,"",'[2]Tasa de Falla'!JF130) -> 
C131: ='[2]Tasa de Falla'!C131 -> 114 | D131: ='[2]Tasa de Falla'!D131 -> QUIMILI - CAMPO GALLO 132 1 | E131: ='[2]Tasa de Falla'!E131 -> 132 | F131: ='[2]Tasa de Falla'!F131 -> 140 | G131: =IF('[2]Tasa de Falla'!IU131=0,"",'[2]Tasa de Falla'!IU131) ->  | H131: =IF('[2]Tasa de Falla'!IV131=0,"",'[2]Tasa de Falla'!IV131) ->  | I131: =IF('[2]Tasa de Falla'!IW131=0,"",'[2]Tasa de Falla'!IW131) ->  | J131: =IF('[2]Tasa de Falla'!IX131=0,"",'[2]Tasa de Falla'!IX131) ->  | K131: =IF('[2]Tasa de Falla'!IY131=0,"",'[2]Tasa de Falla'!IY131) ->  | L131: =IF('[2]Tasa de Falla'!IZ131=0,"",'[2]Tasa de Falla'!IZ131) ->  | M131: =IF('[2]Tasa de Falla'!JA131=0,"",'[2]Tasa de Falla'!JA131) ->  | N131: =IF('[2]Tasa de Falla'!JB131=0,"",'[2]Tasa de Falla'!JB131) ->  | O131: =IF('[2]Tasa de Falla'!JC131=0,"",'[2]Tasa de Falla'!JC131) ->  | P131: =IF('[2]Tasa de Falla'!JD131=0,"",'[2]Tasa de Falla'!JD131) ->  | Q131: =IF('[2]Tasa de Falla'!JE131=0,"",'[2]Tasa de Falla'!JE131) ->  | R131: =IF('[2]Tasa de Falla'!JF131=0,"",'[2]Tasa de Falla'!JF131) -> 1
C132: ='[2]Tasa de Falla'!C132 -> 115 | D132: ='[2]Tasa de Falla'!D132 -> CAMPO GALLO - COPO 132 1 | E132: ='[2]Tasa de Falla'!E132 -> 132 | F132: ='[2]Tasa de Falla'!F132 -> 90 | G132: =IF('[2]Tasa de Falla'!IU132=0,"",'[2]Tasa de Falla'!IU132) ->  | H132: =IF('[2]Tasa de Falla'!IV132=0,"",'[2]Tasa de Falla'!IV132) ->  | I132: =IF('[2]Tasa de Falla'!IW132=0,"",'[2]Tasa de Falla'!IW132) ->  | J132: =IF('[2]Tasa de Falla'!IX132=0,"",'[2]Tasa de Falla'!IX132) ->  | K132: =IF('[2]Tasa de Falla'!IY132=0,"",'[2]Tasa de Falla'!IY132) ->  | L132: =IF('[2]Tasa de Falla'!IZ132=0,"",'[2]Tasa de Falla'!IZ132) ->  | M132: =IF('[2]Tasa de Falla'!JA132=0,"",'[2]Tasa de Falla'!JA132) ->  | N132: =IF('[2]Tasa de Falla'!JB132=0,"",'[2]Tasa de Falla'!JB132) ->  | O132: =IF('[2]Tasa de Falla'!JC132=0,"",'[2]Tasa de Falla'!JC132) ->  | P132: =IF('[2]Tasa de Falla'!JD132=0,"",'[2]Tasa de Falla'!JD132) ->  | Q132: =IF('[2]Tasa de Falla'!JE132=0,"",'[2]Tasa de Falla'!JE132) ->  | R132: =IF('[2]Tasa de Falla'!JF132=0,"",'[2]Tasa de Falla'!JF132) -> 
C133: ='[2]Tasa de Falla'!C133 -> 116 | D133: ='[2]Tasa de Falla'!D133 -> PICHANAL - SENDA HACHADA 132 1 | E133: ='[2]Tasa de Falla'!E133 -> 132 | F133: ='[2]Tasa de Falla'!F133 -> 46.5 | G133: =IF('[2]Tasa de Falla'!IU133=0,"",'[2]Tasa de Falla'!IU133) -> XXXX | H133: =IF('[2]Tasa de Falla'!IV133=0,"",'[2]Tasa de Falla'!IV133) ->  | I133: =IF('[2]Tasa de Falla'!IW133=0,"",'[2]Tasa de Falla'!IW133) ->  | J133: =IF('[2]Tasa de Falla'!IX133=0,"",'[2]Tasa de Falla'!IX133) ->  | K133: =IF('[2]Tasa de Falla'!IY133=0,"",'[2]Tasa de Falla'!IY133) ->  | L133: =IF('[2]Tasa de Falla'!IZ133=0,"",'[2]Tasa de Falla'!IZ133) ->  | M133: =IF('[2]Tasa de Falla'!JA133=0,"",'[2]Tasa de Falla'!JA133) ->  | N133: =IF('[2]Tasa de Falla'!JB133=0,"",'[2]Tasa de Falla'!JB133) ->  | O133: =IF('[2]Tasa de Falla'!JC133=0,"",'[2]Tasa de Falla'!JC133) ->  | P133: =IF('[2]Tasa de Falla'!JD133=0,"",'[2]Tasa de Falla'!JD133) ->  | Q133: =IF('[2]Tasa de Falla'!JE133=0,"",'[2]Tasa de Falla'!JE133) ->  | R133: =IF('[2]Tasa de Falla'!JF133=0,"",'[2]Tasa de Falla'!JF133) -> 
C134: ='[2]Tasa de Falla'!C134 -> 117 | D134: ='[2]Tasa de Falla'!D134 -> SENDA HACHADA - TARTAGAL 132 1 | E134: ='[2]Tasa de Falla'!E134 -> 132 | F134: ='[2]Tasa de Falla'!F134 -> 58.5 | G134: =IF('[2]Tasa de Falla'!IU134=0,"",'[2]Tasa de Falla'!IU134) -> XXXX | H134: =IF('[2]Tasa de Falla'!IV134=0,"",'[2]Tasa de Falla'!IV134) ->  | I134: =IF('[2]Tasa de Falla'!IW134=0,"",'[2]Tasa de Falla'!IW134) ->  | J134: =IF('[2]Tasa de Falla'!IX134=0,"",'[2]Tasa de Falla'!IX134) ->  | K134: =IF('[2]Tasa de Falla'!IY134=0,"",'[2]Tasa de Falla'!IY134) ->  | L134: =IF('[2]Tasa de Falla'!IZ134=0,"",'[2]Tasa de Falla'!IZ134) ->  | M134: =IF('[2]Tasa de Falla'!JA134=0,"",'[2]Tasa de Falla'!JA134) ->  | N134: =IF('[2]Tasa de Falla'!JB134=0,"",'[2]Tasa de Falla'!JB134) ->  | O134: =IF('[2]Tasa de Falla'!JC134=0,"",'[2]Tasa de Falla'!JC134) ->  | P134: =IF('[2]Tasa de Falla'!JD134=0,"",'[2]Tasa de Falla'!JD134) ->  | Q134: =IF('[2]Tasa de Falla'!JE134=0,"",'[2]Tasa de Falla'!JE134) ->  | R134: =IF('[2]Tasa de Falla'!JF134=0,"",'[2]Tasa de Falla'!JF134) -> 
C135: ='[2]Tasa de Falla'!C135 -> 118 | D135: ='[2]Tasa de Falla'!D135 -> ESTATICA - INDEPENDENCIA.TUC. 132 2 | E135: ='[2]Tasa de Falla'!E135 -> 132 | F135: ='[2]Tasa de Falla'!F135 -> 3.1 | G135: =IF('[2]Tasa de Falla'!IU135=0,"",'[2]Tasa de Falla'!IU135) -> XXXX | H135: =IF('[2]Tasa de Falla'!IV135=0,"",'[2]Tasa de Falla'!IV135) -> XXXX | I135: =IF('[2]Tasa de Falla'!IW135=0,"",'[2]Tasa de Falla'!IW135) -> XXXX | J135: =IF('[2]Tasa de Falla'!IX135=0,"",'[2]Tasa de Falla'!IX135) ->  | K135: =IF('[2]Tasa de Falla'!IY135=0,"",'[2]Tasa de Falla'!IY135) ->  | L135: =IF('[2]Tasa de Falla'!IZ135=0,"",'[2]Tasa de Falla'!IZ135) -> 1 | M135: =IF('[2]Tasa de Falla'!JA135=0,"",'[2]Tasa de Falla'!JA135) ->  | N135: =IF('[2]Tasa de Falla'!JB135=0,"",'[2]Tasa de Falla'!JB135) ->  | O135: =IF('[2]Tasa de Falla'!JC135=0,"",'[2]Tasa de Falla'!JC135) ->  | P135: =IF('[2]Tasa de Falla'!JD135=0,"",'[2]Tasa de Falla'!JD135) ->  | Q135: =IF('[2]Tasa de Falla'!JE135=0,"",'[2]Tasa de Falla'!JE135) ->  | R135: =IF('[2]Tasa de Falla'!JF135=0,"",'[2]Tasa de Falla'!JF135) -> 
C136: ='[2]Tasa de Falla'!C136 -> 119 | D136: ='[2]Tasa de Falla'!D136 -> SENDA HACHADA - DRAGONES 132 1 | E136: ='[2]Tasa de Falla'!E136 -> 132 | F136: ='[2]Tasa de Falla'!F136 -> 65 | G136: =IF('[2]Tasa de Falla'!IU136=0,"",'[2]Tasa de Falla'!IU136) -> XXXX | H136: =IF('[2]Tasa de Falla'!IV136=0,"",'[2]Tasa de Falla'!IV136) -> XXXX | I136: =IF('[2]Tasa de Falla'!IW136=0,"",'[2]Tasa de Falla'!IW136) -> XXXX | J136: =IF('[2]Tasa de Falla'!IX136=0,"",'[2]Tasa de Falla'!IX136) -> XXXX | K136: =IF('[2]Tasa de Falla'!IY136=0,"",'[2]Tasa de Falla'!IY136) -> XXXX | L136: =IF('[2]Tasa de Falla'!IZ136=0,"",'[2]Tasa de Falla'!IZ136) -> XXXX | M136: =IF('[2]Tasa de Falla'!JA136=0,"",'[2]Tasa de Falla'!JA136) -> XXXX | N136: =IF('[2]Tasa de Falla'!JB136=0,"",'[2]Tasa de Falla'!JB136) -> XXXX | O136: =IF('[2]Tasa de Falla'!JC136=0,"",'[2]Tasa de Falla'!JC136) -> XXXX | P136: =IF('[2]Tasa de Falla'!JD136=0,"",'[2]Tasa de Falla'!JD136) -> XXXX | Q136: =IF('[2]Tasa de Falla'!JE136=0,"",'[2]Tasa de Falla'!JE136) -> XXXX | R136: =IF('[2]Tasa de Falla'!JF136=0,"",'[2]Tasa de Falla'!JF136) -> XXXX
C137: ='[2]Tasa de Falla'!C137 -> 120 | D137: ='[2]Tasa de Falla'!D137 -> COBOS - SALTA ESTE 132 1 | E137: ='[2]Tasa de Falla'!E137 -> 132 | F137: ='[2]Tasa de Falla'!F137 -> 45.6 | G137: =IF('[2]Tasa de Falla'!IU137=0,"",'[2]Tasa de Falla'!IU137) -> XXXX | H137: =IF('[2]Tasa de Falla'!IV137=0,"",'[2]Tasa de Falla'!IV137) -> XXXX | I137: =IF('[2]Tasa de Falla'!IW137=0,"",'[2]Tasa de Falla'!IW137) -> XXXX | J137: =IF('[2]Tasa de Falla'!IX137=0,"",'[2]Tasa de Falla'!IX137) ->  | K137: =IF('[2]Tasa de Falla'!IY137=0,"",'[2]Tasa de Falla'!IY137) -> 1 | L137: =IF('[2]Tasa de Falla'!IZ137=0,"",'[2]Tasa de Falla'!IZ137) ->  | M137: =IF('[2]Tasa de Falla'!JA137=0,"",'[2]Tasa de Falla'!JA137) ->  | N137: =IF('[2]Tasa de Falla'!JB137=0,"",'[2]Tasa de Falla'!JB137) ->  | O137: =IF('[2]Tasa de Falla'!JC137=0,"",'[2]Tasa de Falla'!JC137) ->  | P137: =IF('[2]Tasa de Falla'!JD137=0,"",'[2]Tasa de Falla'!JD137) ->  | Q137: =IF('[2]Tasa de Falla'!JE137=0,"",'[2]Tasa de Falla'!JE137) ->  | R137: =IF('[2]Tasa de Falla'!JF137=0,"",'[2]Tasa de Falla'!JF137) -> 
C138: ='[2]Tasa de Falla'!C138 -> 121 | D138: ='[2]Tasa de Falla'!D138 -> SANTIAGO - SANTIAGO SUR | E138: ='[2]Tasa de Falla'!E138 -> 132 | F138: ='[2]Tasa de Falla'!F138 -> 8.4 | G138: =IF('[2]Tasa de Falla'!IU138=0,"",'[2]Tasa de Falla'!IU138) -> XXXX | H138: =IF('[2]Tasa de Falla'!IV138=0,"",'[2]Tasa de Falla'!IV138) -> XXXX | I138: =IF('[2]Tasa de Falla'!IW138=0,"",'[2]Tasa de Falla'!IW138) -> XXXX | J138: =IF('[2]Tasa de Falla'!IX138=0,"",'[2]Tasa de Falla'!IX138) -> XXXX | K138: =IF('[2]Tasa de Falla'!IY138=0,"",'[2]Tasa de Falla'!IY138) ->  | L138: =IF('[2]Tasa de Falla'!IZ138=0,"",'[2]Tasa de Falla'!IZ138) ->  | M138: =IF('[2]Tasa de Falla'!JA138=0,"",'[2]Tasa de Falla'!JA138) ->  | N138: =IF('[2]Tasa de Falla'!JB138=0,"",'[2]Tasa de Falla'!JB138) ->  | O138: =IF('[2]Tasa de Falla'!JC138=0,"",'[2]Tasa de Falla'!JC138) -> 1 | P138: =IF('[2]Tasa de Falla'!JD138=0,"",'[2]Tasa de Falla'!JD138) ->  | Q138: =IF('[2]Tasa de Falla'!JE138=0,"",'[2]Tasa de Falla'!JE138) ->  | R138: =IF('[2]Tasa de Falla'!JF138=0,"",'[2]Tasa de Falla'!JF138) -> 1
C139: ='[2]Tasa de Falla'!C139 -> 122 | D139: ='[2]Tasa de Falla'!D139 -> SANTIAGO OESTE - SANTIAGO | E139: ='[2]Tasa de Falla'!E139 -> 132 | F139: ='[2]Tasa de Falla'!F139 -> 8.4 | G139: =IF('[2]Tasa de Falla'!IU139=0,"",'[2]Tasa de Falla'!IU139) -> XXXX | H139: =IF('[2]Tasa de Falla'!IV139=0,"",'[2]Tasa de Falla'!IV139) -> XXXX | I139: =IF('[2]Tasa de Falla'!IW139=0,"",'[2]Tasa de Falla'!IW139) -> XXXX | J139: =IF('[2]Tasa de Falla'!IX139=0,"",'[2]Tasa de Falla'!IX139) -> XXXX | K139: =IF('[2]Tasa de Falla'!IY139=0,"",'[2]Tasa de Falla'!IY139) -> XXXX | L139: =IF('[2]Tasa de Falla'!IZ139=0,"",'[2]Tasa de Falla'!IZ139) -> XXXX | M139: =IF('[2]Tasa de Falla'!JA139=0,"",'[2]Tasa de Falla'!JA139) -> XXXX | N139: =IF('[2]Tasa de Falla'!JB139=0,"",'[2]Tasa de Falla'!JB139) -> XXXX | O139: =IF('[2]Tasa de Falla'!JC139=0,"",'[2]Tasa de Falla'!JC139) -> XXXX | P139: =IF('[2]Tasa de Falla'!JD139=0,"",'[2]Tasa de Falla'!JD139) -> XXXX | Q139: =IF('[2]Tasa de Falla'!JE139=0,"",'[2]Tasa de Falla'!JE139) -> XXXX | R139: =IF('[2]Tasa de Falla'!JF139=0,"",'[2]Tasa de Falla'!JF139) -> XXXX
C140: ='[2]Tasa de Falla'!C140 -> 123 | D140: ='[2]Tasa de Falla'!D140 -> LA BANDA - MISQUI MAYU II - SANTIAGO ESTE | E140: ='[2]Tasa de Falla'!E140 -> 132 | F140: ='[2]Tasa de Falla'!F140 -> 4.92 | G140: =IF('[2]Tasa de Falla'!IU140=0,"",'[2]Tasa de Falla'!IU140) -> XXXX | H140: =IF('[2]Tasa de Falla'!IV140=0,"",'[2]Tasa de Falla'!IV140) -> XXXX | I140: =IF('[2]Tasa de Falla'!IW140=0,"",'[2]Tasa de Falla'!IW140) -> XXXX | J140: =IF('[2]Tasa de Falla'!IX140=0,"",'[2]Tasa de Falla'!IX140) -> XXXX | K140: =IF('[2]Tasa de Falla'!IY140=0,"",'[2]Tasa de Falla'!IY140) ->  | L140: =IF('[2]Tasa de Falla'!IZ140=0,"",'[2]Tasa de Falla'!IZ140) ->  | M140: =IF('[2]Tasa de Falla'!JA140=0,"",'[2]Tasa de Falla'!JA140) ->  | N140: =IF('[2]Tasa de Falla'!JB140=0,"",'[2]Tasa de Falla'!JB140) -> 1 | O140: =IF('[2]Tasa de Falla'!JC140=0,"",'[2]Tasa de Falla'!JC140) ->  | P140: =IF('[2]Tasa de Falla'!JD140=0,"",'[2]Tasa de Falla'!JD140) ->  | Q140: =IF('[2]Tasa de Falla'!JE140=0,"",'[2]Tasa de Falla'!JE140) ->  | R140: =IF('[2]Tasa de Falla'!JF140=0,"",'[2]Tasa de Falla'!JF140) -> 1
C141: ='[2]Tasa de Falla'!C141 -> 124 | D141: ='[2]Tasa de Falla'!D141 -> CABRA CORRAL - GUACHIPAS - PAMPA GRANDE | E141: ='[2]Tasa de Falla'!E141 -> 132 | F141: ='[2]Tasa de Falla'!F141 -> 72.1 | G141: =IF('[2]Tasa de Falla'!IU141=0,"",'[2]Tasa de Falla'!IU141) -> XXXX | H141: =IF('[2]Tasa de Falla'!IV141=0,"",'[2]Tasa de Falla'!IV141) -> XXXX | I141: =IF('[2]Tasa de Falla'!IW141=0,"",'[2]Tasa de Falla'!IW141) -> XXXX | J141: =IF('[2]Tasa de Falla'!IX141=0,"",'[2]Tasa de Falla'!IX141) -> XXXX | K141: =IF('[2]Tasa de Falla'!IY141=0,"",'[2]Tasa de Falla'!IY141) -> XXXX | L141: =IF('[2]Tasa de Falla'!IZ141=0,"",'[2]Tasa de Falla'!IZ141) -> XXXX | M141: =IF('[2]Tasa de Falla'!JA141=0,"",'[2]Tasa de Falla'!JA141) -> XXXX | N141: =IF('[2]Tasa de Falla'!JB141=0,"",'[2]Tasa de Falla'!JB141) -> XXXX | O141: =IF('[2]Tasa de Falla'!JC141=0,"",'[2]Tasa de Falla'!JC141) -> XXXX | P141: =IF('[2]Tasa de Falla'!JD141=0,"",'[2]Tasa de Falla'!JD141) -> 1 | Q141: =IF('[2]Tasa de Falla'!JE141=0,"",'[2]Tasa de Falla'!JE141) -> 2 | R141: =IF('[2]Tasa de Falla'!JF141=0,"",'[2]Tasa de Falla'!JF141) -> 8
C142: ='[2]Tasa de Falla'!C142 -> 125 | D142: ='[2]Tasa de Falla'!D142 -> EL TABACAL - PI. TABACAL II - ORAN | E142: ='[2]Tasa de Falla'!E142 -> 132 | F142: ='[2]Tasa de Falla'!F142 -> 12.04 | G142: =IF('[2]Tasa de Falla'!IU142=0,"",'[2]Tasa de Falla'!IU142) -> XXXX | H142: =IF('[2]Tasa de Falla'!IV142=0,"",'[2]Tasa de Falla'!IV142) -> XXXX | I142: =IF('[2]Tasa de Falla'!IW142=0,"",'[2]Tasa de Falla'!IW142) -> XXXX | J142: =IF('[2]Tasa de Falla'!IX142=0,"",'[2]Tasa de Falla'!IX142) -> XXXX | K142: =IF('[2]Tasa de Falla'!IY142=0,"",'[2]Tasa de Falla'!IY142) -> XXXX | L142: =IF('[2]Tasa de Falla'!IZ142=0,"",'[2]Tasa de Falla'!IZ142) -> XXXX | M142: =IF('[2]Tasa de Falla'!JA142=0,"",'[2]Tasa de Falla'!JA142) -> XXXX | N142: =IF('[2]Tasa de Falla'!JB142=0,"",'[2]Tasa de Falla'!JB142) -> XXXX | O142: =IF('[2]Tasa de Falla'!JC142=0,"",'[2]Tasa de Falla'!JC142) -> XXXX | P142: =IF('[2]Tasa de Falla'!JD142=0,"",'[2]Tasa de Falla'!JD142) -> 1 | Q142: =IF('[2]Tasa de Falla'!JE142=0,"",'[2]Tasa de Falla'!JE142) -> 1 | R142: =IF('[2]Tasa de Falla'!JF142=0,"",'[2]Tasa de Falla'!JF142) -> 1
C143: ='[2]Tasa de Falla'!C143 -> 126 | D143: ='[2]Tasa de Falla'!D143 -> GUEMES - CAMPO SANTO - MINETTI | E143: ='[2]Tasa de Falla'!E143 -> 132 | F143: ='[2]Tasa de Falla'!F143 -> 41.8 | G143: =IF('[2]Tasa de Falla'!IU143=0,"",'[2]Tasa de Falla'!IU143) ->  | H143: =IF('[2]Tasa de Falla'!IV143=0,"",'[2]Tasa de Falla'!IV143) ->  | I143: =IF('[2]Tasa de Falla'!IW143=0,"",'[2]Tasa de Falla'!IW143) -> 2 | J143: =IF('[2]Tasa de Falla'!IX143=0,"",'[2]Tasa de Falla'!IX143) -> 3 | K143: =IF('[2]Tasa de Falla'!IY143=0,"",'[2]Tasa de Falla'!IY143) ->  | L143: =IF('[2]Tasa de Falla'!IZ143=0,"",'[2]Tasa de Falla'!IZ143) ->  | M143: =IF('[2]Tasa de Falla'!JA143=0,"",'[2]Tasa de Falla'!JA143) -> 1 | N143: =IF('[2]Tasa de Falla'!JB143=0,"",'[2]Tasa de Falla'!JB143) -> 1 | O143: =IF('[2]Tasa de Falla'!JC143=0,"",'[2]Tasa de Falla'!JC143) ->  | P143: =IF('[2]Tasa de Falla'!JD143=0,"",'[2]Tasa de Falla'!JD143) ->  | Q143: =IF('[2]Tasa de Falla'!JE143=0,"",'[2]Tasa de Falla'!JE143) ->  | R143: =IF('[2]Tasa de Falla'!JF143=0,"",'[2]Tasa de Falla'!JF143) -> 1
C144: ='[2]Tasa de Falla'!C144 -> 127 | D144: ='[2]Tasa de Falla'!D144 -> GUEMES - CAMPO SANTO - PARQUE IND. | E144: ='[2]Tasa de Falla'!E144 -> 132 | F144: ='[2]Tasa de Falla'!F144 -> 38.86 | G144: =IF('[2]Tasa de Falla'!IU144=0,"",'[2]Tasa de Falla'!IU144) ->  | H144: =IF('[2]Tasa de Falla'!IV144=0,"",'[2]Tasa de Falla'!IV144) ->  | I144: =IF('[2]Tasa de Falla'!IW144=0,"",'[2]Tasa de Falla'!IW144) ->  | J144: =IF('[2]Tasa de Falla'!IX144=0,"",'[2]Tasa de Falla'!IX144) ->  | K144: =IF('[2]Tasa de Falla'!IY144=0,"",'[2]Tasa de Falla'!IY144) ->  | L144: =IF('[2]Tasa de Falla'!IZ144=0,"",'[2]Tasa de Falla'!IZ144) ->  | M144: =IF('[2]Tasa de Falla'!JA144=0,"",'[2]Tasa de Falla'!JA144) ->  | N144: =IF('[2]Tasa de Falla'!JB144=0,"",'[2]Tasa de Falla'!JB144) ->  | O144: =IF('[2]Tasa de Falla'!JC144=0,"",'[2]Tasa de Falla'!JC144) ->  | P144: =IF('[2]Tasa de Falla'!JD144=0,"",'[2]Tasa de Falla'!JD144) ->  | Q144: =IF('[2]Tasa de Falla'!JE144=0,"",'[2]Tasa de Falla'!JE144) -> 1 | R144: =IF('[2]Tasa de Falla'!JF144=0,"",'[2]Tasa de Falla'!JF144) -> 
C145: ='[2]Tasa de Falla'!C145 -> 128 | D145: ='[2]Tasa de Falla'!D145 -> SANTIAGO CENTRO - MISQUI MAYU I - SANTIAGO ESTE | E145: ='[2]Tasa de Falla'!E145 -> 132 | F145: ='[2]Tasa de Falla'!F145 -> 10.66 | G145: =IF('[2]Tasa de Falla'!IU145=0,"",'[2]Tasa de Falla'!IU145) -> XXXX | H145: =IF('[2]Tasa de Falla'!IV145=0,"",'[2]Tasa de Falla'!IV145) -> XXXX | I145: =IF('[2]Tasa de Falla'!IW145=0,"",'[2]Tasa de Falla'!IW145) -> XXXX | J145: =IF('[2]Tasa de Falla'!IX145=0,"",'[2]Tasa de Falla'!IX145) -> XXXX | K145: =IF('[2]Tasa de Falla'!IY145=0,"",'[2]Tasa de Falla'!IY145) ->  | L145: =IF('[2]Tasa de Falla'!IZ145=0,"",'[2]Tasa de Falla'!IZ145) ->  | M145: =IF('[2]Tasa de Falla'!JA145=0,"",'[2]Tasa de Falla'!JA145) ->  | N145: =IF('[2]Tasa de Falla'!JB145=0,"",'[2]Tasa de Falla'!JB145) ->  | O145: =IF('[2]Tasa de Falla'!JC145=0,"",'[2]Tasa de Falla'!JC145) ->  | P145: =IF('[2]Tasa de Falla'!JD145=0,"",'[2]Tasa de Falla'!JD145) ->  | Q145: =IF('[2]Tasa de Falla'!JE145=0,"",'[2]Tasa de Falla'!JE145) ->  | R145: =IF('[2]Tasa de Falla'!JF145=0,"",'[2]Tasa de Falla'!JF145) -> 1
C146: ='[2]Tasa de Falla'!C146 -> 129 | D146: ='[2]Tasa de Falla'!D146 -> LA RIOJA SUR - PI. PATQUIA 2 | E146: ='[2]Tasa de Falla'!E146 -> 132 | F146: ='[2]Tasa de Falla'!F146 -> 40 | G146: =IF('[2]Tasa de Falla'!IU146=0,"",'[2]Tasa de Falla'!IU146) ->  | H146: =IF('[2]Tasa de Falla'!IV146=0,"",'[2]Tasa de Falla'!IV146) ->  | I146: =IF('[2]Tasa de Falla'!IW146=0,"",'[2]Tasa de Falla'!IW146) ->  | J146: =IF('[2]Tasa de Falla'!IX146=0,"",'[2]Tasa de Falla'!IX146) ->  | K146: =IF('[2]Tasa de Falla'!IY146=0,"",'[2]Tasa de Falla'!IY146) ->  | L146: =IF('[2]Tasa de Falla'!IZ146=0,"",'[2]Tasa de Falla'!IZ146) ->  | M146: =IF('[2]Tasa de Falla'!JA146=0,"",'[2]Tasa de Falla'!JA146) ->  | N146: =IF('[2]Tasa de Falla'!JB146=0,"",'[2]Tasa de Falla'!JB146) ->  | O146: =IF('[2]Tasa de Falla'!JC146=0,"",'[2]Tasa de Falla'!JC146) ->  | P146: =IF('[2]Tasa de Falla'!JD146=0,"",'[2]Tasa de Falla'!JD146) ->  | Q146: =IF('[2]Tasa de Falla'!JE146=0,"",'[2]Tasa de Falla'!JE146) ->  | R146: =IF('[2]Tasa de Falla'!JF146=0,"",'[2]Tasa de Falla'!JF146) -> 1
C147: ='[2]Tasa de Falla'!C147 -> 130 | D147: ='[2]Tasa de Falla'!D147 -> LA RIOJA SUR - PI. CIRCUNVALACION 1 | E147: ='[2]Tasa de Falla'!E147 -> 132 | F147: ='[2]Tasa de Falla'!F147 -> 41.35 | G147: =IF('[2]Tasa de Falla'!IU147=0,"",'[2]Tasa de Falla'!IU147) ->  | H147: =IF('[2]Tasa de Falla'!IV147=0,"",'[2]Tasa de Falla'!IV147) ->  | I147: =IF('[2]Tasa de Falla'!IW147=0,"",'[2]Tasa de Falla'!IW147) ->  | J147: =IF('[2]Tasa de Falla'!IX147=0,"",'[2]Tasa de Falla'!IX147) ->  | K147: =IF('[2]Tasa de Falla'!IY147=0,"",'[2]Tasa de Falla'!IY147) ->  | L147: =IF('[2]Tasa de Falla'!IZ147=0,"",'[2]Tasa de Falla'!IZ147) ->  | M147: =IF('[2]Tasa de Falla'!JA147=0,"",'[2]Tasa de Falla'!JA147) ->  | N147: =IF('[2]Tasa de Falla'!JB147=0,"",'[2]Tasa de Falla'!JB147) ->  | O147: =IF('[2]Tasa de Falla'!JC147=0,"",'[2]Tasa de Falla'!JC147) ->  | P147: =IF('[2]Tasa de Falla'!JD147=0,"",'[2]Tasa de Falla'!JD147) ->  | Q147: =IF('[2]Tasa de Falla'!JE147=0,"",'[2]Tasa de Falla'!JE147) ->  | R147: =IF('[2]Tasa de Falla'!JF147=0,"",'[2]Tasa de Falla'!JF147) -> 
E149: Longitud Total | F149: =SUM(F16:F148)-F19-F21-F22-F26-F27-F37-F39-F40-F43-F44-F47-F48-F49-F53-F60-F65-F78-F82-F96-F101-F111 -> 6071.38
F150: Indisponibilidades Forzadas | G150: =SUM(G17:G148) -> 12 | H150: =SUM(H17:H148) -> 14 | I150: =SUM(I17:I148) -> 15 | J150: 10 | K150: 4 | L150: 11 | M150: 15 | N150: 6 | O150: 9 | P150: 14 | Q150: 29 | R150: 32
F151: TASA DE FALLA | G151: =+'[2]Tasa de Falla'!IU154 -> 2.57 | H151: =+'[2]Tasa de Falla'!IV154 -> 2.31 | I151: =+'[2]Tasa de Falla'!IW154 -> 2.39 | J151: =+'[2]Tasa de Falla'!IX154 -> 2.4 | K151: =+'[2]Tasa de Falla'!IY154 -> 2.51 | L151: =+'[2]Tasa de Falla'!IZ154 -> 2.26 | M151: =+'[2]Tasa de Falla'!JA154 -> 2.44 | N151: =+'[2]Tasa de Falla'!JB154 -> 2.61 | O151: =+'[2]Tasa de Falla'!JC154 -> 2.67 | P151: =+'[2]Tasa de Falla'!JD154 -> 2.74 | Q151: =+'[2]Tasa de Falla'!JE154 -> 2.68 | R151: =+'[2]Tasa de Falla'!JF154 -> 3.05 | S151: =+'[2]Tasa de Falla'!JG154 -> 3.3
C153: XXX | D153: Línea no computada en el mes | I153: TASA DE FALLA | L153: =S151 -> 3.3 | N153: SALIDAS x AÑO / 100 km

Sheet DATO
A1: Mes | B1: Mes | C1: Dia | D1: Año
A2: enero | B2: 01 | C2: 31 | D2: 2006
A3: febrero | B3: 02 | C3: =IF(MOD(E14,4)=0,29,28) -> 29 | D3: =+D2+1 -> 2007
A4: marzo | B4: 03 | C4: 31 | D4: 2008
A5: abril | B5: 04 | C5: 30 | D5: 2009
A6: mayo | B6: 05 | C6: 31 | D6: 2010
A7: junio | B7: 06 | C7: 30 | D7: 2011
A8: julio | B8: 07 | C8: 31 | D8: 2012
A9: agosto | B9: 08 | C9: 31 | D9: 2013
A10: septiembre | B10: 09 | C10: 30 | D10: 2014
A11: octubre | B11: 10 | C11: 31 | D11: 2015
A12: noviembre | B12: 11 | C12: 30 | D12: 2016
A13: diciembre | B13: 12 | C13: 31 | I13: Total
A14: 11 | B14: 2 | C14: =CELL("CONTENIDO",OFFSET(A1,B14,0)) -> febrero | D14: =CELL("CONTENIDO",OFFSET(C1,B14,0)) -> 29 | E14: =CELL("CONTENIDO",OFFSET(D1,A14,0)) -> 2016 | F14: ="Desde el 01 al " & D14 & " de " & C14 & " de " & E14 -> Desde el 01 al 29 de febrero de 2016 | G14: =CELL("CONTENIDO",OFFSET(B1,B14,0)) -> 02 | H14: =RIGHT(E14,2) -> 16 | I14: B14
B15: ="\\rugor\files\Transporte\Transporte\AA PROCESO AUT ARCHIVOS J\TRANSNOA\" &E14 -> \\rugor\files\Transporte\Transporte\AA PROCESO AUT ARCHIVOS J\TRANSNOA\2016 | G15: ="J"&G14&H14&"NOA" -> J0216NOA
B16: ="\\rugor\files\Transporte\transporte\AA PROCESO AUT\INTERCAMBIO\" &H14&G14 -> \\rugor\files\Transporte\transporte\AA PROCESO AUT\INTERCAMBIO\1602
A17: Hoja | B17: FilaInicio | C17: FilasPlantilla | D17: Columnas | E17: NombreHoja | F17: OrigenDeDatos | G17: Col00 | H17: Col01 | I17: Col02 | J17: Col03 | K17: Col04 | L17: Col05 | M17: Col06 | N17: Col07 | O17: Col08 | P17: Col09 | Q17: Col10 | R17: Col11 | S17: Col12 | T17: Col13 | U17: Col14 | V17: Col15 | W17: FILHTOTAL | X17: COLHTOTAL | Y17: FILHCALC | Z17: COLHCALC | AA17: FILTRANSP | AB17: COLTRANSP | AC17: COL TSAL
A18: MODELO L | B18: 21 | C18: 20 | D18: 11 | E18: ="LI-" & $G$14 -> LI-02 | F18: TRANSNOA_INDISPONIBILIDADES_LINEAS_TRANSNOA.XLS | G18: 3 | H18: 5 | I18: 4 | J18: 6 | K18: 7 | L18: 8 | M18: 0 | N18: 10 | O18: 11 | P18: 14 | Q18: 0 | R18: 26 | S18: 0 | T18: 0 | U18: 0 | V18: 0 | W18: 19 | X18: 10 | Y18: 42 | Z18: 27 | AA18: 19 | AB18: 27 | AC18: 14
A19: MODELO T | B19: 24 | C19: 20 | D19: 13 | E19: ="T-" & $G$14 -> T-02 | F19: TRANSNOA_INDISPONIBILIDADES_TRAFOS_TRANSNOA.XLS | G19: 3 | H19: 5 | I19: 4 | J19: 6 | K19: 7 | L19: 8 | M19: 9 | N19: 11 | O19: 12 | P19: 15 | Q19: 16 | R19: 18 | S19: 28 | T19: 17 | U19: 0 | V19: 0 | W19: 25 | X19: 10 | Y19: 45 | Z19: 29 | AA19: 22 | AB19: 29 | AC19: 15
A20: MODELO S | B20: 23 | C20: 20 | D20: 10 | E20: ="SA-" & $G$14 -> SA-02 | F20: TRANSNOA_INDISPONIBILIDADES_SALIDAS_TRANSNOA.XLS | G20: 3 | H20: 5 | I20: 4 | J20: 6 | K20: 7 | L20: 8 | M20: 10 | N20: 11 | O20: 14 | P20: 15 | Q20: 21 | R20: 0 | S20: 0 | T20: 0 | U20: 0 | V20: 0 | W20: 29 | X20: 10 | Y20: 44 | Z20: 22 | AA20: 21 | AB20: 22 | AC20: 14
A21: MODELO L RIOJA | B21: 21 | C21: 20 | D21: 11 | E21: ="LI-RIOJA-" & $G$14 -> LI-RIOJA-02 | F21: TRANSNOA_INDISPONIBILIDADES_LINEAS_RIOJA.XLS | G21: 3 | H21: 5 | I21: 4 | J21: 6 | K21: 7 | L21: 8 | M21: 0 | N21: 10 | O21: 11 | P21: 14 | Q21: 2 | R21: 26 | S21: 0 | T21: 0 | U21: 0 | V21: 0 | W21: 21 | X21: 10 | Y21: 42 | Z21: 27 | AA21: 19 | AB21: 27 | AC21: 14
A22: MODELO L EDESA | B22: 21 | C22: 20 | D22: 11 | E22: ="LI-EDESA-" & $G$14 -> LI-EDESA-02 | F22: TRANSNOA_INDISPONIBILIDADES_LINEAS_EDESA.XLS | G22: 3 | H22: 5 | I22: 4 | J22: 6 | K22: 7 | L22: 8 | M22: 0 | N22: 10 | O22: 11 | P22: 14 | Q22: 2 | R22: 26 | S22: 0 | T22: 0 | U22: 0 | V22: 0 | W22: 20 | X22: 10 | Y22: 42 | Z22: 27 | AA22: 19 | AB22: 27 | AC22: 14
A23: MODELO T EDESA | B23: 24 | C23: 20 | D23: 13 | E23: ="T-EDESA-" & $G$14 -> T-EDESA-02 | F23: TRANSNOA_INDISPONIBILIDADES_TRAFOS_EDESA.XLS | G23: 3 | H23: 5 | I23: 4 | J23: 6 | K23: 7 | L23: 8 | M23: 9 | N23: 11 | O23: 12 | P23: 15 | Q23: 16 | R23: 18 | S23: 28 | T23: 17 | U23: 0 | V23: 0 | W23: 26 | X23: 10 | Y23: 45 | Z23: 29 | AA23: 22 | AB23: 29 | AC23: 15
A24: MODELO S EDESA | B24: 23 | C24: 20 | D24: 10 | E24: ="SA-EDESA-" & $G$14 -> SA-EDESA-02 | F24: TRANSNOA_INDISPONIBILIDADES_SALIDAS_EDESA.XLS | G24: 3 | H24: 5 | I24: 4 | J24: 6 | K24: 7 | L24: 8 | M24: 10 | N24: 11 | O24: 14 | P24: 15 | Q24: 21 | R24: 0 | S24: 0 | T24: 0 | U24: 0 | V24: 0 | W24: 30 | X24: 10 | Y24: 44 | Z24: 22 | AA24: 21 | AB24: 22 | AC24: 14
A25: MODELO VST | B25: 19 | C25: 24 | D25: 4 | E25: ="CAUSAS-VST-" & $G$14 -> CAUSAS-VST-02 | F25: TRANSNOA_CAUSAS_VST.XLS | G25: 3 | H25: 4 | I25: 5 | J25: 6 | K25: 7 | L25: 0 | M25: 0 | N25: 0 | O25: 0 | P25: 0 | Q25: 0 | R25: 0 | S25: 0 | T25: 0 | U25: 0 | V25: 0 | W25: 999 | X25: 999 | Y25: 0 | Z25: 0 | AA25: 0 | AB25: 0 | AC25: 0
